Workbook

Sheet 汇总
A1: 2016年销售数据表汇总<运营部>
A2: 销售收入部分 | H2: 其他支出部分 | K2: 推广支出部分 | N2: 活动支出部分 | R2: 月成果 | T2: 利润 | U2: 提点
A3: 店铺ID | B3: A成交款 | C3: B退款总金额 | D3: C刷单金额 | E3: D有效销售额 | F3: E月初目标设定 | G3: F目标达成比例=D/E | H3: 刷单支出（佣金快递） | I3: 平台扣点支出 | J3: 税点支出（3.5%） | K3: 直通车(京东所有推广) | L3: 淘宝客 | M3: 钻展/广告费 | N3: 淘金币 （积分支出） | O3: 聚划算费用 | P3: 促销费用 | Q3: J花费支出总计 | R3: K净销售额=E-I-J | S3: L投入产出比=J/D | T3: 0.25 | U3: 0.1
A4: 11月 | B4: =C店!B4+天猫!B4+京东!B4 -> 893468.25 | C4: =C店!C4+天猫!C4+京东!C4 -> 48051 | D4: =C店!D4+天猫!D4+京东!D4 -> 4794 | E4: =C店!E4+天猫!E4+京东!E4 -> 897488.25 | F4: =C店!F4+天猫!F4+京东!F4 -> 0 | G4: =C店!G4+天猫!G4+京东!G4 ->  | H4: =C店!H4+天猫!H4+京东!H4 -> 442 | I4: =C店!I4+天猫!I4+京东!I4 -> 4069 | J4: =C店!J4+天猫!J4+京东!J4 -> 3369 | K4: =C店!K4+天猫!K4+京东!K4 -> 116881.95 | L4: =C店!L4+天猫!L4+京东!L4 -> 3000 | M4: =C店!M4+天猫!M4+京东!M4 -> 4214 | N4: =C店!N4+天猫!N4+京东!N4 -> 1500 | O4: =C店!O4+天猫!O4+京东!O4 -> 15000 | P4: =C店!#REF!+天猫!P4+京东!P4 ->  | Q4: =C店!P4+天猫!Q4+京东!Q4 -> 154305.95 | R4: =C店!Q4+天猫!R4+京东!R4 -> 743182.3 | S4: =E4/Q4 -> 5.816290623 | T4: =E4*0.25-Q4 -> 70066.1125 | U4: 0
A5: 12月 | B5: =C店!B5+天猫!B5+京东!B5 -> 907827.57 | C5: =C店!C5+天猫!C5+京东!C5 -> 130532.57 | D5: =C店!D5+天猫!D5+京东!D5 -> 26025 | E5: =C店!E5+天猫!E5+京东!E5 -> 751270 | F5: 0 | G5: =C店!G5+天猫!G5+京东!G5 ->  | H5: =C店!H5+天猫!H5+京东!H5 -> 1948 | I5: =C店!I5+天猫!I5+京东!I5 -> 5164 | J5: =C店!J5+天猫!J5+京东!J5 -> 4432 | K5: =C店!K5+天猫!K5+京东!K5 -> 119957.13 | L5: =C店!L5+天猫!L5+京东!L5 -> 4362.16 | M5: =C店!M5+天猫!M5+京东!M5 -> 8221 | N5: =C店!N5+天猫!N5+京东!N5 -> 500 | O5: =C店!O5+天猫!O5+京东!O5 -> 0 | P5: =C店!#REF!+天猫!P5+京东!P5 ->  | Q5: =C店!P5+天猫!Q5+京东!Q5 -> 150046.29 | R5: =C店!Q5+天猫!R5+京东!R5 -> 601223.71 | S5: =E5/Q5 -> 5.006921531 | T5: =E5*0.25-Q5 -> 37771.21 | U5: 0
A6: 1月合计 | B6: 985019.83 | C6: 38338.98 | D6: 84374 | E6: 862306.85 | F6: 850000 | H6: 3003 | I6: 9126.3003 | J6: 8860.98535 | K6: 84901.1693 | L6: 3843.48 | M6: 500 | N6: 0 | O6: 0 | P6: 69429.78 | Q6: 179664.7149 | R6: 682642.1351 | S6: 4.799533677 | T6: 35911.99755
A7: 2月合计 | B7: 324526.24 | C7: 20628.02 | D7: 0 | E7: 455281.29 | F7: 0 | H7: 0 | I7: 0 | J7: 0 | K7: 30557.58 | L7: 1454.9 | M7: 0 | N7: 0 | O7: 15000 | P7: 0 | Q7: 86009.675 | R7: 369271.615 | S7: 5.293372984
A8: 销售收入部分 | H8: 其他支出部分 | K8: 推广支出 | N8: 活动支出部分 | R8: 月成果
A9: 店铺ID | B9: A支付宝成交款 | C9: B退款总金额 | D9: C刷单金额 | E9: D有效销售额 | F9: E月初目标设定 | G9: F目标达成比例=D/E | H9: 刷单支出（佣金快递） | I9: 平台扣点支出 | J9: 税点支出（3.5%） | K9: 直通车(京东所有推广) | L9: 淘宝客 | M9: 钻展/广告费 | N9: 淘金币 （积分支出） | O9: 聚划算费用 | P9: 促销费用 | Q9: J花费支出总计 | R9: K净销售额=E-I-J | S9: L投入产出比=J/D
A10: 2015-01-01 | B10: =C店!B10+天猫!B10+京东!B10 -> 130562.9 | C10: =C店!C8+天猫!C9+京东!C8 ->  | D10: =C店!D10+天猫!D10+京东!D10 -> 0 | E10: =C店!E10+天猫!E10+京东!E10 -> 128655.16 | H10: =C店!H8+天猫!H9+京东!H8 ->  | I10: =C店!I8+天猫!I9+京东!I8 ->  | J10: =C店!J8+天猫!J9+京东!J8 ->  | K10: =C店!K8+天猫!K9+京东!K8 ->  | L10: =C店!L8+天猫!L9+京东!L8 ->  | M10: =C店!M8+天猫!M9+京东!M8 ->  | N10: =C店!N8+天猫!N9+京东!N8 ->  | O10: =C店!O10+天猫!O10+京东!O10 -> 0 | P10: =C店!#REF!+天猫!P9+京东!P8 ->  | Q10: =C店!P10+天猫!Q10+京东!Q10 -> 4424.8964 | R10: =C店!Q10+天猫!R10+京东!R10 -> 124230.2636 | S10: =E10/Q10 -> 29.07529315
A11: 2015-01-02 | B11: =C店!B11+天猫!B11+京东!B11 -> 113685.39 | C11: =C店!C9+天猫!C10+京东!C9 ->  | D11: =C店!D11+天猫!D11+京东!D11 -> 0 | E11: =C店!E11+天猫!E11+京东!E11 -> 111037.68 | H11: =C店!H9+天猫!H10+京东!H9 ->  | I11: =C店!I9+天猫!I10+京东!I9 ->  | J11: =C店!J9+天猫!J10+京东!J9 ->  | K11: =C店!K9+天猫!K10+京东!K9 ->  | L11: =C店!L9+天猫!L10+京东!L9 ->  | M11: =C店!M9+天猫!M10+京东!M9 ->  | N11: =C店!N9+天猫!N10+京东!N9 ->  | O11: =C店!O11+天猫!O11+京东!O11 -> 0 | Q11: =C店!P11+天猫!Q11+京东!Q11 -> 5726.1229 | R11: =C店!Q9+天猫!R10+京东!R9 ->  | S11: 19.39142452
A12: 2015-01-03 | B12: =C店!B12+天猫!B12+京东!B12 -> 21768.84 | C12: =C店!C12+天猫!C12+京东!C12 -> 2301.05 | D12: =C店!D12+天猫!D12+京东!D12 -> 0 | E12: =C店!E12+天猫!E12+京东!E12 -> 19467.79 | H12: =C店!H10+天猫!H11+京东!H10 -> 0 | I12: =C店!I10+天猫!I11+京东!I10 -> 152.04 | J12: =C店!J10+天猫!J11+京东!J10 -> 147.35 | K12: =C店!K10+天猫!K11+京东!K10 -> 4011.1514 | L12: =C店!L10+天猫!L11+京东!L10 -> 261.45 | M12: =C店!M10+天猫!M11+京东!M10 -> 0 | N12: =C店!N10+天猫!N11+京东!N10 -> 0 | O12: =C店!O12+天猫!O12+京东!O12 -> 0 | Q12: =C店!P12+天猫!Q12+京东!Q12 -> 4087.844 | R12: =C店!Q10+天猫!R11+京东!R10 -> 125403.1686 | S12: 4.762361284
A13: 2015-01-04 | B13: =C店!B13+天猫!B13+京东!B13 -> 26719.01 | C13: =C店!C11+天猫!C12+京东!C11 -> 2602.71 | D13: =C店!D13+天猫!D13+京东!D13 -> 0 | E13: =C店!E13+天猫!E13+京东!E13 -> 24496.75 | H13: =C店!H11+天猫!H12+京东!H11 -> 0 | I13: =C店!I11+天猫!I12+京东!I11 -> 161.55 | J13: =C店!J11+天猫!J12+京东!J11 -> 168.84 | K13: =C店!K11+天猫!K12+京东!K11 -> 5094.0279 | L13: =C店!L11+天猫!L12+京东!L11 -> 388.79 | M13: =C店!M11+天猫!M12+京东!M11 -> 0 | N13: =C店!N11+天猫!N12+京东!N11 -> 0 | O13: =C店!O13+天猫!O13+京东!O13 -> 0 | Q13: =C店!P13+天猫!Q13+京东!Q13 -> 2133.9921 | R13: =C店!Q11+天猫!R12+京东!R11 -> 106180.4721 | S13: 11.47930679
A14: 2015-01-05 | B14: =C店!B14+天猫!B14+京东!B14 -> 25962.57 | C14: =C店!C12+天猫!C13+京东!C12 -> 2581.05 | D14: =C店!D14+天猫!D14+京东!D14 -> 1537 | E14: =C店!E14+天猫!E14+京东!E14 -> 22536.79 | H14: =C店!H12+天猫!H13+京东!H12 -> 0 | I14: =C店!I12+天猫!I13+京东!I12 -> 159.87 | J14: =C店!J12+天猫!J13+京东!J12 -> 149.59 | K14: =C店!K12+天猫!K13+京东!K12 -> 3823.814 | L14: =C店!L12+天猫!L13+京东!L12 -> 119.99 | M14: =C店!M12+天猫!M13+京东!M12 -> 0 | N14: =C店!N12+天猫!N13+京东!N12 -> 0 | O14: =C店!O14+天猫!O14+京东!O14 -> 0 | Q14: =C店!P14+天猫!Q14+京东!Q14 -> 4846.7917 | R14: =C店!Q12+天猫!R13+京东!R12 -> 13890.526 | S14: 4.649836716
A15: 2015-01-06 | B15: =C店!B15+天猫!B15+京东!B15 -> 25886.12 | C15: =C店!C13+天猫!C14+京东!C13 -> 1942.26 | D15: =C店!D13+天猫!D14+京东!D13 -> 1537 | E15: =C店!E15+天猫!E15+京东!E15 -> 22405.27 | H15: =C店!H13+天猫!H14+京东!H13 ->  | I15: =C店!I13+天猫!I14+京东!I13 -> 167.52 | J15: =C店!J13+天猫!J14+京东!J13 -> 168.665 | K15: =C店!K13+天猫!K14+京东!K13 -> 1651.9421 | L15: =C店!L13+天猫!L14+京东!L13 -> 97.6 | M15: =C店!M13+天猫!M14+京东!M13 -> 0 | N15: =C店!N13+天猫!N14+京东!N13 -> 0 | O15: =C店!O15+天猫!O15+京东!O15 -> 0 | Q15: =C店!P15+天猫!Q15+京东!Q15 -> 4019.0214 | R15: =C店!Q13+天猫!R14+京东!R13 -> 21923.0229 | S15: 5.57480734
A16: 2015-01-07 | B16: =C店!B16+天猫!B16+京东!B16 -> 26387.12 | C16: =C店!C14+天猫!C15+京东!C14 -> 1960.78 | D16: =C店!D14+天猫!D15+京东!D14 -> 2002 | E16: =C店!E16+天猫!E16+京东!E16 -> 23574.97 | H16: =C店!H14+天猫!H15+京东!H14 ->  | I16: =C店!I14+天猫!I15+京东!I14 -> 228.54 | J16: =C店!J14+天猫!J15+京东!J14 -> 222.915 | K16: =C店!K14+天猫!K15+京东!K14 -> 4416.8067 | L16: =C店!L14+天猫!L15+京东!L14 -> 168.75 | M16: =C店!M14+天猫!M15+京东!M14 -> 0 | N16: =C店!N14+天猫!N15+京东!N14 -> 0 | O16: =C店!O16+天猫!O16+京东!O16 -> 0 | Q16: =C店!P16+天猫!Q16+京东!Q16 -> 3343.5923 | R16: =C店!Q16+天猫!R16+京东!R16 -> 20231.3777 | S16: 7.050790852
A17: 2015-01-08 | B17: =C店!B17+天猫!B17+京东!B17 -> 22919.5 | C17: =C店!C15+天猫!C16+京东!C15 -> 1612.85 | D17: =C店!D15+天猫!D16+京东!D15 -> 1430 | E17: =C店!E17+天猫!E17+京东!E17 -> 16495.66 | H17: =C店!H15+天猫!H16+京东!H15 -> 60 | I17: =C店!I15+天猫!I16+京东!I15 -> 159.45 | J17: =C店!J15+天猫!J16+京东!J15 -> 165.9 | K17: =C店!K15+天猫!K16+京东!K15 -> 3397.7164 | L17: =C店!L15+天猫!L16+京东!L15 -> 117.01 | M17: =C店!M15+天猫!M16+京东!M15 -> 0 | N17: =C店!N15+天猫!N16+京东!N15 -> 0 | O17: =C店!O17+天猫!O17+京东!O17 -> 0 | Q17: =C店!P17+天猫!Q17+京东!Q17 -> 3378.8067 | R17: =C店!Q17+天猫!R17+京东!R17 -> 13116.8533 | S17: 4.882096392
A18: 2015-01-09 | B18: =C店!B18+天猫!B18+京东!B18 -> 21989.57 | C18: =C店!C16+天猫!C17+京东!C16 -> 1633.15 | D18: =C店!D16+天猫!D17+京东!D16 -> 1716 | E18: =C店!E18+天猫!E18+京东!E18 -> 16641.01 | H18: =C店!H16+天猫!H17+京东!H16 -> 72 | I18: =C店!I16+天猫!I17+京东!I16 -> 195.33 | J18: =C店!J16+天猫!J17+京东!J16 -> 208.425 | K18: =C店!K16+天猫!K17+京东!K16 -> 2776.4873 | L18: =C店!L16+天猫!L17+京东!L16 -> 185.59 | M18: =C店!M16+天猫!M17+京东!M16 -> 0 | N18: =C店!N16+天猫!N17+京东!N16 -> 0 | O18: =C店!O18+天猫!O18+京东!O18 -> 0 | Q18: =C店!P18+天猫!Q18+京东!Q18 -> 4200.2132 | R18: =C店!Q18+天猫!R18+京东!R18 -> 12440.7968 | S18: 3.961944122
A19: 2015-01-10 | B19: =C店!B19+天猫!B19+京东!B19 -> 21332.53 | C19: =C店!C17+天猫!C18+京东!C17 -> 4250.84 | D19: =C店!D17+天猫!D18+京东!D17 -> 3575 | E19: =C店!E19+天猫!E19+京东!E19 -> 16852.05 | H19: =C店!H17+天猫!H18+京东!H17 -> 150 | I19: =C店!I17+天猫!I18+京东!I17 -> 262.86 | J19: =C店!J17+天猫!J18+京东!J17 -> 274.05 | K19: =C店!K17+天猫!K18+京东!K17 -> 3332.7717 | L19: =C店!L17+天猫!L18+京东!L17 -> 164.44 | M19: =C店!M17+天猫!M18+京东!M17 -> 0 | N19: =C店!N17+天猫!N18+京东!N17 -> 0 | O19: =C店!O19+天猫!O19+京东!O19 -> 0 | Q19: =C店!P19+天猫!Q19+京东!Q19 -> 4070.0433 | R19: =C店!Q19+天猫!R19+京东!R19 -> 12782.0067 | S19: 4.140508775
A20: 2015-01-11 | B20: =C店!B20+天猫!B20+京东!B20 -> 17060.21 | C20: =C店!C18+天猫!C19+京东!C18 -> 1773.56 | D20: =C店!D18+天猫!D19+京东!D18 -> 3718 | E20: =C店!E20+天猫!E20+京东!E20 -> 16510.45 | H20: =C店!H18+天猫!H19+京东!H18 -> 156 | I20: =C店!I18+天猫!I19+京东!I18 -> 192.42 | J20: =C店!J18+天猫!J19+京东!J18 -> 213.92 | K20: =C店!K18+天猫!K19+京东!K18 -> 3222.2032 | L20: =C店!L18+天猫!L19+京东!L18 -> 84.25 | M20: =C店!M18+天猫!M19+京东!M18 -> 0 | N20: =C店!N18+天猫!N19+京东!N18 -> 0 | O20: =C店!O20+天猫!O20+京东!O20 -> 0 | Q20: =C店!P20+天猫!Q20+京东!Q20 -> 3488.25 | R20: =C店!Q20+天猫!R20+京东!R20 -> 13022.2 | S20: 4.733161327
A21: 2015-01-12 | B21: =C店!B21+天猫!B21+京东!B21 -> 28557.76 | C21: =C店!C19+天猫!C20+京东!C19 -> 910.48 | D21: =C店!D19+天猫!D20+京东!D19 -> 0 | E21: =C店!E21+天猫!E21+京东!E21 -> 23667.14 | H21: =C店!H19+天猫!H20+京东!H19 -> 0 | I21: =C店!I19+天猫!I20+京东!I19 -> 135.36 | J21: =C店!J19+天猫!J20+京东!J19 -> 123.27 | K21: =C店!K19+天猫!K20+京东!K19 -> 3369.0533 | L21: =C店!L19+天猫!L20+京东!L19 -> 127.7 | M21: =C店!M19+天猫!M20+京东!M19 -> 0 | N21: =C店!N19+天猫!N20+京东!N19 -> 0 | O21: =C店!O21+天猫!O21+京东!O21 -> 0 | Q21: =C店!P21+天猫!Q21+京东!Q21 -> 4802.9989 | R21: =C店!Q21+天猫!R21+京东!R21 -> 18864.1411 | S21: 4.927575561
A22: 2015-01-13 | B22: =C店!B22+天猫!B22+京东!B22 -> 30509.19 | C22: =C店!C20+天猫!C21+京东!C20 -> 401.76 | D22: =C店!D20+天猫!D21+京东!D20 -> 4004 | E22: =C店!E22+天猫!E22+京东!E22 -> 25831.11 | H22: =C店!H20+天猫!H21+京东!H20 -> 168 | I22: =C店!I20+天猫!I21+京东!I20 -> 306.6 | J22: =C店!J20+天猫!J21+京东!J20 -> 347.97 | K22: =C店!K20+天猫!K21+京东!K20 -> 3199.5 | L22: =C店!L20+天猫!L21+京东!L20 -> 188.79 | M22: =C店!M20+天猫!M21+京东!M20 -> 0 | N22: =C店!N20+天猫!N21+京东!N20 -> 0 | O22: =C店!O22+天猫!O22+京东!O22 -> 0 | Q22: =C店!P22+天猫!Q22+京东!Q22 -> 4361.82745 | R22: =C店!Q22+天猫!R22+京东!R22 -> 21469.28255 | S22: 5.922084332
A23: 2015-01-14 | B23: =C店!B23+天猫!B23+京东!B23 -> 26879.9 | C23: =C店!C21+天猫!C22+京东!C21 -> 886.62 | D23: =C店!D21+天猫!D22+京东!D21 -> 4290 | E23: =C店!E23+天猫!E23+京东!E23 -> 20972.56 | H23: =C店!H21+天猫!H22+京东!H21 -> 180 | I23: =C店!I21+天猫!I22+京东!I21 -> 355.8303 | J23: =C店!J21+天猫!J22+京东!J21 -> 370.09035 | K23: =C店!K21+天猫!K22+京东!K21 -> 3540.8239 | L23: =C店!L21+天猫!L22+京东!L21 -> 137.67 | M23: =C店!M21+天猫!M22+京东!M21 -> 0 | N23: =C店!N21+天猫!N22+京东!N21 -> 0 | O23: =C店!O23+天猫!O23+京东!O23 -> 0 | Q23: =C店!P23+天猫!Q23+京东!Q23 -> 4126.759 | R23: =C店!Q23+天猫!R23+京东!R23 -> 16845.801 | S23: 5.082089843
A24: 2015-01-15 | B24: =C店!B24+天猫!B24+京东!B24 -> 29886.6 | C24: =C店!C22+天猫!C23+京东!C22 -> 908.08 | D24: =C店!D22+天猫!D23+京东!D22 -> 4290 | E24: =C店!E24+天猫!E24+京东!E24 -> 24490.35 | H24: =C店!H22+天猫!H23+京东!H22 -> 180 | I24: =C店!I22+天猫!I23+京东!I22 -> 432.54 | J24: =C店!J22+天猫!J23+京东!J22 -> 437.92 | K24: =C店!K22+天猫!K23+京东!K22 -> 3059.8218 | L24: =C店!L22+天猫!L23+京东!L22 -> 224.61 | M24: =C店!M22+天猫!M23+京东!M22 -> 0 | N24: =C店!N22+天猫!N23+京东!N22 -> 0 | O24: =C店!O24+天猫!O24+京东!O24 -> 0 | Q24: =C店!P24+天猫!Q24+京东!Q24 -> 3175.8538 | R24: =C店!Q24+天猫!R24+京东!R24 -> 21314.4962 | S24: 7.711422358
A25: 2015-01-16 | B25: =C店!B25+天猫!B25+京东!B25 -> 20730.13 | C25: =C店!C23+天猫!C24+京东!C23 -> 1517.34 | D25: =C店!D23+天猫!D24+京东!D23 -> 4147 | E25: =C店!E25+天猫!E25+京东!E25 -> 14373.85 | H25: =C店!H23+天猫!H24+京东!H23 -> 174 | I25: =C店!I23+天猫!I24+京东!I23 -> 357.33 | J25: =C店!J23+天猫!J24+京东!J23 -> 373.52 | K25: =C店!K23+天猫!K24+京东!K23 -> 2969.444 | L25: =C店!L23+天猫!L24+京东!L23 -> 160.61 | M25: =C店!M23+天猫!M24+京东!M23 -> 0 | N25: =C店!N23+天猫!N24+京东!N23 -> 0 | O25: =C店!O25+天猫!O25+京东!O25 -> 0 | Q25: =C店!P25+天猫!Q25+京东!Q25 -> 2844.4658 | R25: =C店!Q25+天猫!R25+京东!R25 -> 11529.3842 | S25: 5.053268702
A26: 2015-01-17 | B26: =C店!B26+天猫!B26+京东!B26 -> 15372.57 | C26: =C店!C24+天猫!C25+京东!C24 -> 1421.25 | D26: =C店!D24+天猫!D25+京东!D24 -> 4004 | E26: =C店!E26+天猫!E26+京东!E26 -> 15178.45 | H26: =C店!H24+天猫!H25+京东!H24 -> 168 | I26: =C店!I24+天猫!I25+京东!I24 -> 241.71 | J26: =C店!J24+天猫!J25+京东!J24 -> 263.935 | K26: =C店!K24+天猫!K25+京东!K24 -> 2142.8588 | L26: =C店!L24+天猫!L25+京东!L24 -> 194.3 | M26: =C店!M24+天猫!M25+京东!M24 -> 0 | N26: =C店!N24+天猫!N25+京东!N24 -> 0 | O26: =C店!O26+天猫!O26+京东!O26 -> 0 | Q26: =C店!P26+天猫!Q26+京东!Q26 -> 2032.5029 | R26: =C店!Q26+天猫!R26+京东!R26 -> 13145.9471 | S26: 7.467861423
A27: 2015-01-18 | B27: =C店!B27+天猫!B27+京东!B27 -> 17227.8 | C27: =C店!C25+天猫!C26+京东!C25 -> 453.28 | D27: =C店!D25+天猫!D26+京东!D25 -> 1360 | E27: =C店!E27+天猫!E27+京东!E27 -> 16651.08 | H27: =C店!H25+天猫!H26+京东!H25 -> 30 | I27: =C店!I25+天猫!I26+京东!I25 -> 240.42 | J27: =C店!J25+天猫!J26+京东!J25 -> 213.92 | K27: =C店!K25+天猫!K26+京东!K25 -> 1864.1608 | L27: =C店!L25+天猫!L26+京东!L25 -> 108.4 | M27: =C店!M25+天猫!M26+京东!M25 -> 0 | N27: =C店!N25+天猫!N26+京东!N25 -> 0 | O27: =C店!O27+天猫!O27+京东!O27 -> 0 | Q27: =C店!P27+天猫!Q27+京东!Q27 -> 1587.9618 | R27: =C店!Q27+天猫!R27+京东!R27 -> 15063.1182 | S27: 10.48581899
A28: 2015-01-19 | B28: =C店!B28+天猫!B28+京东!B28 -> 28998.36 | C28: =C店!C26+天猫!C27+京东!C26 -> 141.12 | D28: =C店!D26+天猫!D27+京东!D26 -> 0 | E28: =C店!E28+天猫!E28+京东!E28 -> 22520.46 | H28: =C店!H26+天猫!H27+京东!H26 -> 0 | I28: =C店!I26+天猫!I27+京东!I26 -> 146.46 | J28: =C店!J26+天猫!J27+京东!J26 -> 161.21 | K28: =C店!K26+天猫!K27+京东!K26 -> 984.7429 | L28: =C店!L26+天猫!L27+京东!L26 -> 98.95 | M28: =C店!M26+天猫!M27+京东!M26 -> 0 | N28: =C店!N26+天猫!N27+京东!N26 -> 0 | O28: =C店!O28+天猫!O28+京东!O28 -> 0 | Q28: =C店!P28+天猫!Q28+京东!Q28 -> 3045.4815 | R28: =C店!Q28+天猫!R28+京东!R28 -> 19474.9785 | S28: 7.394712462
A29: 2015-01-20 | B29: =C店!B29+天猫!B29+京东!B29 -> 26638.26 | C29: =C店!C27+天猫!C28+京东!C27 -> 746.72 | D29: =C店!D27+天猫!D28+京东!D27 -> 4290 | E29: =C店!E29+天猫!E29+京东!E29 -> 22226.56 | H29: =C店!H27+天猫!H28+京东!H27 -> 180 | I29: =C店!I27+天猫!I28+京东!I27 -> 372.06 | J29: =C店!J27+天猫!J28+京东!J27 -> 397.53 | K29: =C店!K27+天猫!K28+京东!K27 -> 1337.2218 | L29: =C店!L27+天猫!L28+京东!L27 -> 83.67 | M29: =C店!M27+天猫!M28+京东!M27 -> 0 | N29: =C店!N27+天猫!N28+京东!N27 -> 0 | O29: =C店!O29+天猫!O29+京东!O29 -> 0 | Q29: =C店!P29+天猫!Q29+京东!Q29 -> 3177.1177 | R29: =C店!Q29+天猫!R29+京东!R29 -> 19049.4423 | S29: 6.995825178
A30: 2015-01-21 | B30: =C店!B30+天猫!B30+京东!B30 -> 26485.42 | C30: =C店!C28+天猫!C29+京东!C28 -> 249.9 | D30: =C店!D28+天猫!D29+京东!D28 -> 5486 | E30: =C店!E30+天猫!E30+京东!E30 -> 20185.51 | H30: =C店!H28+天猫!H29+京东!H28 -> 195 | I30: =C店!I28+天猫!I29+京东!I28 -> 456.18 | J30: =C店!J28+天猫!J29+京东!J28 -> 457.555 | K30: =C店!K28+天猫!K29+京东!K28 -> 2262.8865 | L30: =C店!L28+天猫!L29+京东!L28 -> 115.6 | M30: =C店!M28+天猫!M29+京东!M28 -> 0 | N30: =C店!N28+天猫!N29+京东!N28 -> 0 | O30: =C店!O30+天猫!O30+京东!O30 -> 0 | Q30: =C店!P30+天猫!Q30+京东!Q30 -> 3487.4399 | R30: =C店!Q30+天猫!R30+京东!R30 -> 16698.0701 | S30: 5.788059602
A31: 2015-01-22 | B31: =C店!B31+天猫!B31+京东!B31 -> 28741.6 | C31: =C店!C29+天猫!C30+京东!C29 -> 949.03 | D31: =C店!D29+天猫!D30+京东!D29 -> 3146 | E31: =C店!E31+天猫!E31+京东!E31 -> 23465.58 | H31: =C店!H29+天猫!H30+京东!H29 -> 132 | I31: =C店!I29+天猫!I30+京东!I29 -> 411.18 | J31: =C店!J29+天猫!J30+京东!J29 -> 404.6 | K31: =C店!K29+天猫!K30+京东!K29 -> 1883.6577 | L31: =C店!L29+天猫!L30+京东!L29 -> 83.59 | M31: =C店!M29+天猫!M30+京东!M29 -> 0 | N31: =C店!N29+天猫!N30+京东!N29 -> 0 | O31: =C店!O31+天猫!O31+京东!O31 -> 0 | Q31: =C店!P31+天猫!Q31+京东!Q31 -> 3398.4749 | R31: =C店!Q31+天猫!R31+京东!R31 -> 20067.1051 | S31: 6.904738358
A32: 2015-01-23 | B32: =C店!B32+天猫!B32+京东!B32 -> 32098.14 | C32: =C店!C30+天猫!C31+京东!C30 -> 1102.58 | D32: =C店!D30+天猫!D31+京东!D30 -> 5329 | E32: =C店!E32+天猫!E32+京东!E32 -> 23721.54 | H32: =C店!H30+天猫!H31+京东!H30 -> 183 | I32: =C店!I30+天猫!I31+京东!I30 -> 481.29 | J32: =C店!J30+天猫!J31+京东!J30 -> 448.77 | K32: =C店!K30+天猫!K31+京东!K30 -> 2460.3049 | L32: =C店!L30+天猫!L31+京东!L30 -> 72.6 | M32: =C店!M30+天猫!M31+京东!M30 -> 0 | N32: =C店!N30+天猫!N31+京东!N30 -> 0 | O32: =C店!O32+天猫!O32+京东!O32 -> 0 | Q32: =C店!P32+天猫!Q32+京东!Q32 -> 3437.4596 | R32: =C店!Q32+天猫!R32+京东!R32 -> 20284.0804 | S32: 6.900892741
A33: 2015-01-24 | B33: =C店!B33+天猫!B33+京东!B33 -> 31163.24 | C33: =C店!C31+天猫!C32+京东!C31 -> 1743.02 | D33: =C店!D31+天猫!D32+京东!D31 -> 3146 | E33: =C店!E33+天猫!E33+京东!E33 -> 21420.72 | H33: =C店!H31+天猫!H32+京东!H31 -> 132 | I33: =C店!I31+天猫!I32+京东!I31 -> 320.01 | J33: =C店!J31+天猫!J32+京东!J31 -> 312.62 | K33: =C店!K31+天猫!K32+京东!K31 -> 2249.2249 | L33: =C店!L31+天猫!L32+京东!L31 -> 67.81 | M33: =C店!M31+天猫!M32+京东!M31 -> 0 | N33: =C店!N31+天猫!N32+京东!N31 -> 0 | O33: =C店!O33+天猫!O33+京东!O33 -> 0 | Q33: =C店!P33+天猫!Q33+京东!Q33 -> 3522.9454 | R33: =C店!Q33+天猫!R33+京东!R33 -> 17897.7746 | S33: 6.080344021
A34: 2015-01-25 | B34: =C店!B34+天猫!B34+京东!B34 -> 22989.06 | C34: =C店!C32+天猫!C33+京东!C32 -> 1496.6 | D34: =C店!D32+天猫!D33+京东!D32 -> 6647 | E34: =C店!E34+天猫!E34+京东!E34 -> 22989.06 | H34: =C店!H32+天猫!H33+京东!H32 -> 159 | I34: =C店!I32+天猫!I33+京东!I32 -> 527.61 | J34: =C店!J32+天猫!J33+京东!J32 -> 439.11 | K34: =C店!K32+天猫!K33+京东!K32 -> 2398.2296 | L34: =C店!L32+天猫!L33+京东!L32 -> 100.55 | M34: =C店!M32+天猫!M33+京东!M32 -> 0 | N34: =C店!N32+天猫!N33+京东!N32 -> 0 | O34: =C店!O34+天猫!O34+京东!O34 -> 0 | Q34: =C店!P34+天猫!Q34+京东!Q34 -> 2727.045 | R34: =C店!Q34+天猫!R34+京东!R34 -> 20262.015 | S34: 8.430025907
A35: 2015-01-26 | B35: =C店!B35+天猫!B35+京东!B35 -> 32081.36 | C35: =C店!C33+天猫!C34+京东!C33 -> 529.52 | D35: =C店!D33+天猫!D34+京东!D33 -> 6300 | E35: =C店!E35+天猫!E35+京东!E35 -> 28433.54 | H35: =C店!H33+天猫!H34+京东!H33 -> 30 | I35: =C店!I33+天猫!I34+京东!I33 -> 534.18 | J35: =C店!J33+天猫!J34+京东!J33 -> 392.77 | K35: =C店!K33+天猫!K34+京东!K33 -> 2139.2504 | L35: =C店!L33+天猫!L34+京东!L33 -> 105.11 | M35: =C店!M33+天猫!M34+京东!M33 -> 0 | N35: =C店!N33+天猫!N34+京东!N33 -> 0 | O35: =C店!O35+天猫!O35+京东!O35 -> 0 | Q35: =C店!P35+天猫!Q35+京东!Q35 -> 4288.125 | R35: =C店!Q35+天猫!R35+京东!R35 -> 24145.415 | S35: 6.630762863
A36: 2015-01-27 | B36: =C店!B36+天猫!B36+京东!B36 -> 33087.14 | C36: =C店!C34+天猫!C35+京东!C34 -> 577 | D36: =C店!D36+天猫!D36+京东!D36 -> 5480 | E36: =C店!E36+天猫!E36+京东!E36 -> 26989.12 | H36: =C店!H34+天猫!H35+京东!H34 -> 108 | I36: =C店!I34+天猫!I35+京东!I34 -> 394.53 | J36: =C店!J34+天猫!J35+京东!J34 -> 404.04 | K36: =C店!K34+天猫!K35+京东!K34 -> 2446.24 | L36: =C店!L34+天猫!L35+京东!L34 -> 71.45 | M36: =C店!M34+天猫!M35+京东!M34 -> 500 | N36: =C店!N34+天猫!N35+京东!N34 -> 0 | O36: =C店!O36+天猫!O36+京东!O36 -> 0 | Q36: =C店!P36+天猫!Q36+京东!Q36 -> 3842.245 | R36: =C店!Q36+天猫!R36+京东!R36 -> 23146.875 | S36: 7.024310006
A37: 2015-01-28 | B37: =C店!B37+天猫!B37+京东!B37 -> 29341.6 | C37: =C店!C35+天猫!C36+京东!C35 -> 600.06 | D37: =C店!D35+天猫!D36+京东!D35 -> 2860 | E37: =C店!E37+天猫!E37+京东!E37 -> 25597.78 | H37: =C店!H35+天猫!H36+京东!H35 -> 120 | I37: =C店!I35+天猫!I36+京东!I35 -> 327.06 | J37: =C店!J35+天猫!J36+京东!J35 -> 348.81 | K37: =C店!K35+天猫!K36+京东!K35 -> 2901.77 | L37: =C店!L35+天猫!L36+京东!L35 -> 73.17 | M37: =C店!M35+天猫!M36+京东!M35 -> 0 | N37: =C店!N35+天猫!N36+京东!N35 -> 0 | O37: =C店!O37+天猫!O37+京东!O37 -> 0 | Q37: =C店!P37+天猫!Q37+京东!Q37 -> 4333.42 | R37: =C店!Q37+天猫!R37+京东!R37 -> 21264.36 | S37: 5.907061859
A38: 2015-01-29 | B38: =C店!B38+天猫!B38+京东!B38 -> 26108.9 | C38: =C店!C36+天猫!C37+京东!C36 -> 882.78 | D38: =C店!D36+天猫!D37+京东!D36 -> 5623 | E38: =C店!E38+天猫!E38+京东!E38 -> 22982.38 | H38: =C店!H36+天猫!H37+京东!H36 -> 156 | I38: =C店!I36+天猫!I37+京东!I36 -> 471.87 | J38: =C店!J36+天猫!J37+京东!J36 -> 431.69 | K38: =C店!K36+天猫!K37+京东!K36 -> 3190.89 | L38: =C店!L36+天猫!L37+京东!L36 -> 12.52 | M38: =C店!M36+天猫!M37+京东!M36 -> 0 | N38: =C店!N36+天猫!N37+京东!N36 -> 0 | O38: =C店!O38+天猫!O38+京东!O38 -> 0 | Q38: =C店!P38+天猫!Q38+京东!Q38 -> 3760.835 | R38: =C店!Q38+天猫!R38+京东!R38 -> 19221.545 | S38: 6.110978014
A39: 2015-01-30 | B39: =C店!B39+天猫!B39+京东!B39 -> 24234.38 | C39: =C店!C37+天猫!C38+京东!C37 -> 488.82 | D39: =C店!D37+天猫!D38+京东!D37 -> 2900 | E39: =C店!E39+天猫!E39+京东!E39 -> 22321.82 | H39: =C店!H37+天猫!H38+京东!H37 -> 120 | I39: =C店!I37+天猫!I38+京东!I37 -> 599.22 | J39: =C店!J37+天猫!J38+京东!J37 -> 481.495 | K39: =C店!K37+天猫!K38+京东!K37 -> 2861.92 | L39: =C店!L37+天猫!L38+京东!L37 -> 110.26 | M39: =C店!M37+天猫!M38+京东!M37 -> 0 | N39: =C店!N37+天猫!N38+京东!N37 -> 0 | O39: =C店!O39+天猫!O39+京东!O39 -> 0 | Q39: =C店!P39+天猫!Q39+京东!Q39 -> 2319.87 | R39: =C店!Q39+天猫!R39+京东!R39 -> 20001.95 | S39: 9.622013302
A40: 2015-01-31 | B40: =C店!B40+天猫!B40+京东!B40 -> 19614.66 | C40: =C店!C38+天猫!C39+京东!C38 -> 587 | D40: =C店!D38+天猫!D39+京东!D38 -> 0 | E40: =C店!E40+天猫!E40+京东!E40 -> 19614.66 | H40: =C店!H38+天猫!H39+京东!H38 -> 0 | I40: =C店!I38+天猫!I39+京东!I38 -> 125.52 | J40: =C店!J38+天猫!J39+京东!J38 -> 111.475 | K40: =C店!K38+天猫!K39+京东!K38 -> 2136.06 | L40: =C店!L38+天猫!L39+京东!L38 -> 49.44 | M40: =C店!M38+天猫!M39+京东!M38 -> 0 | N40: =C店!N38+天猫!N39+京东!N38 -> 0 | O40: =C店!O40+天猫!O40+京东!O40 -> 0 | Q40: =C店!P40+天猫!Q40+京东!Q40 -> 4985.5323 | R40: =C店!Q40+天猫!R40+京东!R40 -> 14629.1277 | S40: 3.934316101
A41: 1月合计 | B41: =C店!B39+天猫!B40+京东!B39 -> 25585.38 | C41: =C店!C39+天猫!C40+京东!C39 -> 1436.08 | D41: =C店!D39+天猫!D40+京东!D39 -> 0 | E41: =C店!E41+天猫!E41+京东!E41 -> 862306.85 | F41: 850000 | H41: =C店!H39+天猫!H40+京东!H39 -> 0 | I41: =C店!I39+天猫!I40+京东!I39 -> 142.71 | J41: =C店!J39+天猫!J40+京东!J39 -> 145.145 | K41: =C店!K41+天猫!K41+京东!K41 -> 84901.1693 | L41: =C店!L39+天猫!L40+京东!L39 -> 62.05 | M41: =C店!M39+天猫!M40+京东!M39 -> 0 | N41: =C店!N39+天猫!N40+京东!N39 -> 0 | O41: =C店!O41+天猫!O41+京东!O41 -> 0 | P41: =C店!#REF!+天猫!P41+京东!P41 ->  | Q41: =C店!P41+天猫!Q41+京东!Q41 -> 112977.9349 | R41: =C店!Q41+天猫!R41+京东!R41 -> 749328.915 | S41: 7.632524443 | T41: =E41*0.25-Q41 -> 102598.7775
A42: 2015-02-01 | B42: =C店!B40+天猫!B41+京东!B40 -> 218209.67 | C42: =C店!C40+天猫!C41+京东!C40 -> 5299.05 | D42: =C店!D40+天猫!D41+京东!D40 -> 66356 | E42: =C店!E42+天猫!E42+京东!E42 -> 19992.38 | F42: 0 | G42: =E42/F42 ->  | H42: =C店!H40+天猫!H41+京东!H40 -> 2784 | I42: =C店!I40+天猫!I41+京东!I40 -> 6071.4003 | J42: =C店!J40+天猫!J41+京东!J40 -> 7078.96035 | K42: =C店!K40+天猫!K41+京东!K40 -> 26675.9373 | L42: =C店!L40+天猫!L41+京东!L40 -> 700.02 | M42: =C店!M40+天猫!M41+京东!M40 -> 500 | N42: =C店!N40+天猫!N41+京东!N40 -> 0 | O42: =C店!O42+天猫!O42+京东!O42 -> 0 | P42: 0 | Q42: =C店!P42+天猫!Q42+京东!Q42 -> 2700.9042 | R42: =C店!Q42+天猫!R42+京东!R42 -> 17291.4758 | S42: 7.402106302
A43: 2015-02-02 | B43: =C店!B41+天猫!B42+京东!B41 -> 786508.82 | C43: =C店!C41+天猫!C42+京东!C41 -> 33039.93 | D43: =C店!D41+天猫!D42+京东!D41 -> 18018 | E43: =C店!E43+天猫!E43+京东!E43 -> 18913.03 | H43: =C店!H41+天猫!H42+京东!H41 -> 219 | I43: =C店!I41+天猫!I42+京东!I41 -> 3170.97 | J43: =C店!J41+天猫!J42+京东!J41 -> 1913.1 | K43: =C店!K41+天猫!K42+京东!K41 -> 60262.6593 | L43: =C店!L41+天猫!L42+京东!L41 -> 3191.08 | M43: =C店!M41+天猫!M42+京东!M41 -> 0 | N43: =C店!N41+天猫!N42+京东!N41 -> 0 | O43: =C店!O43+天猫!O43+京东!O43 -> 0 | Q43: =C店!P43+天猫!Q43+京东!Q43 -> 3197.8874 | R43: =C店!Q43+天猫!R43+京东!R43 -> 15715.1426 | S43: 5.914226373
A44: 2015-02-03 | B44: =C店!B42+天猫!B43+京东!B42 -> 22142.36 | C44: =C店!C42+天猫!C43+京东!C42 -> 1554.19 | D44: =C店!D42+天猫!D43+京东!D42 -> 0 | E44: =C店!E44+天猫!E44+京东!E44 -> 89091.92 | H44: =C店!H42+天猫!H43+京东!H42 -> 0 | I44: =C店!I42+天猫!I43+京东!I42 -> 247.65 | J44: =C店!J42+天猫!J43+京东!J42 -> 233.205 | K44: =C店!K42+天猫!K43+京东!K42 -> 2307.2392 | L44: =C店!L42+天猫!L43+京东!L42 -> 137.55 | M44: =C店!M42+天猫!M43+京东!M42 -> 0 | N44: =C店!N42+天猫!N43+京东!N42 -> 0 | O44: =C店!O44+天猫!O44+京东!O44 -> 0 | Q44: =C店!P44+天猫!Q44+京东!Q44 -> 5425.9321 | R44: =C店!Q44+天猫!R44+京东!R44 -> 83665.9879 | S44: 16.41965258
A45: 2015-02-04 | B45: =C店!B43+天猫!B44+京东!B43 -> 51377.8 | C45: =C店!C43+天猫!C44+京东!C43 -> 1861.56 | D45: =C店!D43+天猫!D44+京东!D43 -> 0 | E45: =C店!E45+天猫!E45+京东!E45 -> 42814.66 | H45: =C店!H43+天猫!H44+京东!H43 -> 0 | I45: =C店!I43+天猫!I44+京东!I43 -> 1118.4 | J45: =C店!J43+天猫!J44+京东!J43 -> 1280.58 | K45: =C店!K43+天猫!K44+京东!K43 -> 2800.5124 | L45: =C店!L43+天猫!L44+京东!L43 -> 26.36 | M45: =C店!M43+天猫!M44+京东!M43 -> 0 | N45: =C店!N43+天猫!N44+京东!N43 -> 0 | O45: =C店!O45+天猫!O45+京东!O45 -> 0 | Q45: =C店!P45+天猫!Q45+京东!Q45 -> 4306.41 | R45: =C店!Q45+天猫!R45+京东!R45 -> 38508.25 | S45: 9.942077043
A46: 2015-02-05 | B46: =C店!B44+天猫!B45+京东!B44 -> 80854 | C46: =C店!C44+天猫!C45+京东!C44 -> 1484.08 | D46: =C店!D44+天猫!D45+京东!D44 -> 0 | E46: =C店!E46+天猫!E46+京东!E46 -> 28537.14 | H46: =C店!H44+天猫!H45+京东!H44 ->  | I46: =C店!I44+天猫!I45+京东!I44 -> 848.7 | J46: =C店!J44+天猫!J45+京东!J44 -> 945.49 | K46: =C店!K44+天猫!K45+京东!K44 -> 2841.7121 | L46: =C店!L44+天猫!L45+京东!L44 -> 138.1 | M46: =C店!M44+天猫!M45+京东!M44 -> 0 | N46: =C店!N44+天猫!N45+京东!N44 -> 0 | O46: =C店!O46+天猫!O46+京东!O46 -> 0 | Q46: =C店!P46+天猫!Q46+京东!Q46 -> 2930.6275 | R46: =C店!Q46+天猫!R46+京东!R46 -> 25606.5125 | S46: 9.737552794
A47: 2015-02-06 | B47: =C店!B45+天猫!B46+京东!B45 -> 28786.36 | C47: =C店!C45+天猫!C46+京东!C45 -> 2427.7 | D47: =C店!D45+天猫!D46+京东!D45 -> 0 | E47: =C店!E47+天猫!E47+京东!E47 -> 15963.67 | H47: =C店!H45+天猫!H46+京东!H45 ->  | I47: =C店!I45+天猫!I46+京东!I45 -> 353.7 | J47: =C店!J45+天猫!J46+京东!J45 -> 365.575 | K47: =C店!K45+天猫!K46+京东!K45 -> 2318.685 | L47: =C店!L45+天猫!L46+京东!L45 -> 29.99 | M47: =C店!M45+天猫!M46+京东!M45 -> 0 | N47: =C店!N45+天猫!N46+京东!N45 -> 0 | O47: =C店!O47+天猫!O47+京东!O47 -> 0 | Q47: =C店!P47+天猫!Q47+京东!Q47 -> 1946.0731 | R47: =C店!Q47+天猫!R47+京东!R47 -> 14017.5969 | S47: 8.203016629
A48: 2015-02-07 | B48: =C店!B46+天猫!B47+京东!B46 -> 25858.28 | C48: =C店!C46+天猫!C47+京东!C46 -> 1883.33 | D48: =C店!D46+天猫!D47+京东!D46 -> 0 | E48: =C店!E48+天猫!E48+京东!E48 -> 13300.99 | H48: =C店!H46+天猫!H47+京东!H46 ->  | I48: =C店!I46+天猫!I47+京东!I46 -> 221.13 | J48: =C店!J46+天猫!J47+京东!J46 -> 217.98 | K48: =C店!K46+天猫!K47+京东!K46 -> 1826.7325 | L48: =C店!L46+天猫!L47+京东!L46 -> 91.23 | M48: =C店!M46+天猫!M47+京东!M46 -> 0 | N48: =C店!N46+天猫!N47+京东!N46 -> 0 | O48: =C店!O48+天猫!O48+京东!O48 -> 0 | Q48: =C店!P48+天猫!Q48+京东!Q48 -> 2156.5128 | R48: =C店!Q48+天猫!R48+京东!R48 -> 11144.4772 | S48: 6.167823349
A49: 2015-02-08 | B49: =C店!B47+天猫!B48+京东!B47 -> 18405.12 | C49: =C店!C47+天猫!C48+京东!C47 -> 3722.26 | D49: =C店!D47+天猫!D48+京东!D47 -> 0 | E49: =C店!E49+天猫!E49+京东!E49 -> 17026.18 | H49: =C店!H47+天猫!H48+京东!H47 -> 0 | I49: =C店!I47+天猫!I48+京东!I47 -> 127.83 | J49: =C店!J47+天猫!J48+京东!J47 -> 141.225 | K49: =C店!K47+天猫!K48+京东!K47 -> 1520.1781 | L49: =C店!L47+天猫!L48+京东!L47 -> 95.8 | M49: =C店!M47+天猫!M48+京东!M47 -> 0 | N49: =C店!N47+天猫!N48+京东!N47 -> 0 | O49: =C店!O49+天猫!O49+京东!O49 -> 0 | Q49: =C店!P49+天猫!Q49+京东!Q49 -> 1789.9657 | R49: =C店!Q49+天猫!R49+京东!R49 -> 15236.2143 | S49: 9.512014672
A50: 2015-02-09 | B50: =C店!B48+天猫!B49+京东!B48 -> 15485.14 | C50: =C店!C48+天猫!C49+京东!C48 -> 1329.15 | D50: =C店!D48+天猫!D49+京东!D48 -> 0 | E50: =C店!E50+天猫!E50+京东!E50 -> 17731.86 | H50: =C店!H48+天猫!H49+京东!H48 -> 0 | I50: =C店!I48+天猫!I49+京东!I48 -> 162.48 | J50: =C店!J48+天猫!J49+京东!J48 -> 165.865 | K50: =C店!K48+天猫!K49+京东!K48 -> 1721.2428 | L50: =C店!L48+天猫!L49+京东!L48 -> 64.09 | M50: =C店!M48+天猫!M49+京东!M48 -> 0 | N50: =C店!N48+天猫!N49+京东!N48 -> 0 | O50: =C店!O50+天猫!O50+京东!O50 -> 0 | Q50: =C店!P50+天猫!Q50+京东!Q50 -> 1976.4649 | R50: =C店!Q50+天猫!R50+京东!R50 -> 15755.3951 | S50: 8.971502605
A51: 2015-02-10 | B51: =C店!B49+天猫!B50+京东!B49 -> 22870.42 | C51: =C店!C49+天猫!C50+京东!C49 -> 1838.24 | D51: =C店!D49+天猫!D50+京东!D49 -> 0 | E51: =C店!E51+天猫!E51+京东!E51 -> 17153.72 | H51: =C店!H49+天猫!H50+京东!H49 -> 0 | I51: =C店!I49+天猫!I50+京东!I49 -> 310.89 | J51: =C店!J49+天猫!J50+京东!J49 -> 322.28 | K51: =C店!K49+天猫!K50+京东!K49 -> 1431.2407 | L51: =C店!L49+天猫!L50+京东!L49 -> 37.57 | M51: =C店!M49+天猫!M50+京东!M49 -> 0 | N51: =C店!N49+天猫!N50+京东!N49 -> 0 | O51: =C店!O51+天猫!O51+京东!O51 -> 0 | Q51: =C店!P51+天猫!Q51+京东!Q51 -> 1913.8898 | R51: =C店!Q51+天猫!R51+京东!R51 -> 15239.8302 | S51: 8.962752192
A52: 2015-02-11 | B52: =C店!B50+天猫!B51+京东!B50 -> 16800.08 | C52: =C店!C50+天猫!C51+京东!C50 -> 1471.22 | D52: =C店!D50+天猫!D51+京东!D50 -> 0 | E52: =C店!E52+天猫!E52+京东!E52 -> 11045.44 | H52: =C店!H50+天猫!H51+京东!H50 -> 0 | I52: =C店!I50+天猫!I51+京东!I50 -> 196.74 | J52: =C店!J50+天猫!J51+京东!J50 -> 216.265 | K52: =C店!K50+天猫!K51+京东!K50 -> 1271.2849 | L52: =C店!L50+天猫!L51+京东!L50 -> 63.91 | M52: =C店!M50+天猫!M51+京东!M50 -> 0 | N52: =C店!N50+天猫!N51+京东!N50 -> 0 | O52: =C店!O52+天猫!O52+京东!O52 -> 0 | Q52: =C店!P52+天猫!Q52+京东!Q52 -> 1216.2223 | R52: =C店!Q52+天猫!R52+京东!R52 -> 9829.2177 | S52: 9.081760793
A53: 2015-02-12 | B53: =C店!B51+天猫!B52+京东!B51 -> 16202.2 | C53: =C店!C51+天猫!C52+京东!C51 -> 1805.48 | D53: =C店!D51+天猫!D52+京东!D51 -> 0 | E53: =C店!E53+天猫!E53+京东!E53 -> 8648.1 | H53: =C店!H51+天猫!H52+京东!H51 -> 0 | I53: =C店!I51+天猫!I52+京东!I51 -> 125.64 | J53: =C店!J51+天猫!J52+京东!J51 -> 122.78 | K53: =C店!K51+天猫!K52+京东!K51 -> 1403.1198 | L53: =C店!L51+天猫!L52+京东!L51 -> 49.95 | M53: =C店!M51+天猫!M52+京东!M51 -> 0 | N53: =C店!N51+天猫!N52+京东!N51 -> 0 | O53: =C店!O53+天猫!O53+京东!O53 -> 0 | Q53: =C店!P53+天猫!Q53+京东!Q53 -> 1377.4615 | R53: =C店!Q53+天猫!R53+京东!R53 -> 7270.6385 | S53: 6.278287996
A54: 2015-02-13 | B54: =C店!B52+天猫!B53+京东!B52 -> 10898.96 | C54: =C店!C52+天猫!C53+京东!C52 -> 1822.52 | D54: =C店!D52+天猫!D53+京东!D52 -> 0 | E54: =C店!E54+天猫!E54+京东!E54 -> 3843.98 | H54: =C店!H52+天猫!H53+京东!H52 -> 0 | I54: =C店!I52+天猫!I53+京东!I52 -> 60.75 | J54: =C店!J52+天猫!J53+京东!J52 -> 51.485 | K54: =C店!K52+天猫!K53+京东!K52 -> 1033.2223 | L54: =C店!L52+天猫!L53+京东!L52 -> 32.65 | M54: =C店!M52+天猫!M53+京东!M52 -> 0 | N54: =C店!N52+天猫!N53+京东!N52 -> 0 | O54: =C店!O54+天猫!O54+京东!O54 -> 0 | Q54: =C店!P54+天猫!Q54+京东!Q54 -> 579.5836 | R54: =C店!Q54+天猫!R54+京东!R54 -> 3264.3964 | S54: 6.632313268
A55: 2015-02-14 | B55: =C店!B53+天猫!B54+京东!B53 -> 9698.5 | C55: =C店!C53+天猫!C54+京东!C53 -> 1119.4 | D55: =C店!D53+天猫!D54+京东!D53 -> 0 | E55: =C店!E55+天猫!E55+京东!E55 -> 2719.12 | H55: =C店!H53+天猫!H54+京东!H53 -> 0 | I55: =C店!I53+天猫!I54+京东!I53 -> 32.55 | J55: =C店!J53+天猫!J54+京东!J53 -> 36.05 | K55: =C店!K53+天猫!K54+京东!K53 -> 913.2815 | L55: =C店!L53+天猫!L54+京东!L53 -> 161.99 | M55: =C店!M53+天猫!M54+京东!M53 -> 0 | N55: =C店!N53+天猫!N54+京东!N53 -> 0 | O55: =C店!O55+天猫!O55+京东!O55 -> 0 | Q55: =C店!P55+天猫!Q55+京东!Q55 -> 315.6622 | R55: =C店!Q55+天猫!R55+京东!R55 -> 2403.4578 | S55: 8.614018403
A56: 2015-02-15 | B56: =C店!B54+天猫!B55+京东!B54 -> 4353.02 | C56: =C店!C54+天猫!C55+京东!C54 -> 680.04 | D56: =C店!D54+天猫!D55+京东!D54 -> 0 | E56: =C店!E56+天猫!E56+京东!E56 -> 1265.66 | H56: =C店!H54+天猫!H55+京东!H54 -> 0 | I56: =C店!I54+天猫!I55+京东!I54 -> 24.57 | J56: =C店!J54+天猫!J55+京东!J54 -> 21.735 | K56: =C店!K54+天猫!K55+京东!K54 -> 285.3486 | L56: =C店!L54+天猫!L55+京东!L54 -> 32.08 | M56: =C店!M54+天猫!M55+京东!M54 -> 0 | N56: =C店!N54+天猫!N55+京东!N54 -> 0 | O56: =C店!O56+天猫!O56+京东!O56 -> 0 | Q56: =C店!P56+天猫!Q56+京东!Q56 -> 361.1381 | R56: =C店!Q56+天猫!R56+京东!R56 -> 904.5219 | S56: 3.504642684
A57: 2015-02-16 | B57: =C店!B55+天猫!B56+京东!B55 -> 2742.12 | C57: =C店!C55+天猫!C56+京东!C55 -> 90 | D57: =C店!D55+天猫!D56+京东!D55 -> 0 | E57: =C店!E57+天猫!E57+京东!E57 -> 2015.42 | H57: =C店!H55+天猫!H56+京东!H55 -> 0 | I57: =C店!I55+天猫!I56+京东!I55 -> 45 | J57: =C店!J55+天猫!J56+京东!J55 -> 30.17 | K57: =C店!K55+天猫!K56+京东!K55 -> 145.5872 | L57: =C店!L55+天猫!L56+京东!L55 -> 120.66 | M57: =C店!M55+天猫!M56+京东!M55 -> 0 | N57: =C店!N55+天猫!N56+京东!N55 -> 0 | O57: =C店!O57+天猫!O57+京东!O57 -> 0 | Q57: =C店!P57+天猫!Q57+京东!Q57 -> 295.5224 | R57: =C店!Q57+天猫!R57+京东!R57 -> 1719.8976 | S57: 6.81985528
A58: 2015-02-17 | B58: =C店!B56+天猫!B57+京东!B56 -> 2188.66 | C58: =C店!C56+天猫!C57+京东!C56 -> 55 | D58: =C店!D56+天猫!D57+京东!D56 -> 0 | E58: =C店!E58+天猫!E58+京东!E58 -> 2725.44 | H58: =C店!H56+天猫!H57+京东!H56 -> 0 | I58: =C店!I56+天猫!I57+京东!I56 -> 45.12 | J58: =C店!J56+天猫!J57+京东!J56 -> 45.43 | K58: =C店!K56+天猫!K57+京东!K56 -> 193.5081 | L58: =C店!L56+天猫!L57+京东!L56 -> 114.28 | M58: =C店!M56+天猫!M57+京东!M56 -> 0 | N58: =C店!N56+天猫!N57+京东!N56 -> 0 | O58: =C店!O58+天猫!O58+京东!O58 -> 0 | Q58: =C店!P58+天猫!Q58+京东!Q58 -> 248.6845 | R58: =C店!Q58+天猫!R58+京东!R58 -> 2476.7555 | S58: 10.95942851
A59: 2015-02-18 | B59: =C店!B57+天猫!B58+京东!B57 -> 2503.34 | C59: =C店!C57+天猫!C58+京东!C57 -> 246.92 | D59: =C店!D57+天猫!D58+京东!D57 -> 0 | E59: =C店!E59+天猫!E59+京东!E59 -> 2185.16 | H59: =C店!H57+天猫!H58+京东!H57 -> 0 | I59: =C店!I57+天猫!I58+京东!I57 -> 39.99 | J59: =C店!J57+天猫!J58+京东!J57 -> 46.655 | K59: =C店!K57+天猫!K58+京东!K57 -> 160.6524 | L59: =C店!L57+天猫!L58+京东!L57 -> 55.44 | M59: =C店!M57+天猫!M58+京东!M57 -> 0 | N59: =C店!N57+天猫!N58+京东!N57 -> 0 | O59: =C店!O59+天猫!O59+京东!O59 -> 0 | Q59: =C店!P59+天猫!Q59+京东!Q59 -> 144.9999 | R59: =C店!Q59+天猫!R59+京东!R59 -> 2040.1601 | S59: 15.07007936
A60: 2015-02-19 | B60: =C店!B58+天猫!B59+京东!B58 -> 1782.44 | C60: =C店!C58+天猫!C59+京东!C58 -> 0 | D60: =C店!D58+天猫!D59+京东!D58 -> 0 | E60: =C店!E60+天猫!E60+京东!E60 -> 2600.52 | H60: =C店!H58+天猫!H59+京东!H58 -> 0 | I60: =C店!I58+天猫!I59+京东!I58 -> 11.7 | J60: =C店!J58+天猫!J59+京东!J58 -> 13.65 | K60: =C店!K58+天猫!K59+京东!K58 -> 149.3395 | L60: =C店!L58+天猫!L59+京东!L58 -> 9.05 | M60: =C店!M58+天猫!M59+京东!M58 -> 0 | N60: =C店!N58+天猫!N59+京东!N58 -> 0 | O60: =C店!O60+天猫!O60+京东!O60 -> 0 | Q60: =C店!P60+天猫!Q60+京东!Q60 -> 280.8912 | R60: =C店!Q60+天猫!R60+京东!R60 -> 2319.6288 | S60: 9.258104205
A61: 2015-02-20 | B61: =C店!B59+天猫!B60+京东!B59 -> 3357.16 | C61: =C店!C59+天猫!C60+京东!C59 -> 60 | D61: =C店!D59+天猫!D60+京东!D59 -> 0 | E61: =C店!E61+天猫!E61+京东!E61 -> 5587.96 | H61: =C店!H59+天猫!H60+京东!H59 -> 0 | I61: =C店!I59+天猫!I60+京东!I59 -> 46.86 | J61: =C店!J59+天猫!J60+京东!J59 -> 54.67 | K61: =C店!K59+天猫!K60+京东!K59 -> 102.2499 | L61: =C店!L59+天猫!L60+京东!L59 -> 48.23 | M61: =C店!M59+天猫!M60+京东!M59 -> 0 | N61: =C店!N59+天猫!N60+京东!N59 -> 0 | O61: =C店!O61+天猫!O61+京东!O61 -> 0 | Q61: =C店!P61+天猫!Q61+京东!Q61 -> 500.9155 | R61: =C店!Q61+天猫!R61+京东!R61 -> 5087.0445 | S61: 11.15549429
A62: 2015-02-21 | B62: =C店!B60+天猫!B61+京东!B60 -> 3958.52 | C62: =C店!C60+天猫!C61+京东!C60 -> 154 | D62: =C店!D60+天猫!D61+京东!D60 -> 0 | E62: =C店!E62+天猫!E62+京东!E62 -> 4592.95 | H62: =C店!H60+天猫!H61+京东!H60 -> 0 | I62: =C店!I60+天猫!I61+京东!I60 -> 81.18 | J62: =C店!J60+天猫!J61+京东!J60 -> 94.71 | K62: =C店!K60+天猫!K61+京东!K60 -> 161.4012 | L62: =C店!L60+天猫!L61+京东!L60 -> 40.66 | M62: =C店!M60+天猫!M61+京东!M60 -> 0 | N62: =C店!N60+天猫!N61+京东!N60 -> 0 | O62: =C店!O62+天猫!O62+京东!O62 -> 0 | Q62: =C店!P62+天猫!Q62+京东!Q62 -> 363.6839 | R62: =C店!Q62+天猫!R62+京东!R62 -> 4229.2661 | S62: 12.62896158
A63: 2015-02-22 | B63: =C店!B61+天猫!B62+京东!B61 -> 4429.96 | C63: =C店!C61+天猫!C62+京东!C61 -> 186 | D63: =C店!D61+天猫!D62+京东!D61 -> 0 | E63: =C店!E63+天猫!E63+京东!E63 -> 5850.22 | H63: =C店!H61+天猫!H62+京东!H61 -> 0 | I63: =C店!I61+天猫!I62+京东!I61 -> 78.06 | J63: =C店!J61+天猫!J62+京东!J61 -> 72.625 | K63: =C店!K61+天猫!K62+京东!K61 -> 204.2305 | L63: =C店!L61+天猫!L62+京东!L61 -> 35.36 | M63: =C店!M61+天猫!M62+京东!M61 -> 0 | N63: =C店!N61+天猫!N62+京东!N61 -> 0 | O63: =C店!O63+天猫!O63+京东!O63 -> 0 | Q63: =C店!P63+天猫!Q63+京东!Q63 -> 443.2855 | R63: =C店!Q63+天猫!R63+京东!R63 -> 5406.9345 | S63: 13.19740889
A64: 2015-02-23 | B64: =C店!B62+天猫!B63+京东!B62 -> 5125.9 | C64: =C店!C62+天猫!C63+京东!C62 -> 598.95 | D64: =C店!D62+天猫!D63+京东!D62 -> 0 | E64: =C店!E64+天猫!E64+京东!E64 -> 9393.38 | H64: =C店!H62+天猫!H63+京东!H62 -> 0 | I64: =C店!I62+天猫!I63+京东!I62 -> 83.04 | J64: =C店!J62+天猫!J63+京东!J62 -> 73.43 | K64: =C店!K62+天猫!K63+京东!K62 -> 235.5739 | L64: =C店!L62+天猫!L63+京东!L62 -> 0 | M64: =C店!M62+天猫!M63+京东!M62 -> 0 | N64: =C店!N62+天猫!N63+京东!N62 -> 0 | O64: =C店!O64+天猫!O64+京东!O64 -> 0 | Q64: =C店!P64+天猫!Q64+京东!Q64 -> 569.8575 | R64: =C店!Q64+天猫!R64+京东!R64 -> 8823.5225 | S64: 16.48373497
A65: 2015-02-24 | B65: =C店!B63+天猫!B64+京东!B63 -> 7319.22 | C65: =C店!C63+天猫!C64+京东!C63 -> 506 | D65: =C店!D63+天猫!D64+京东!D63 -> 0 | E65: =C店!E65+天猫!E65+京东!E65 -> 14753.28 | H65: =C店!H63+天猫!H64+京东!H63 -> 0 | I65: =C店!I63+天猫!I64+京东!I63 -> 98.79 | J65: =C店!J63+天猫!J64+京东!J63 -> 97.16 | K65: =C店!K63+天猫!K64+京东!K63 -> 330.6205 | L65: =C店!L63+天猫!L64+京东!L63 -> 25.8 | M65: =C店!M63+天猫!M64+京东!M63 -> 0 | N65: =C店!N63+天猫!N64+京东!N63 -> 0 | O65: =C店!O65+天猫!O65+京东!O65 -> 0 | Q65: =C店!P65+天猫!Q65+京东!Q65 -> 794.0121 | R65: =C店!Q65+天猫!R65+京东!R65 -> 13959.2679 | S65: 18.58067402
A66: 2015-02-25 | B66: =C店!B64+天猫!B65+京东!B64 -> 11533.38 | C66: =C店!C64+天猫!C65+京东!C64 -> 0 | D66: =C店!D64+天猫!D65+京东!D64 -> 0 | E66: =C店!E66+天猫!E66+京东!E66 -> 16854.52 | H66: =C店!H64+天猫!H65+京东!H64 -> 0 | I66: =C店!I64+天猫!I65+京东!I64 -> 169.83 | J66: =C店!J64+天猫!J65+京东!J64 -> 176.05 | K66: =C店!K64+天猫!K65+京东!K64 -> 388.1075 | L66: =C店!L64+天猫!L65+京东!L64 -> 0 | M66: =C店!M64+天猫!M65+京东!M64 -> 0 | N66: =C店!N64+天猫!N65+京东!N64 -> 0 | O66: =C店!O66+天猫!O66+京东!O66 -> 0 | Q66: =C店!P66+天猫!Q66+京东!Q66 -> 972.6878 | R66: =C店!Q66+天猫!R66+京东!R66 -> 15881.8322 | S66: 17.32777979
A67: 2015-02-26 | B67: =C店!B65+天猫!B66+京东!B65 -> 14337.28 | C67: =C店!C65+天猫!C66+京东!C65 -> 549.44 | D67: =C店!D65+天猫!D66+京东!D65 -> 0 | E67: =C店!E67+天猫!E67+京东!E67 -> 35276 | H67: =C店!H65+天猫!H66+京东!H65 -> 0 | I67: =C店!I65+天猫!I66+京东!I65 -> 174.39 | J67: =C店!J65+天猫!J66+京东!J65 -> 171.43 | K67: =C店!K65+天猫!K66+京东!K65 -> 511.2321 | L67: =C店!L65+天猫!L66+京东!L65 -> 0 | M67: =C店!M65+天猫!M66+京东!M65 -> 0 | N67: =C店!N65+天猫!N66+京东!N65 -> 0 | O67: =C店!O67+天猫!O67+京东!O67 -> 0 | Q67: =C店!P67+天猫!Q67+京东!Q67 -> 2042.5214 | R67: =C店!Q67+天猫!R67+京东!R67 -> 33233.4786 | S67: 17.27081048
A68: 2015-02-27 | B68: =C店!B66+天猫!B67+京东!B66 -> 24284.96 | C68: =C店!C66+天猫!C67+京东!C66 -> 949.02 | D68: =C店!D66+天猫!D67+京东!D66 -> 0 | E68: =C店!E68+天猫!E68+京东!E68 -> 35462.46 | H68: =C店!H66+天猫!H67+京东!H66 -> 0 | I68: =C店!I66+天猫!I67+京东!I66 -> 384.6 | J68: =C店!J66+天猫!J67+京东!J66 -> 407.575 | K68: =C店!K66+天猫!K67+京东!K66 -> 1300.2178 | L68: =C店!L66+天猫!L67+京东!L66 -> 0 | M68: =C店!M66+天猫!M67+京东!M66 -> 0 | N68: =C店!N66+天猫!N67+京东!N66 -> 0 | O68: =C店!O68+天猫!O68+京东!O68 -> 0 | Q68: =C店!P68+天猫!Q68+京东!Q68 -> 2638.2106 | R68: =C店!Q68+天猫!R68+京东!R68 -> 32824.2494 | S68: 13.44186093
A69: 2015-02-28 | B69: =C店!B67+天猫!B68+京东!B67 -> 39661.92 | C69: =C店!C67+天猫!C68+京东!C67 -> 2250.9 | D69: =C店!D67+天猫!D68+京东!D67 -> 0 | E69: =C店!E69+天猫!E69+京东!E69 -> 29913.13 | H69: =C店!H67+天猫!H68+京东!H67 -> 0 | I69: =C店!I67+天猫!I68+京东!I67 -> 453.51 | J69: =C店!J67+天猫!J68+京东!J67 -> 484.435 | K69: =C店!K67+天猫!K68+京东!K67 -> 1647.9014 | L69: =C店!L67+天猫!L68+京东!L67 -> 0 | M69: =C店!M67+天猫!M68+京东!M67 -> 0 | N69: =C店!N67+天猫!N68+京东!N67 -> 0 | O69: =C店!O69+天猫!O69+京东!O69 -> 15000 | Q69: =C店!P69+天猫!Q69+京东!Q69 -> 30320.867 | R69: =C店!Q69+天猫!R69+京东!R69 -> -407.737 | S69: 0.9865525943
A70: 2月合计 | B70: =C店!B68+天猫!B69+京东!B68 -> 30960.02 | C70: =C店!C68+天猫!C69+京东!C68 -> 1757.63 | D70: =C店!D68+天猫!D69+京东!D68 -> 0 | E70: =C店!E70+天猫!E70+京东!E70 -> 475258.29 | F70: 0 | H70: =C店!H68+天猫!H69+京东!H68 -> 0 | I70: =C店!I68+天猫!I69+京东!I68 -> 323.46 | J70: =C店!J68+天猫!J69+京东!J68 -> 306.495 | K70: =C店!K70+天猫!K70+京东!K70 -> 31179.9645 | L70: =C店!L70+天猫!L70+京东!L70 -> 1454.9 | M70: =C店!M68+天猫!M69+京东!M68 -> 0 | N70: =C店!N68+天猫!N69+京东!N68 -> 0 | O70: =C店!O70+天猫!O70+京东!O70 -> 15000 | P70: =SUM(P42:P69) -> 0 | Q70: =C店!P70+天猫!Q70+京东!Q70 -> 71810.8745 | R70: =C店!Q70+天猫!R70+京东!R70 -> 403447.4155 | S70: 6.618193878
A71: 2015-03-01 | B71: =C店!B71+天猫!B71+京东!B71 -> 24838.98 | C71: =C店!C71+天猫!C71+京东!C71 -> 1043.12 | D71: =C店!D71+天猫!D71+京东!D71 -> 0 | E71: =C店!E71+天猫!E71+京东!E71 -> 23795.86 | H71: =C店!H69+天猫!H70+京东!H69 -> 0 | I71: =C店!I71+天猫!I71+京东!I71 -> 257.34 | J71: =C店!J71+天猫!J71+京东!J71 -> 261.31 | K71: =C店!K71+天猫!K71+京东!K71 -> 2083.3475 | L71: =C店!L71+天猫!L71+京东!L71 -> 0 | M71: =C店!M69+天猫!M70+京东!M69 -> 0 | N71: =C店!N69+天猫!N70+京东!N69 -> 0 | O71: =C店!O71+天猫!O71+京东!O71 -> 0 | P71: =SUM(P43:P70) -> 0 | Q71: =C店!P71+天猫!Q71+京东!Q71 -> 2601.9975 | R71: =C店!Q71+天猫!R71+京东!R71 -> 21193.8625 | S71: =E71/Q71 -> 9.145227849
A72: 2015-03-02 | B72: =C店!B72+天猫!B72+京东!B72 -> 33340.8 | C72: =C店!C72+天猫!C72+京东!C72 -> 2459.56 | D72: =C店!D72+天猫!D72+京东!D72 -> 0 | E72: =C店!E72+天猫!E72+京东!E72 -> 30881.24 | H72: =C店!H70+天猫!H71+京东!H70 -> 0 | I72: =C店!I72+天猫!I72+京东!I72 -> 287.91 | J72: =C店!J72+天猫!J72+京东!J72 -> 274.575 | K72: =C店!K72+天猫!K72+京东!K72 -> 2281.0508 | L72: =C店!L72+天猫!L72+京东!L72 -> 11.28 | M72: =C店!M70+天猫!M71+京东!M70 -> 0 | N72: =C店!N70+天猫!N71+京东!N70 -> 0 | O72: =C店!O72+天猫!O72+京东!O72 -> 0 | P72: 0 | Q72: =C店!P72+天猫!Q72+京东!Q72 -> 2854.8158 | R72: =C店!Q72+天猫!R72+京东!R72 -> 28026.4242 | S72: 10.81724432
A73: 2015-03-03 | B73: =C店!B73+天猫!B73+京东!B73 -> 33337.83 | C73: =C店!C73+天猫!C73+京东!C73 -> 1895.76 | D73: =C店!D73+天猫!D73+京东!D73 -> 0 | E73: =C店!E73+天猫!E73+京东!E73 -> 31442.07 | H73: =C店!H71+天猫!H72+京东!H71 -> 0 | I73: =C店!I73+天猫!I73+京东!I73 -> 342.57 | J73: =C店!J73+天猫!J73+京东!J73 -> 323.925 | K73: =C店!K73+天猫!K73+京东!K73 -> 2396.0885 | L73: =C店!L73+天猫!L73+京东!L73 -> 29.94 | M73: =C店!M71+天猫!M72+京东!M71 -> 0 | N73: =C店!N71+天猫!N72+京东!N71 -> 0 | O73: =C店!O73+天猫!O73+京东!O73 -> 0 | P73: 0 | Q73: =C店!P73+天猫!Q73+京东!Q73 -> 3092.5235 | R73: =C店!Q73+天猫!R73+京东!R73 -> 28349.5465 | S73: 10.16712403
A74: 2015-03-04 | B74: =C店!B74+天猫!B74+京东!B74 -> 33919.3 | C74: =C店!C74+天猫!C74+京东!C74 -> 687.41 | D74: =C店!D74+天猫!D74+京东!D74 -> 0 | E74: =C店!E74+天猫!E74+京东!E74 -> 33231.89 | H74: =C店!H72+天猫!H73+京东!H72 -> 0 | I74: =C店!I74+天猫!I74+京东!I74 -> 337.5 | J74: =C店!J74+天猫!J74+京东!J74 -> 364.385 | K74: =C店!K74+天猫!K74+京东!K74 -> 2364.2286 | L74: =C店!L74+天猫!L74+京东!L74 -> 20.64 | M74: =C店!M72+天猫!M73+京东!M72 -> 0 | N74: =C店!N72+天猫!N73+京东!N72 -> 0 | O74: =C店!O74+天猫!O74+京东!O74 -> 0 | P74: 0 | Q74: =C店!P74+天猫!Q74+京东!Q74 -> 3086.7536 | R74: =C店!Q74+天猫!R74+京东!R74 -> 30145.1364 | S74: 10.76596784
A75: 2015-03-05 | B75: =C店!B75+天猫!B75+京东!B75 -> 34590.88 | C75: =C店!C75+天猫!C75+京东!C75 -> 1203.44 | D75: =C店!D75+天猫!D75+京东!D75 -> 0 | E75: =C店!E75+天猫!E75+京东!E75 -> 33387.44 | H75: =C店!H73+天猫!H74+京东!H73 ->  | I75: =C店!I75+天猫!I75+京东!I75 -> 365.91 | J75: =C店!J75+天猫!J75+京东!J75 -> 366.345 | K75: =C店!K75+天猫!K75+京东!K75 -> 2548.9202 | L75: =C店!L75+天猫!L75+京东!L75 -> 50.07 | M75: =C店!M73+天猫!M74+京东!M73 -> 0 | N75: =C店!N73+天猫!N74+京东!N73 -> 0 | O75: =C店!O75+天猫!O75+京东!O75 -> 0 | P75: 0 | Q75: =C店!P75+天猫!Q75+京东!Q75 -> 3331.2452 | R75: =C店!Q75+天猫!R75+京东!R75 -> 30056.1948 | S75: 10.0225105
A76: 2015-03-06 | B76: =C店!B76+天猫!B76+京东!B76 -> 28492.52 | C76: =C店!C76+天猫!C76+京东!C76 -> 583.4 | D76: =C店!D76+天猫!D76+京东!D76 -> 0 | E76: =C店!E76+天猫!E76+京东!E76 -> 27909.12 | H76: =C店!H74+天猫!H75+京东!H74 ->  | I76: =C店!I76+天猫!I76+京东!I76 -> 326.22 | J76: =C店!J76+天猫!J76+京东!J76 -> 342.09 | K76: =C店!K76+天猫!K76+京东!K76 -> 2378.4794 | L76: =C店!L76+天猫!L76+京东!L76 -> 30.69 | M76: =C店!M74+天猫!M75+京东!M74 -> 0 | N76: =C店!N74+天猫!N75+京东!N74 -> 0 | O76: =C店!O76+天猫!O76+京东!O76 -> 0 | P76: 0 | Q76: =C店!P76+天猫!Q76+京东!Q76 -> 3077.4794 | R76: =C店!Q76+天猫!R76+京东!R76 -> 24831.6406 | S76: 9.068824311
A77: 2015-03-07 | B77: =C店!B77+天猫!B77+京东!B77 -> 24223 | C77: =C店!C77+天猫!C77+京东!C77 -> 1324.08 | D77: =C店!D77+天猫!D77+京东!D77 -> 0 | E77: =C店!E77+天猫!E77+京东!E77 -> 22898.92 | H77: =C店!H75+天猫!H76+京东!H75 -> 0 | I77: =C店!I77+天猫!I77+京东!I77 -> 260.13 | J77: =C店!J77+天猫!J77+京东!J77 -> 257.39 | K77: =C店!K77+天猫!K77+京东!K77 -> 2258.0283 | L77: =C店!L77+天猫!L77+京东!L77 -> 18.14 | M77: =C店!M75+天猫!M76+京东!M75 -> 0 | N77: =C店!N75+天猫!N76+京东!N75 -> 0 | O77: =C店!O77+天猫!O77+京东!O77 -> 0 | P77: 0 | Q77: =C店!P77+天猫!Q77+京东!Q77 -> 2793.6883 | R77: =C店!Q77+天猫!R77+京东!R77 -> 20105.2317 | S77: 8.196662455
A78: 2015-03-08 | B78: =C店!B78+天猫!B78+京东!B78 -> 24381.04 | C78: =C店!C78+天猫!C78+京东!C78 -> 714.27 | D78: =C店!D78+天猫!D78+京东!D78 -> 0 | E78: =C店!E78+天猫!E78+京东!E78 -> 23666.77 | H78: =C店!H76+天猫!H77+京东!H76 -> 0 | I78: =C店!I78+天猫!I78+京东!I78 -> 305.19 | J78: =C店!J78+天猫!J78+京东!J78 -> 299.81 | K78: =C店!K78+天猫!K78+京东!K78 -> 2180.28 | L78: =C店!L78+天猫!L78+京东!L78 -> 133.73 | M78: =C店!M76+天猫!M77+京东!M76 -> 0 | N78: =C店!N76+天猫!N77+京东!N76 -> 0 | O78: =C店!O78+天猫!O78+京东!O78 -> 0 | P78: 0 | Q78: =C店!P78+天猫!Q78+京东!Q78 -> 2919.01 | R78: =C店!Q78+天猫!R78+京东!R78 -> 20747.76 | S78: 8.107807099
A79: 2015-03-09 | B79: =C店!B79+天猫!B79+京东!B79 -> 35616.1 | C79: =C店!C79+天猫!C79+京东!C79 -> 1071.64 | D79: =C店!D79+天猫!D79+京东!D79 -> 0 | E79: =C店!E79+天猫!E79+京东!E79 -> 34544.46 | H79: =C店!H77+天猫!H78+京东!H77 -> 0 | I79: =C店!I79+天猫!I79+京东!I79 -> 371.49 | J79: =C店!J79+天猫!J79+京东!J79 -> 385.77 | K79: =C店!K79+天猫!K79+京东!K79 -> 3306.9662 | L79: =C店!L79+天猫!L79+京东!L79 -> 139.96 | M79: =C店!M77+天猫!M78+京东!M77 -> 0 | N79: =C店!N77+天猫!N78+京东!N77 -> 0 | O79: =C店!O79+天猫!O79+京东!O79 -> 0 | P79: 0 | Q79: =C店!P79+天猫!Q79+京东!Q79 -> 4204.1862 | R79: =C店!Q79+天猫!R79+京东!R79 -> 30340.2738 | S79: 8.216681744
A80: 2015-03-10 | B80: =C店!B80+天猫!B80+京东!B80 -> 39516.08 | C80: =C店!C80+天猫!C80+京东!C80 -> 2907.78 | D80: =C店!D80+天猫!D80+京东!D80 -> 0 | E80: =C店!E80+天猫!E80+京东!E80 -> 36608.3 | H80: =C店!H78+天猫!H79+京东!H78 -> 0 | I80: =C店!I80+天猫!I80+京东!I80 -> 499.26 | J80: =C店!J80+天猫!J80+京东!J80 -> 516.67 | K80: =C店!K80+天猫!K80+京东!K80 -> 3086.73 | L80: =C店!L80+天猫!L80+京东!L80 -> 138.57 | M80: =C店!M78+天猫!M79+京东!M78 -> 0 | N80: =C店!N78+天猫!N79+京东!N78 -> 0 | O80: =C店!O80+天猫!O80+京东!O80 -> 0 | P80: 0 | Q80: =C店!P80+天猫!Q80+京东!Q80 -> 4241.23 | R80: =C店!Q80+天猫!R80+京东!R80 -> 32367.07 | S80: 8.631529061
A81: 2015-03-11 | B81: =C店!B81+天猫!B81+京东!B81 -> 35917.66 | C81: =C店!C81+天猫!C81+京东!C81 -> 1678.18 | D81: =C店!D81+天猫!D81+京东!D81 -> 0 | E81: =C店!E81+天猫!E81+京东!E81 -> 34239.48 | H81: =C店!H79+天猫!H80+京东!H79 -> 0 | I81: =C店!I81+天猫!I81+京东!I81 -> 371.82 | J81: =C店!J81+天猫!J81+京东!J81 -> 405.965 | K81: =C店!K81+天猫!K81+京东!K81 -> 3453.7 | L81: =C店!L81+天猫!L81+京东!L81 -> 249.64 | M81: =C店!M79+天猫!M80+京东!M79 -> 0 | N81: =C店!N79+天猫!N80+京东!N79 -> 0 | O81: =C店!O81+天猫!O81+京东!O81 -> 0 | P81: 0 | Q81: =C店!P81+天猫!Q81+京东!Q81 -> 4481.125 | R81: =C店!Q81+天猫!R81+京东!R81 -> 29758.355 | S81: 7.640822338
A82: 2015-03-12 | B82: =C店!B82+天猫!B82+京东!B82 -> 30953.04 | C82: =C店!C82+天猫!C82+京东!C82 -> 561.48 | D82: =C店!D82+天猫!D82+京东!D82 -> 0 | E82: =C店!E82+天猫!E82+京东!E82 -> 30391.56 | H82: =C店!H80+天猫!H81+京东!H80 -> 0 | I82: =C店!I82+天猫!I82+京东!I82 -> 285.6 | J82: =C店!J82+天猫!J82+京东!J82 -> 284.06 | K82: =C店!K82+天猫!K82+京东!K82 -> 3420.7071 | L82: =C店!L82+天猫!L82+京东!L82 -> 115.59 | M82: =C店!M80+天猫!M81+京东!M80 -> 0 | N82: =C店!N80+天猫!N81+京东!N80 -> 0 | O82: =C店!O82+天猫!O82+京东!O82 -> 0 | P82: 0 | Q82: =C店!P82+天猫!Q82+京东!Q82 -> 4105.9571 | R82: =C店!Q82+天猫!R82+京东!R82 -> 26285.6029 | S82: 7.401821125
A83: 2015-03-13 | B83: =C店!B83+天猫!B83+京东!B83 -> 28953.2 | C83: =C店!C83+天猫!C83+京东!C83 -> 270.08 | D83: =C店!D83+天猫!D83+京东!D83 -> 0 | E83: =C店!E83+天猫!E83+京东!E83 -> 28683.12 | H83: =C店!H81+天猫!H82+京东!H81 -> 0 | I83: =C店!I83+天猫!I83+京东!I83 -> 370.89 | J83: =C店!J83+天猫!J83+京东!J83 -> 394.24 | K83: =C店!K83+天猫!K83+京东!K83 -> 3102.36 | L83: =C店!L83+天猫!L83+京东!L83 -> 81.33 | M83: =C店!M81+天猫!M82+京东!M81 -> 0 | N83: =C店!N81+天猫!N82+京东!N81 -> 0 | O83: =C店!O83+天猫!O83+京东!O83 -> 0 | P83: 0 | Q83: =C店!P83+天猫!Q83+京东!Q83 -> 3948.82 | R83: =C店!Q83+天猫!R83+京东!R83 -> 24734.3 | S83: 7.263719288
A84: 2015-03-14 | B84: =C店!B84+天猫!B84+京东!B84 -> 27269.76 | C84: =C店!C84+天猫!C84+京东!C84 -> 1139.78 | D84: =C店!D84+天猫!D84+京东!D84 -> 0 | E84: =C店!E84+天猫!E84+京东!E84 -> 26129.98 | H84: =C店!H82+天猫!H83+京东!H82 -> 0 | I84: =C店!I84+天猫!I84+京东!I84 -> 276.63 | J84: =C店!J84+天猫!J84+京东!J84 -> 293.72 | K84: =C店!K84+天猫!K84+京东!K84 -> 2941.03 | L84: =C店!L84+天猫!L84+京东!L84 -> 40.4 | M84: =C店!M82+天猫!M83+京东!M82 -> 0 | N84: =C店!N82+天猫!N83+京东!N82 -> 0 | O84: =C店!O84+天猫!O84+京东!O84 -> 0 | P84: 0 | Q84: =C店!P84+天猫!Q84+京东!Q84 -> 3551.78 | R84: =C店!Q84+天猫!R84+京东!R84 -> 22578.2 | S84: 7.35686895
A85: 2015-03-15 | B85: =C店!B85+天猫!B85+京东!B85 -> 29241.96 | C85: =C店!C85+天猫!C85+京东!C85 -> 629.7 | D85: =C店!D85+天猫!D85+京东!D85 -> 0 | E85: =C店!E85+天猫!E85+京东!E85 -> 28612.26 | H85: =C店!H83+天猫!H84+京东!H83 -> 0 | I85: =C店!I85+天猫!I85+京东!I85 -> 385.05 | J85: =C店!J85+天猫!J85+京东!J85 -> 373.66 | K85: =C店!K85+天猫!K85+京东!K85 -> 3321.71 | L85: =C店!L85+天猫!L85+京东!L85 -> 51.76 | M85: =C店!M83+天猫!M84+京东!M83 -> 0 | N85: =C店!N83+天猫!N84+京东!N83 -> 0 | O85: =C店!O85+天猫!O85+京东!O85 -> 0 | P85: 0 | Q85: =C店!P85+天猫!Q85+京东!Q85 -> 4132.18 | R85: =C店!Q85+天猫!R85+京东!R85 -> 24480.08 | S85: 6.924253058
A86: 2015-03-16 | B86: =C店!B86+天猫!B86+京东!B86 -> 34393.07 | C86: =C店!C86+天猫!C86+京东!C86 -> 2535.87 | D86: =C店!D86+天猫!D86+京东!D86 -> 0 | E86: =C店!E86+天猫!E86+京东!E86 -> 31857.2 | H86: =C店!H84+天猫!H85+京东!H84 -> 0 | I86: =C店!I86+天猫!I86+京东!I86 -> 457.89 | J86: =C店!J86+天猫!J86+京东!J86 -> 501.095 | K86: =C店!K86+天猫!K86+京东!K86 -> 2922.93 | L86: =C店!L86+天猫!L86+京东!L86 -> 99.04 | M86: =C店!M84+天猫!M85+京东!M84 -> 0 | N86: =C店!N84+天猫!N85+京东!N84 -> 0 | O86: =C店!O86+天猫!O86+京东!O86 -> 0 | P86: 0 | Q86: =C店!P86+天猫!Q86+京东!Q86 -> 3980.955 | R86: =C店!Q86+天猫!R86+京东!R86 -> 27876.245 | S86: 8.002401434
A87: 2015-03-17 | B87: =C店!B87+天猫!B87+京东!B87 -> 34459.97 | C87: =C店!C87+天猫!C87+京东!C87 -> 1206.26 | D87: =C店!D87+天猫!D87+京东!D87 -> 0 | E87: =C店!E87+天猫!E87+京东!E87 -> 33253.71 | H87: =C店!H85+天猫!H86+京东!H85 -> 0 | I87: =C店!I87+天猫!I87+京东!I87 -> 321.69 | J87: =C店!J87+天猫!J87+京东!J87 -> 335.3 | K87: =C店!K87+天猫!K87+京东!K87 -> 2625.35 | L87: =C店!L87+天猫!L87+京东!L87 -> 106.7 | M87: =C店!M85+天猫!M86+京东!M85 -> 0 | N87: =C店!N85+天猫!N86+京东!N85 -> 0 | O87: =C店!O87+天猫!O87+京东!O87 -> 0 | P87: 0 | Q87: =C店!P87+天猫!Q87+京东!Q87 -> 3389.04 | R87: =C店!Q87+天猫!R87+京东!R87 -> 29864.67 | S87: 9.812132639
A88: 2015-03-18 | B88: =C店!B88+天猫!B88+京东!B88 -> 34605.55 | C88: =C店!C88+天猫!C88+京东!C88 -> 652.1 | D88: =C店!D88+天猫!D88+京东!D88 -> 0 | E88: =C店!E88+天猫!E88+京东!E88 -> 33953.45 | H88: =C店!H86+天猫!H87+京东!H86 -> 0 | I88: =C店!I88+天猫!I88+京东!I88 -> 368.37 | J88: =C店!J88+天猫!J88+京东!J88 -> 403.795 | K88: =C店!K88+天猫!K88+京东!K88 -> 2414.08 | L88: =C店!L88+天猫!L88+京东!L88 -> 81.72 | M88: =C店!M86+天猫!M87+京东!M86 -> 0 | N88: =C店!N86+天猫!N87+京东!N86 -> 0 | O88: =C店!O88+天猫!O88+京东!O88 -> 0 | P88: 0 | Q88: =C店!P88+天猫!Q88+京东!Q88 -> 3267.965 | R88: =C店!Q88+天猫!R88+京东!R88 -> 30685.485 | S88: 10.38978386
A89: 2015-03-19 | B89: =C店!B89+天猫!B89+京东!B89 -> 26038.14 | C89: =C店!C89+天猫!C89+京东!C89 -> 968.04 | D89: =C店!D89+天猫!D89+京东!D89 -> 0 | E89: =C店!E89+天猫!E89+京东!E89 -> 25070.1 | H89: =C店!H87+天猫!H88+京东!H87 -> 0 | I89: =C店!I89+天猫!I89+京东!I89 -> 291.15 | J89: =C店!J89+天猫!J89+京东!J89 -> 317.975 | K89: =C店!K89+天猫!K89+京东!K89 -> 2293.23 | L89: =C店!L89+天猫!L89+京东!L89 -> 37.46 | M89: =C店!M87+天猫!M88+京东!M87 -> 0 | N89: =C店!N87+天猫!N88+京东!N87 -> 0 | O89: =C店!O89+天猫!O89+京东!O89 -> 0 | P89: 0 | Q89: =C店!P89+天猫!Q89+京东!Q89 -> 2939.815 | R89: =C店!Q89+天猫!R89+京东!R89 -> 22761.965 | S89: 8.52778151
A90: 2015-03-20 | B90: =C店!B90+天猫!B90+京东!B90 -> 25758.62 | C90: =C店!C90+天猫!C90+京东!C90 -> 454.86 | D90: =C店!D90+天猫!D90+京东!D90 -> 0 | E90: =C店!E90+天猫!E90+京东!E90 -> 25303.76 | H90: =C店!H88+天猫!H89+京东!H88 -> 0 | I90: =C店!I90+天猫!I90+京东!I90 -> 328.29 | J90: =C店!J90+天猫!J90+京东!J90 -> 355.285 | K90: =C店!K90+天猫!K90+京东!K90 -> 2063.5769 | L90: =C店!L90+天猫!L90+京东!L90 -> 53.58 | M90: =C店!M88+天猫!M89+京东!M88 -> 0 | N90: =C店!N88+天猫!N89+京东!N88 -> 0 | O90: =C店!O90+天猫!O90+京东!O90 -> 0 | P90: 0 | Q90: =C店!P90+天猫!Q90+京东!Q90 -> 2800.7319 | R90: =C店!Q90+天猫!R90+京东!R90 -> 22503.0281 | S90: 9.034695538
A91: 2015-03-21 | B91: =C店!B91+天猫!B91+京东!B91 -> 25849.75 | C91: =C店!C91+天猫!C91+京东!C91 -> 1140.53 | D91: =C店!D91+天猫!D91+京东!D91 -> 0 | E91: =C店!E91+天猫!E91+京东!E91 -> 24709.22 | H91: =C店!H89+天猫!H90+京东!H89 -> 0 | I91: =C店!I91+天猫!I91+京东!I91 -> 380.13 | J91: =C店!J91+天猫!J91+京东!J91 -> 422.59 | K91: =C店!K91+天猫!K91+京东!K91 -> 1986.7902 | L91: =C店!L91+天猫!L91+京东!L91 -> 59.16 | M91: =C店!M89+天猫!M90+京东!M89 -> 0 | N91: =C店!N89+天猫!N90+京东!N89 -> 0 | O91: =C店!O91+天猫!O91+京东!O91 -> 0 | P91: 0 | Q91: =C店!P91+天猫!Q91+京东!Q91 -> 2848.6702 | R91: =C店!Q91+天猫!R91+京东!R91 -> 21860.5498 | S91: 8.673948989
A92: 2015-03-22 | B92: =C店!B92+天猫!B92+京东!B92 -> 28329.6 | C92: =C店!C92+天猫!C92+京东!C92 -> 313.32 | D92: =C店!D92+天猫!D92+京东!D92 -> 0 | E92: =C店!E92+天猫!E92+京东!E92 -> 28016.28 | H92: =C店!H90+天猫!H91+京东!H90 -> 0 | I92: =C店!I92+天猫!I92+京东!I92 -> 347.07 | J92: =C店!J92+天猫!J92+京东!J92 -> 384.3 | K92: =C店!K92+天猫!K92+京东!K92 -> 1228.69 | L92: =C店!L92+天猫!L92+京东!L92 -> 125.88 | M92: =C店!M90+天猫!M91+京东!M90 -> 0 | N92: =C店!N90+天猫!N91+京东!N90 -> 0 | O92: =C店!O92+天猫!O92+京东!O92 -> 0 | P92: 0 | Q92: =C店!P92+天猫!Q92+京东!Q92 -> 2085.94 | R92: =C店!Q92+天猫!R92+京东!R92 -> 25930.34 | S92: 13.43100952
A93: 2015-03-23 | B93: =C店!B93+天猫!B93+京东!B93 -> 32152.42 | C93: =C店!C93+天猫!C93+京东!C93 -> 720.56 | D93: =C店!D93+天猫!D93+京东!D93 -> 0 | E93: =C店!E93+天猫!E93+京东!E93 -> 31431.86 | H93: =C店!H91+天猫!H92+京东!H91 -> 0 | I93: =C店!I93+天猫!I93+京东!I93 -> 470.64 | J93: =C店!J93+天猫!J93+京东!J93 -> 487.76 | K93: =C店!K93+天猫!K93+京东!K93 -> 2873.34 | L93: =C店!L93+天猫!L93+京东!L93 -> 103.14 | M93: =C店!M91+天猫!M92+京东!M91 -> 0 | N93: =C店!N91+天猫!N92+京东!N91 -> 0 | O93: =C店!O93+天猫!O93+京东!O93 -> 0 | P93: 0 | Q93: =C店!P93+天猫!Q93+京东!Q93 -> 3934.88 | R93: =C店!Q93+天猫!R93+京东!R93 -> 27496.98 | S93: 7.9880098
A94: 2015-03-24 | B94: =C店!B94+天猫!B94+京东!B94 -> 36625.27 | C94: =C店!C94+天猫!C94+京东!C94 -> 898.4 | D94: =C店!D94+天猫!D94+京东!D94 -> 0 | E94: =C店!E94+天猫!E94+京东!E94 -> 35726.87 | H94: =C店!H92+天猫!H93+京东!H92 -> 0 | I94: =C店!I94+天猫!I94+京东!I94 -> 390.15 | J94: =C店!J94+天猫!J94+京东!J94 -> 422.45 | K94: =C店!K94+天猫!K94+京东!K94 -> 3703.8 | L94: =C店!L94+天猫!L94+京东!L94 -> 51.18 | M94: =C店!M92+天猫!M93+京东!M92 -> 0 | N94: =C店!N92+天猫!N93+京东!N92 -> 0 | O94: =C店!O94+天猫!O94+京东!O94 -> 0 | P94: 0 | Q94: =C店!P94+天猫!Q94+京东!Q94 -> 4567.58 | R94: =C店!Q94+天猫!R94+京东!R94 -> 31159.29 | S94: 7.821837822
A95: 2015-03-25 | B95: =C店!B95+天猫!B95+京东!B95 -> 40234.71 | C95: =C店!C95+天猫!C95+京东!C95 -> 2702.42 | D95: =C店!D95+天猫!D95+京东!D95 -> 0 | E95: =C店!E95+天猫!E95+京东!E95 -> 37532.29 | H95: =C店!H93+天猫!H94+京东!H93 -> 0 | I95: =C店!I95+天猫!I95+京东!I95 -> 492.15 | J95: =C店!J95+天猫!J95+京东!J95 -> 507.675 | K95: =C店!K95+天猫!K95+京东!K95 -> 3952.79 | L95: =C店!L95+天猫!L95+京东!L95 -> 102.26 | M95: =C店!M93+天猫!M94+京东!M93 -> 0 | N95: =C店!N93+天猫!N94+京东!N93 -> 0 | O95: =C店!O95+天猫!O95+京东!O95 -> 0 | P95: 0 | Q95: =C店!P95+天猫!Q95+京东!Q95 -> 5054.875 | R95: =C店!Q95+天猫!R95+京东!R95 -> 32477.415 | S95: 7.424968966
A96: 2015-03-26 | B96: =C店!B96+天猫!B96+京东!B96 -> 33916.93 | C96: =C店!C96+天猫!C96+京东!C96 -> 1703.02 | D96: =C店!D96+天猫!D96+京东!D96 -> 0 | E96: =C店!E96+天猫!E96+京东!E96 -> 32213.91 | H96: =C店!H94+天猫!H95+京东!H94 -> 0 | I96: =C店!I96+天猫!I96+京东!I96 -> 419.67 | J96: =C店!J96+天猫!J96+京东!J96 -> 430.955 | K96: =C店!K96+天猫!K96+京东!K96 -> 3917.44 | L96: =C店!L96+天猫!L96+京东!L96 -> 133.09 | M96: =C店!M94+天猫!M95+京东!M94 -> 0 | N96: =C店!N94+天猫!N95+京东!N94 -> 0 | O96: =C店!O96+天猫!O96+京东!O96 -> 0 | P96: 0 | Q96: =C店!P96+天猫!Q96+京东!Q96 -> 4901.155 | R96: =C店!Q96+天猫!R96+京东!R96 -> 27312.755 | S96: 6.572718063
A97: 2015-03-27 | B97: =C店!B97+天猫!B97+京东!B97 -> 28507.12 | C97: =C店!C97+天猫!C97+京东!C97 -> 244.72 | D97: =C店!D97+天猫!D97+京东!D97 -> 0 | E97: =C店!E97+天猫!E97+京东!E97 -> 28262.4 | H97: =C店!H95+天猫!H96+京东!H95 -> 0 | I97: =C店!I97+天猫!I97+京东!I97 -> 273.18 | J97: =C店!J97+天猫!J97+京东!J97 -> 278.565 | K97: =C店!K97+天猫!K97+京东!K97 -> 3367.4 | L97: =C店!L97+天猫!L97+京东!L97 -> 102.62 | M97: =C店!M95+天猫!M96+京东!M95 -> 0 | N97: =C店!N95+天猫!N96+京东!N95 -> 0 | O97: =C店!O97+天猫!O97+京东!O97 -> 0 | P97: 0 | Q97: =C店!P97+天猫!Q97+京东!Q97 -> 4021.765 | R97: =C店!Q97+天猫!R97+京东!R97 -> 24240.635 | S97: 7.027362365
A98: 2015-03-28 | B98: =C店!B98+天猫!B98+京东!B98 -> 26307.82 | C98: =C店!C98+天猫!C98+京东!C98 -> 1079.68 | D98: =C店!D98+天猫!D98+京东!D98 -> 0 | E98: =C店!E98+天猫!E98+京东!E98 -> 25228.14 | H98: =C店!H96+天猫!H97+京东!H96 -> 0 | I98: =C店!I98+天猫!I98+京东!I98 -> 256.59 | J98: =C店!J98+天猫!J98+京东!J98 -> 265.16 | K98: =C店!K98+天猫!K98+京东!K98 -> 3484.7624 | L98: =C店!L98+天猫!L98+京东!L98 -> 53.5 | M98: =C店!M96+天猫!M97+京东!M96 -> 0 | N98: =C店!N96+天猫!N97+京东!N96 -> 0 | O98: =C店!O98+天猫!O98+京东!O98 -> 0 | P98: 0 | Q98: =C店!P98+天猫!Q98+京东!Q98 -> 4060.0124 | R98: =C店!Q98+天猫!R98+京东!R98 -> 21168.1276 | S98: 6.213808608
A99: 2015-03-29 | B99: =C店!B99+天猫!B99+京东!B99 -> 33960.2 | C99: =C店!C99+天猫!C99+京东!C99 -> 264.26 | D99: =C店!D99+天猫!D99+京东!D99 -> 0 | E99: =C店!E99+天猫!E99+京东!E99 -> 33695.94 | H99: =C店!H97+天猫!H98+京东!H97 -> 0 | I99: =C店!I99+天猫!I99+京东!I99 -> 266.73 | J99: =C店!J99+天猫!J99+京东!J99 -> 292.775 | K99: =C店!K99+天猫!K99+京东!K99 -> 3818.85 | L99: =C店!L99+天猫!L99+京东!L99 -> 115.49 | M99: =C店!M97+天猫!M98+京东!M97 -> 0 | N99: =C店!N97+天猫!N98+京东!N97 -> 0 | O99: =C店!O99+天猫!O99+京东!O99 -> 0 | P99: 0 | Q99: =C店!P99+天猫!Q99+京东!Q99 -> 4493.845 | R99: =C店!Q99+天猫!R99+京东!R99 -> 29202.095 | S99: 7.498242596
A100: 2015-03-30 | B100: =C店!B100+天猫!B100+京东!B100 -> 39621.13 | C100: =C店!C100+天猫!C100+京东!C100 -> 1580.77 | D100: =C店!D100+天猫!D100+京东!D100 -> 0 | E100: =C店!E100+天猫!E100+京东!E100 -> 38040.36 | H100: =C店!H98+天猫!H99+京东!H98 -> 0 | I100: =C店!I100+天猫!I100+京东!I100 -> 343.29 | J100: =C店!J100+天猫!J100+京东!J100 -> 358.155 | K100: =C店!K100+天猫!K100+京东!K100 -> 3808.38 | L100: =C店!L100+天猫!L100+京东!L100 -> 90.81 | M100: =C店!M98+天猫!M99+京东!M98 -> 0 | N100: =C店!N98+天猫!N99+京东!N98 -> 0 | O100: =C店!O100+天猫!O100+京东!O100 -> 0 | P100: 0 | Q100: =C店!P100+天猫!Q100+京东!Q100 -> 4600.635 | R100: =C店!Q100+天猫!R100+京东!R100 -> 33439.725 | S100: 8.268502065
A101: 2015-03-31 | B101: =C店!B101+天猫!B101+京东!B101 -> 43574.02 | C101: =C店!C101+天猫!C101+京东!C101 -> 575.7 | D101: =C店!D101+天猫!D101+京东!D101 -> 0 | E101: =C店!E101+天猫!E101+京东!E101 -> 42998.32 | H101: =C店!H99+天猫!H100+京东!H99 -> 0 | I101: =C店!I101+天猫!I101+京东!I101 -> 444.3 | J101: =C店!J101+天猫!J101+京东!J101 -> 451.185 | K101: =C店!K101+天猫!K101+京东!K101 -> 3886.36 | L101: =C店!L101+天猫!L101+京东!L101 -> 41.95 | M101: =C店!M99+天猫!M100+京东!M99 -> 0 | N101: =C店!N99+天猫!N100+京东!N99 -> 0 | O101: =C店!O101+天猫!O101+京东!O101 -> 0 | P101: 0 | Q101: =C店!P101+天猫!Q101+京东!Q101 -> 4823.795 | R101: =C店!Q101+天猫!R101+京东!R101 -> 38174.525 | S101: 8.913795051
A102: 合计 | B102: =C店!B102+天猫!B102+京东!B102 -> 950307.47 | C102: =C店!C102+天猫!C102+京东!C102 -> 35210.19 | D102: =C店!D102+天猫!D102+京东!D102 -> 0 | E102: =C店!E102+天猫!E102+京东!E102 -> 953716.28 | G102: =SUM(G71:G101) -> 0 | H102: 0 | I102: =SUM(I71:I101) -> 10894.8 | J102: 11358.935 | K102: 89471.3961 | L102: 2469.32 | M102: 0 | N102: 0 | O102: 0 | P102: 0 | Q102: 114194.4511 | R102: 840153.5089 | S102: 8.351686713
A103: 2015-04-01 | B103: =C店!B103+天猫!B103+京东!B103 -> 32086.33 | C103: =C店!C103+天猫!C103+京东!C103 -> 886.57 | D103: =C店!D103+天猫!D103+京东!D103 -> 0 | E103: =C店!E103+天猫!E103+京东!E103 -> 31199.76 | H103: =C店!H103+天猫!H103+京东!H103 -> 0 | I103: =C店!I103+天猫!I103+京东!I103 -> 354.18 | J103: =C店!J103+天猫!J103+京东!J103 -> 362.39 | K103: =C店!K103+天猫!K103+京东!K103 -> 4062.62 | L103: =C店!L103+天猫!L103+京东!L103 -> 92.56 | M103: =C店!M103+天猫!M103+京东!M103 -> 0 | N103: =C店!N103+天猫!N103+京东!N103 -> 0 | O103: =C店!O103+天猫!O103+京东!O103 -> 0 | P103: =C店!O103+天猫!P103+京东!P103 -> 0 | Q103: =C店!P103+天猫!Q103+京东!Q103 -> 4871.75 | R103: =C店!Q103+天猫!R103+京东!R103 -> 26328.01 | S103: 6.404220249
A104: 2015-04-02 | B104: =C店!B104+天猫!B104+京东!B104 -> 34340.59 | C104: =C店!C104+天猫!C104+京东!C104 -> 1943.84 | D104: =C店!D104+天猫!D104+京东!D104 -> 0 | E104: =C店!E104+天猫!E104+京东!E104 -> 32396.75 | H104: =C店!H104+天猫!H104+京东!H104 -> 0 | I104: =C店!I104+天猫!I104+京东!I104 -> 419.79 | J104: =C店!J104+天猫!J104+京东!J104 -> 426.51 | K104: =C店!K104+天猫!K104+京东!K104 -> 3601.16 | L104: =C店!L104+天猫!L104+京东!L104 -> 60.52 | M104: =C店!M104+天猫!M104+京东!M104 -> 0 | N104: =C店!N104+天猫!N104+京东!N104 -> 0 | O104: =C店!O104+天猫!O104+京东!O104 -> 0 | P104: =SUM(P76:P103) -> 0 | Q104: =C店!P104+天猫!Q104+京东!Q104 -> 4507.98 | R104: =C店!Q104+天猫!R104+京东!R104 -> 27888.77 | S104: =E104/Q104 -> 7.186533658
A105: 2015-04-03 | B105: =C店!B105+天猫!B105+京东!B105 -> 22557.68 | C105: =C店!C105+天猫!C105+京东!C105 -> 554.65 | D105: =C店!D105+天猫!D105+京东!D105 -> 0 | E105: =C店!E105+天猫!E105+京东!E105 -> 22003.03 | H105: =C店!H105+天猫!H105+京东!H105 -> 0 | I105: =C店!I105+天猫!I105+京东!I105 -> 292.47 | J105: =C店!J105+天猫!J105+京东!J105 -> 285.3375 | K105: =C店!K105+天猫!K105+京东!K105 -> 3219.3328 | L105: =C店!L105+天猫!L105+京东!L105 -> 60 | M105: =C店!M105+天猫!M105+京东!M105 -> 0 | N105: =C店!N105+天猫!N105+京东!N105 -> 0 | O105: =C店!O105+天猫!O105+京东!O105 -> 0 | P105: 0 | Q105: =C店!P105+天猫!Q105+京东!Q105 -> 3857.1403 | R105: =C店!Q105+天猫!R105+京东!R105 -> 18145.8897 | S105: 5.704493041
A106: 2015-04-04 | B106: =C店!B106+天猫!B106+京东!B106 -> 23069.9 | C106: =C店!C106+天猫!C106+京东!C106 -> 736.66 | D106: =C店!D106+天猫!D106+京东!D106 -> 0 | E106: =C店!E106+天猫!E106+京东!E106 -> 22333.24 | H106: =C店!H106+天猫!H106+京东!H106 -> 0 | I106: =C店!I106+天猫!I106+京东!I106 -> 271.2468 | J106: =C店!J106+天猫!J106+京东!J106 -> 270.50835 | K106: =C店!K106+天猫!K106+京东!K106 -> 3308.9054 | L106: =C店!L106+天猫!L106+京东!L106 -> 125.77 | M106: =C店!M106+天猫!M106+京东!M106 -> 0 | N106: =C店!N106+天猫!N106+京东!N106 -> 0 | O106: =C店!O106+天猫!O106+京东!O106 -> 0 | P106: 0 | Q106: =C店!P106+天猫!Q106+京东!Q106 -> 3976.43055 | R106: =C店!Q106+天猫!R106+京东!R106 -> 18356.80945 | S106: 5.616403888
A107: 2015-04-05 | B107: =C店!B107+天猫!B107+京东!B107 -> 27090.28 | C107: =C店!C107+天猫!C107+京东!C107 -> 230.56 | D107: =C店!D107+天猫!D107+京东!D107 -> 0 | E107: =C店!E107+天猫!E107+京东!E107 -> 26859.72 | H107: =C店!H107+天猫!H107+京东!H107 -> 0 | I107: =C店!I107+天猫!I107+京东!I107 -> 299.85 | J107: =C店!J107+天猫!J107+京东!J107 -> 310.695 | K107: =C店!K107+天猫!K107+京东!K107 -> 4008.6431 | L107: =C店!L107+天猫!L107+京东!L107 -> 75.45 | M107: =C店!M107+天猫!M107+京东!M107 -> 0 | N107: =C店!N107+天猫!N107+京东!N107 -> 0 | O107: =C店!O107+天猫!O107+京东!O107 -> 0 | P107: 0 | Q107: =C店!P107+天猫!Q107+京东!Q107 -> 4694.6381 | R107: =C店!Q107+天猫!R107+京东!R107 -> 22165.0819 | S107: 5.721361142
A108: 2015-04-06 | B108: =C店!B108+天猫!B108+京东!B108 -> 26522.58 | C108: =C店!C108+天猫!C108+京东!C108 -> 1942.46 | D108: =C店!D108+天猫!D108+京东!D108 -> 0 | E108: =C店!E108+天猫!E108+京东!E108 -> 24580.12 | H108: =C店!H108+天猫!H108+京东!H108 -> 0 | I108: =C店!I108+天猫!I108+京东!I108 -> 334.23 | J108: =C店!J108+天猫!J108+京东!J108 -> 342.8775 | K108: =C店!K108+天猫!K108+京东!K108 -> 3889.93 | L108: =C店!L108+天猫!L108+京东!L108 -> 109.89 | M108: =C店!M108+天猫!M108+京东!M108 -> 0 | N108: =C店!N108+天猫!N108+京东!N108 -> 0 | O108: =C店!O108+天猫!O108+京东!O108 -> 0 | P108: 0 | Q108: =C店!P108+天猫!Q108+京东!Q108 -> 4676.9275 | R108: =C店!Q108+天猫!R108+京东!R108 -> 19903.1925 | S108: 5.255612793
A109: 2015-04-07 | B109: =C店!B109+天猫!B109+京东!B109 -> 29700.59 | C109: =C店!C109+天猫!C109+京东!C109 -> 1834.58 | D109: =C店!D109+天猫!D109+京东!D109 -> 0 | E109: =C店!E109+天猫!E109+京东!E109 -> 27866.01 | H109: =C店!H109+天猫!H109+京东!H109 -> 0 | I109: =C店!I109+天猫!I109+京东!I109 -> 352.1487 | J109: =C店!J109+天猫!J109+京东!J109 -> 379.16515 | K109: =C店!K109+天猫!K109+京东!K109 -> 3726.74 | L109: =C店!L109+天猫!L109+京东!L109 -> 111.12 | M109: =C店!M109+天猫!M109+京东!M109 -> 0 | N109: =C店!N109+天猫!N109+京东!N109 -> 0 | O109: =C店!O109+天猫!O109+京东!O109 -> 0 | P109: 0 | Q109: =C店!P109+天猫!Q109+京东!Q109 -> 4569.17385 | R109: =C店!Q109+天猫!R109+京东!R109 -> 23296.83615 | S109: 6.098697689
A110: 2015-04-08 | B110: =C店!B110+天猫!B110+京东!B110 -> 29065.21 | C110: =C店!C110+天猫!C110+京东!C110 -> 1375.72 | D110: =C店!D110+天猫!D110+京东!D110 -> 0 | E110: =C店!E110+天猫!E110+京东!E110 -> 27689.49 | H110: =C店!H110+天猫!H110+京东!H110 -> 0 | I110: =C店!I110+天猫!I110+京东!I110 -> 363.9675 | J110: =C店!J110+天猫!J110+京东!J110 -> 413.42875 | K110: =C店!K110+天猫!K110+京东!K110 -> 1271.38 | L110: =C店!L110+天猫!L110+京东!L110 -> 46.24 | M110: =C店!M110+天猫!M110+京东!M110 -> 0 | N110: =C店!N110+天猫!N110+京东!N110 -> 0 | O110: =C店!O110+天猫!O110+京东!O110 -> 0 | P110: 0 | Q110: =C店!P110+天猫!Q110+京东!Q110 -> 2095.01625 | R110: =C店!Q110+天猫!R110+京东!R110 -> 25594.47375 | S110: 13.21683782
A111: 2015-04-09 | B111: =C店!B111+天猫!B111+京东!B111 -> 30796.63 | C111: =C店!C111+天猫!C111+京东!C111 -> 1876.74 | D111: =C店!D111+天猫!D111+京东!D111 -> 0 | E111: =C店!E111+天猫!E111+京东!E111 -> 28919.89 | H111: =C店!H111+天猫!H111+京东!H111 -> 0 | I111: =C店!I111+天猫!I111+京东!I111 -> 295.38 | J111: =C店!J111+天猫!J111+京东!J111 -> 296.31 | K111: =C店!K111+天猫!K111+京东!K111 -> 2879.77 | L111: =C店!L111+天猫!L111+京东!L111 -> 52.66 | M111: =C店!M111+天猫!M111+京东!M111 -> 0 | N111: =C店!N111+天猫!N111+京东!N111 -> 0 | O111: =C店!O111+天猫!O111+京东!O111 -> 0 | P111: 0 | Q111: =C店!P111+天猫!Q111+京东!Q111 -> 3524.12 | R111: =C店!Q111+天猫!R111+京东!R111 -> 25395.77 | S111: 8.206272772
A112: 2015-04-10 | B112: =C店!B112+天猫!B112+京东!B112 -> 27813.82 | C112: =C店!C112+天猫!C112+京东!C112 -> 0 | D112: =C店!D112+天猫!D112+京东!D112 -> 0 | E112: =C店!E112+天猫!E112+京东!E112 -> 27813.82 | H112: =C店!H112+天猫!H112+京东!H112 -> 0 | I112: =C店!I112+天猫!I112+京东!I112 -> 363.51 | J112: =C店!J112+天猫!J112+京东!J112 -> 379.575 | K112: =C店!K112+天猫!K112+京东!K112 -> 2549.96 | L112: =C店!L112+天猫!L112+京东!L112 -> 47.43 | M112: =C店!M112+天猫!M112+京东!M112 -> 0 | N112: =C店!N112+天猫!N112+京东!N112 -> 0 | O112: =C店!O112+天猫!O112+京东!O112 -> 0 | P112: 0 | Q112: =C店!P112+天猫!Q112+京东!Q112 -> 3340.475 | R112: =C店!Q112+天猫!R112+京东!R112 -> 24473.345 | S112: 8.326306887
A113: 2015-04-11 | B113: =C店!B113+天猫!B113+京东!B113 -> 25528.74 | C113: =C店!C113+天猫!C113+京东!C113 -> 590.25 | D113: =C店!D113+天猫!D113+京东!D113 -> 0 | E113: =C店!E113+天猫!E113+京东!E113 -> 24938.49 | H113: =C店!H113+天猫!H113+京东!H113 -> 0 | I113: =C店!I113+天猫!I113+京东!I113 -> 309.84 | J113: =C店!J113+天猫!J113+京东!J113 -> 327.46 | K113: =C店!K113+天猫!K113+京东!K113 -> 2558.7763 | L113: =C店!L113+天猫!L113+京东!L113 -> 26.15 | M113: =C店!M113+天猫!M113+京东!M113 -> 5.55 | N113: =C店!N113+天猫!N113+京东!N113 -> 0 | O113: =C店!O113+天猫!O113+京东!O113 -> 0 | P113: 0 | Q113: =C店!P113+天猫!Q113+京东!Q113 -> 3227.7763 | R113: =C店!Q113+天猫!R113+京东!R113 -> 21710.7137 | S113: 7.726213864
A114: 2015-04-12 | B114: =C店!B114+天猫!B114+京东!B114 -> 28647.95 | C114: =C店!C114+天猫!C114+京东!C114 -> 614.23 | D114: =C店!D114+天猫!D114+京东!D114 -> 0 | E114: =C店!E114+天猫!E114+京东!E114 -> 28033.72 | H114: =C店!H114+天猫!H114+京东!H114 -> 0 | I114: =C店!I114+天猫!I114+京东!I114 -> 360.135 | J114: =C店!J114+天猫!J114+京东!J114 -> 387.93125 | K114: =C店!K114+天猫!K114+京东!K114 -> 2752.13 | L114: =C店!L114+天猫!L114+京东!L114 -> 14.12 | M114: =C店!M114+天猫!M114+京东!M114 -> 32.58 | N114: =C店!N114+天猫!N114+京东!N114 -> 0 | O114: =C店!O114+天猫!O114+京东!O114 -> 0 | P114: 0 | Q114: =C店!P114+天猫!Q114+京东!Q114 -> 3546.89625 | R114: =C店!Q114+天猫!R114+京东!R114 -> 24486.82375 | S114: 7.903732735
A115: 2015-04-13 | B115: =C店!B115+天猫!B115+京东!B115 -> 33671.86 | C115: =C店!C115+天猫!C115+京东!C115 -> 2152.07 | D115: =C店!D115+天猫!D115+京东!D115 -> 0 | E115: =C店!E115+天猫!E115+京东!E115 -> 31519.79 | H115: =C店!H115+天猫!H115+京东!H115 -> 0 | I115: =C店!I115+天猫!I115+京东!I115 -> 354.2679 | J115: =C店!J115+天猫!J115+京东!J115 -> 375.4338 | K115: =C店!K115+天猫!K115+京东!K115 -> 2834.4 | L115: =C店!L115+天猫!L115+京东!L115 -> 0 | M115: =C店!M115+天猫!M115+京东!M115 -> 24.4 | N115: =C店!N115+天猫!N115+京东!N115 -> 0 | O115: =C店!O115+天猫!O115+京东!O115 -> 0 | P115: 0 | Q115: =C店!P115+天猫!Q115+京东!Q115 -> 3588.5017 | R115: =C店!Q115+天猫!R115+京东!R115 -> 27931.2883 | S115: 8.783551642
A116: 2015-04-14 | B116: =C店!B116+天猫!B116+京东!B116 -> 29619.49 | C116: =C店!C116+天猫!C116+京东!C116 -> 814.9 | D116: =C店!D116+天猫!D116+京东!D116 -> 0 | E116: =C店!E116+天猫!E116+京东!E116 -> 28804.59 | H116: =C店!H116+天猫!H116+京东!H116 -> 0 | I116: =C店!I116+天猫!I116+京东!I116 -> 334.161 | J116: =C店!J116+天猫!J116+京东!J116 -> 341.292 | K116: =C店!K116+天猫!K116+京东!K116 -> 2978.32 | L116: =C店!L116+天猫!L116+京东!L116 -> 81.33 | M116: =C店!M116+天猫!M116+京东!M116 -> 28.92 | N116: =C店!N116+天猫!N116+京东!N116 -> 0 | O116: =C店!O116+天猫!O116+京东!O116 -> 0 | P116: 0 | Q116: =C店!P116+天猫!Q116+京东!Q116 -> 3764.023 | R116: =C店!Q116+天猫!R116+京东!R116 -> 25040.567 | S116: 7.65260733
A117: 2015-04-15 | B117: =C店!B117+天猫!B117+京东!B117 -> 28131.2 | C117: =C店!C117+天猫!C117+京东!C117 -> 564.91 | D117: =C店!D117+天猫!D117+京东!D117 -> 0 | E117: =C店!E117+天猫!E117+京东!E117 -> 27566.29 | H117: =C店!H117+天猫!H117+京东!H117 -> 0 | I117: =C店!I117+天猫!I117+京东!I117 -> 357.75 | J117: =C店!J117+天猫!J117+京东!J117 -> 379.155 | K117: =C店!K117+天猫!K117+京东!K117 -> 3129.89 | L117: =C店!L117+天猫!L117+京东!L117 -> 50.46 | M117: =C店!M117+天猫!M117+京东!M117 -> 22.68 | N117: =C店!N117+天猫!N117+京东!N117 -> 0 | O117: =C店!O117+天猫!O117+京东!O117 -> 0 | P117: 0 | Q117: =C店!P117+天猫!Q117+京东!Q117 -> 3939.935 | R117: =C店!Q117+天猫!R117+京东!R117 -> 23626.355 | S117: 6.996635731
A118: 2015-04-16 | B118: =C店!B118+天猫!B118+京东!B118 -> 33878.46 | C118: =C店!C118+天猫!C118+京东!C118 -> 465.31 | D118: =C店!D118+天猫!D118+京东!D118 -> 0 | E118: =C店!E118+天猫!E118+京东!E118 -> 33413.15 | H118: =C店!H118+天猫!H118+京东!H118 -> 0 | I118: =C店!I118+天猫!I118+京东!I118 -> 486.78 | J118: =C店!J118+天猫!J118+京东!J118 -> 515.41 | K118: =C店!K118+天猫!K118+京东!K118 -> 3017.61 | L118: =C店!L118+天猫!L118+京东!L118 -> 97.04 | M118: =C店!M118+天猫!M118+京东!M118 -> 0 | N118: =C店!N118+天猫!N118+京东!N118 -> 0 | O118: =C店!O118+天猫!O118+京东!O118 -> 0 | P118: 0 | Q118: =C店!P118+天猫!Q118+京东!Q118 -> 4116.84 | R118: =C店!Q118+天猫!R118+京东!R118 -> 29296.31 | S118: 8.116212921
A119: 2015-04-17 | B119: =C店!B119+天猫!B119+京东!B119 -> 33052.45 | C119: =C店!C119+天猫!C119+京东!C119 -> 849.2 | D119: =C店!D119+天猫!D119+京东!D119 -> 0 | E119: =C店!E119+天猫!E119+京东!E119 -> 32203.25 | H119: =C店!H119+天猫!H119+京东!H119 -> 0 | I119: =C店!I119+天猫!I119+京东!I119 -> 456.48 | J119: =C店!J119+天猫!J119+京东!J119 -> 441.175 | K119: =C店!K119+天猫!K119+京东!K119 -> 2646.1932 | L119: =C店!L119+天猫!L119+京东!L119 -> 45.96 | M119: =C店!M119+天猫!M119+京东!M119 -> 0 | N119: =C店!N119+天猫!N119+京东!N119 -> 0 | O119: =C店!O119+天猫!O119+京东!O119 -> 0 | P119: 0 | Q119: =C店!P119+天猫!Q119+京东!Q119 -> 3589.8082 | R119: =C店!Q119+天猫!R119+京东!R119 -> 28613.4418 | S119: 8.970743897
A120: 2015-04-18 | B120: =C店!B120+天猫!B120+京东!B120 -> 23230.08 | C120: =C店!C120+天猫!C120+京东!C120 -> 332.23 | D120: =C店!D120+天猫!D120+京东!D120 -> 0 | E120: =C店!E120+天猫!E120+京东!E120 -> 22897.85 | H120: =C店!H120+天猫!H120+京东!H120 -> 0 | I120: =C店!I120+天猫!I120+京东!I120 -> 304.56 | J120: =C店!J120+天猫!J120+京东!J120 -> 313.9675 | K120: =C店!K120+天猫!K120+京东!K120 -> 2532.08 | L120: =C店!L120+天猫!L120+京东!L120 -> 132.68 | M120: =C店!M120+天猫!M120+京东!M120 -> 0 | N120: =C店!N120+天猫!N120+京东!N120 -> 0 | O120: =C店!O120+天猫!O120+京东!O120 -> 0 | P120: 0 | Q120: =C店!P120+天猫!Q120+京东!Q120 -> 3283.2875 | R120: =C店!Q120+天猫!R120+京东!R120 -> 19614.5625 | S120: 6.974061821
A121: 2015-04-19 | B121: =C店!B121+天猫!B121+京东!B121 -> 29018.32 | C121: =C店!C121+天猫!C121+京东!C121 -> 629.8 | D121: =C店!D121+天猫!D121+京东!D121 -> 0 | E121: =C店!E121+天猫!E121+京东!E121 -> 28388.52 | H121: =C店!H121+天猫!H121+京东!H121 -> 0 | I121: =C店!I121+天猫!I121+京东!I121 -> 421.7088 | J121: =C店!J121+天猫!J121+京东!J121 -> 435.9411 | K121: =C店!K121+天猫!K121+京东!K121 -> 2808.07 | L121: =C店!L121+天猫!L121+京东!L121 -> 277.45 | M121: =C店!M121+天猫!M121+京东!M121 -> 0 | N121: =C店!N121+天猫!N121+京东!N121 -> 0 | O121: =C店!O121+天猫!O121+京东!O121 -> 0 | P121: 0 | Q121: =C店!P121+天猫!Q121+京东!Q121 -> 3943.1699 | R121: =C店!Q121+天猫!R121+京东!R121 -> 24445.3501 | S121: 7.199415881
A122: 2015-04-20 | B122: =C店!B122+天猫!B122+京东!B122 -> 25815.1 | C122: =C店!C122+天猫!C122+京东!C122 -> 1596.66 | D122: =C店!D122+天猫!D122+京东!D122 -> 0 | E122: =C店!E122+天猫!E122+京东!E122 -> 24218.44 | H122: =C店!H122+天猫!H122+京东!H122 -> 0 | I122: =C店!I122+天猫!I122+京东!I122 -> 336.33 | J122: =C店!J122+天猫!J122+京东!J122 -> 354.375 | K122: =C店!K122+天猫!K122+京东!K122 -> 2215.97 | L122: =C店!L122+天猫!L122+京东!L122 -> 159.88 | M122: =C店!M122+天猫!M122+京东!M122 -> 0 | N122: =C店!N122+天猫!N122+京东!N122 -> 0 | O122: =C店!O122+天猫!O122+京东!O122 -> 0 | P122: 0 | Q122: =C店!P122+天猫!Q122+京东!Q122 -> 3066.555 | R122: =C店!Q122+天猫!R122+京东!R122 -> 21151.885 | S122: 7.897604967
A123: 2015-04-21 | B123: =C店!B123+天猫!B123+京东!B123 -> 30647.85 | C123: =C店!C123+天猫!C123+京东!C123 -> 1152.17 | D123: =C店!D123+天猫!D123+京东!D123 -> 0 | E123: =C店!E123+天猫!E123+京东!E123 -> 29495.68 | H123: =C店!H123+天猫!H123+京东!H123 -> 0 | I123: =C店!I123+天猫!I123+京东!I123 -> 407.79 | J123: =C店!J123+天猫!J123+京东!J123 -> 430.6225 | K123: =C店!K123+天猫!K123+京东!K123 -> 2231.83 | L123: =C店!L123+天猫!L123+京东!L123 -> 108.44 | M123: =C店!M123+天猫!M123+京东!M123 -> 0 | N123: =C店!N123+天猫!N123+京东!N123 -> 0 | O123: =C店!O123+天猫!O123+京东!O123 -> 0 | P123: 0 | Q123: =C店!P123+天猫!Q123+京东!Q123 -> 3178.6825 | R123: =C店!Q123+天猫!R123+京东!R123 -> 26316.9975 | S123: 9.279215524
A124: 2015-04-22 | B124: =C店!B124+天猫!B124+京东!B124 -> 31906.82 | C124: =C店!C124+天猫!C124+京东!C124 -> 1743.31 | D124: =C店!D124+天猫!D124+京东!D124 -> 0 | E124: =C店!E124+天猫!E124+京东!E124 -> 30163.51 | H124: =C店!H124+天猫!H124+京东!H124 -> 0 | I124: =C店!I124+天猫!I124+京东!I124 -> 436.9116 | J124: =C店!J124+天猫!J124+京东!J124 -> 468.3077 | K124: =C店!K124+天猫!K124+京东!K124 -> 1664.55 | L124: =C店!L124+天猫!L124+京东!L124 -> 60.08 | M124: =C店!M124+天猫!M124+京东!M124 -> 0 | N124: =C店!N124+天猫!N124+京东!N124 -> 0 | O124: =C店!O124+天猫!O124+京东!O124 -> 0 | P124: 0 | Q124: =C店!P124+天猫!Q124+京东!Q124 -> 2629.8493 | R124: =C店!Q124+天猫!R124+京东!R124 -> 27533.6607 | S124: 11.46967243
A125: 2015-04-23 | B125: =C店!B125+天猫!B125+京东!B125 -> 29081.03 | C125: =C店!C125+天猫!C125+京东!C125 -> 696.88 | D125: =C店!D125+天猫!D125+京东!D125 -> 0 | E125: =C店!E125+天猫!E125+京东!E125 -> 28384.15 | H125: =C店!H125+天猫!H125+京东!H125 -> 0 | I125: =C店!I125+天猫!I125+京东!I125 -> 417.51 | J125: =C店!J125+天猫!J125+京东!J125 -> 422.87 | K125: =C店!K125+天猫!K125+京东!K125 -> 2199.56 | L125: =C店!L125+天猫!L125+京东!L125 -> 105.02 | M125: =C店!M125+天猫!M125+京东!M125 -> 0 | N125: =C店!N125+天猫!N125+京东!N125 -> 0 | O125: =C店!O125+天猫!O125+京东!O125 -> 0 | P125: 0 | Q125: =C店!P125+天猫!Q125+京东!Q125 -> 3144.96 | R125: =C店!Q125+天猫!R125+京东!R125 -> 25239.19 | S125: 9.025281721
A126: 2015-04-24 | B126: =C店!B126+天猫!B126+京东!B126 -> 27491.66 | C126: =C店!C126+天猫!C126+京东!C126 -> 907.19 | D126: =C店!D126+天猫!D126+京东!D126 -> 0 | E126: =C店!E126+天猫!E126+京东!E126 -> 26584.47 | H126: =C店!H126+天猫!H126+京东!H126 -> 0 | I126: =C店!I126+天猫!I126+京东!I126 -> 407.919 | J126: =C店!J126+天猫!J126+京东!J126 -> 448.9905 | K126: =C店!K126+天猫!K126+京东!K126 -> 2202.83 | L126: =C店!L126+天猫!L126+京东!L126 -> 151.39 | M126: =C店!M126+天猫!M126+京东!M126 -> 0 | N126: =C店!N126+天猫!N126+京东!N126 -> 0 | O126: =C店!O126+天猫!O126+京东!O126 -> 0 | P126: 0 | Q126: =C店!P126+天猫!Q126+京东!Q126 -> 3211.1295 | R126: =C店!Q126+天猫!R126+京东!R126 -> 23373.3405 | S126: 8.278853282
A127: 2015-04-25 | B127: =C店!B127+天猫!B127+京东!B127 -> 26088.5 | C127: =C店!C127+天猫!C127+京东!C127 -> 1032.77 | D127: =C店!D127+天猫!D127+京东!D127 -> 0 | E127: =C店!E127+天猫!E127+京东!E127 -> 25055.73 | H127: =C店!H127+天猫!H127+京东!H127 -> 0 | I127: =C店!I127+天猫!I127+京东!I127 -> 441.39 | J127: =C店!J127+天猫!J127+京东!J127 -> 438.83 | K127: =C店!K127+天猫!K127+京东!K127 -> 2002.9567 | L127: =C店!L127+天猫!L127+京东!L127 -> 196.32 | M127: =C店!M127+天猫!M127+京东!M127 -> 0 | N127: =C店!N127+天猫!N127+京东!N127 -> 0 | O127: =C店!O127+天猫!O127+京东!O127 -> 0 | P127: 0 | Q127: =C店!P127+天猫!Q127+京东!Q127 -> 3079.4967 | R127: =C店!Q127+天猫!R127+京东!R127 -> 21976.2333 | S127: 8.136306819
A128: 2015-04-26 | B128: =C店!B128+天猫!B128+京东!B128 -> 24730.6 | C128: =C店!C128+天猫!C128+京东!C128 -> 688.36 | D128: =C店!D128+天猫!D128+京东!D128 -> 0 | E128: =C店!E128+天猫!E128+京东!E128 -> 24042.24 | H128: =C店!H128+天猫!H128+京东!H128 -> 0 | I128: =C店!I128+天猫!I128+京东!I128 -> 282.4296 | J128: =C店!J128+天猫!J128+京东!J128 -> 293.8712 | K128: =C店!K128+天猫!K128+京东!K128 -> 2062.42 | L128: =C店!L128+天猫!L128+京东!L128 -> 55.91 | M128: =C店!M128+天猫!M128+京东!M128 -> 0 | N128: =C店!N128+天猫!N128+京东!N128 -> 0 | O128: =C店!O128+天猫!O128+京东!O128 -> 0 | P128: 0 | Q128: =C店!P128+天猫!Q128+京东!Q128 -> 2694.6308 | R128: =C店!Q128+天猫!R128+京东!R128 -> 21347.6092 | S128: 8.922276106
A129: 2015-04-27 | B129: =C店!B129+天猫!B129+京东!B129 -> 28037.05 | C129: =C店!C129+天猫!C129+京东!C129 -> 804.87 | D129: =C店!D129+天猫!D129+京东!D129 -> 0 | E129: =C店!E129+天猫!E129+京东!E129 -> 27232.18 | H129: =C店!H129+天猫!H129+京东!H129 -> 0 | I129: =C店!I129+天猫!I129+京东!I129 -> 368.01 | J129: =C店!J129+天猫!J129+京东!J129 -> 385.035 | K129: =C店!K129+天猫!K129+京东!K129 -> 2136.33 | L129: =C店!L129+天猫!L129+京东!L129 -> 100.83 | M129: =C店!M129+天猫!M129+京东!M129 -> 0 | N129: =C店!N129+天猫!N129+京东!N129 -> 0 | O129: =C店!O129+天猫!O129+京东!O129 -> 0 | P129: 0 | Q129: =C店!P129+天猫!Q129+京东!Q129 -> 2990.205 | R129: =C店!Q129+天猫!R129+京东!R129 -> 24241.975 | S129: 9.107128107
A130: 2015-04-28 | B130: =C店!B130+天猫!B130+京东!B130 -> 22634.67 | C130: =C店!C130+天猫!C130+京东!C130 -> 776.01 | D130: =C店!D130+天猫!D130+京东!D130 -> 0 | E130: =C店!E130+天猫!E130+京东!E130 -> 21858.66 | H130: =C店!H130+天猫!H130+京东!H130 -> 0 | I130: =C店!I130+天猫!I130+京东!I130 -> 298.32 | J130: =C店!J130+天猫!J130+京东!J130 -> 321.405 | K130: =C店!K130+天猫!K130+京东!K130 -> 2225.17 | L130: =C店!L130+天猫!L130+京东!L130 -> 67.95 | M130: =C店!M130+天猫!M130+京东!M130 -> 0 | N130: =C店!N130+天猫!N130+京东!N130 -> 0 | O130: =C店!O130+天猫!O130+京东!O130 -> 0 | P130: 0 | Q130: =C店!P130+天猫!Q130+京东!Q130 -> 2912.845 | R130: =C店!Q130+天猫!R130+京东!R130 -> 18945.815 | S130: 7.5042304
A131: 2015-04-29 | B131: =C店!B131+天猫!B131+京东!B131 -> 30532.47 | C131: =C店!C131+天猫!C131+京东!C131 -> 1477.35 | D131: =C店!D131+天猫!D131+京东!D131 -> 0 | E131: =C店!E131+天猫!E131+京东!E131 -> 29055.12 | H131: =C店!H131+天猫!H131+京东!H131 -> 0 | I131: =C店!I131+天猫!I131+京东!I131 -> 417.21 | J131: =C店!J131+天猫!J131+京东!J131 -> 443.695 | K131: =C店!K131+天猫!K131+京东!K131 -> 2321.49 | L131: =C店!L131+天猫!L131+京东!L131 -> 91.3 | M131: =C店!M131+天猫!M131+京东!M131 -> 0 | N131: =C店!N131+天猫!N131+京东!N131 -> 0 | O131: =C店!O131+天猫!O131+京东!O131 -> 0 | P131: 0 | Q131: =C店!P131+天猫!Q131+京东!Q131 -> 3273.695 | R131: =C店!Q131+天猫!R131+京东!R131 -> 25781.425 | S131: 8.875328948
A132: 2015-04-30 | B132: =C店!B132+天猫!B132+京东!B132 -> 24040.48 | C132: =C店!C132+天猫!C132+京东!C132 -> 2426.82 | D132: =C店!D132+天猫!D132+京东!D132 -> 0 | E132: =C店!E132+天猫!E132+京东!E132 -> 21613.66 | H132: =C店!H132+天猫!H132+京东!H132 -> 0 | I132: =C店!I132+天猫!I132+京东!I132 -> 389.34 | J132: =C店!J132+天猫!J132+京东!J132 -> 402.85 | K132: =C店!K132+天猫!K132+京东!K132 -> 2175.1641 | L132: =C店!L132+天猫!L132+京东!L132 -> 90.89 | M132: =C店!M132+天猫!M132+京东!M132 -> 0 | N132: =C店!N132+天猫!N132+京东!N132 -> 0 | O132: =C店!O132+天猫!O132+京东!O132 -> 0 | P132: 0 | Q132: =C店!P132+天猫!Q132+京东!Q132 -> 3058.2441 | R132: =C店!Q132+天猫!R132+京东!R132 -> 18555.4159 | S132: 7.067342989
A133: 合计 | B133: =C店!B133+天猫!B133+京东!B133 ->  | C133: =C店!C133+天猫!C133+京东!C133 -> 31697.07 | D133: =C店!D133+天猫!D133+京东!D133 -> 0 | E133: =C店!E133+天猫!E133+京东!E133 -> 817131.32 | F133: =SUM(F103:F132) -> 0 | G133: =SUM(G103:G132) -> 0 | H133: 0 | I133: =SUM(I103:I132) -> 10935.6159 | J133: 11395.4148 | K133: 81214.1816 | L133: 2694.84 | M133: 114.13 | N133: 0 | O133: 0 | P133: 0 | Q133: 106354.1823 | R133: 710777.1377 | S133: 7.683114122
A134: 2015-05-01 | B134: =C店!B134+天猫!B134+京东!B134 -> 21125.86 | C134: =C店!C134+天猫!C134+京东!C134 -> 664 | D134: =C店!D134+天猫!D134+京东!D134 -> 0 | E134: =C店!E134+天猫!E134+京东!E134 -> 20461.86 | H134: =C店!H134+天猫!H134+京东!H134 -> 0 | I134: =C店!I134+天猫!I134+京东!I134 -> 306.15 | J134: =C店!J134+天猫!J134+京东!J134 -> 338.625 | K134: =C店!K134+天猫!K134+京东!K134 -> 2140.993 | L134: =C店!L134+天猫!L134+京东!L134 -> 35.26 | M134: =C店!M134+天猫!M134+京东!M134 -> 0 | N134: =C店!N134+天猫!N134+京东!N134 -> 0 | O134: =C店!O134+天猫!O134+京东!O134 -> 0 | P134: =C店!O134+天猫!P134+京东!P134 -> 0 | Q134: =C店!P134+天猫!Q134+京东!Q134 -> 2821.028 | R134: =C店!Q134+天猫!R134+京东!R134 -> 17640.832 | S134: 7.2533346
A135: 2015-05-02 | B135: =C店!B135+天猫!B135+京东!B135 -> 26607.31 | C135: =C店!C135+天猫!C135+京东!C135 -> 1065.52 | D135: =C店!D135+天猫!D135+京东!D135 -> 0 | E135: =C店!E135+天猫!E135+京东!E135 -> 25541.79 | H135: =C店!H135+天猫!H135+京东!H135 -> 0 | I135: =C店!I135+天猫!I135+京东!I135 -> 328.17 | J135: =C店!J135+天猫!J135+京东!J135 -> 358.925 | K135: =C店!K135+天猫!K135+京东!K135 -> 2361.1184 | L135: =C店!L135+天猫!L135+京东!L135 -> 134.48 | M135: =C店!M135+天猫!M135+京东!M135 -> 0 | N135: =C店!N135+天猫!N135+京东!N135 -> 0 | O135: =C店!O135+天猫!O135+京东!O135 -> 0 | P135: =SUM(P107:P134) -> 0 | Q135: =C店!P135+天猫!Q135+京东!Q135 -> 3182.6934 | R135: =C店!Q135+天猫!R135+京东!R135 -> 22359.0966 | S135: =E135/Q135 -> 8.025212231
A136: 2015-05-03 | B136: =C店!B136+天猫!B136+京东!B136 -> 33761.97 | C136: =C店!C136+天猫!C136+京东!C136 -> 847.8 | D136: =C店!D136+天猫!D136+京东!D136 -> 0 | E136: =C店!E136+天猫!E136+京东!E136 -> 32914.17 | H136: =C店!H136+天猫!H136+京东!H136 -> 0 | I136: =C店!I136+天猫!I136+京东!I136 -> 425.34 | J136: =C店!J136+天猫!J136+京东!J136 -> 467.04 | K136: =C店!K136+天猫!K136+京东!K136 -> 2908.25 | L136: =C店!L136+天猫!L136+京东!L136 -> 89.41 | M136: =C店!M136+天猫!M136+京东!M136 -> 0 | N136: =C店!N136+天猫!N136+京东!N136 -> 0 | O136: =C店!O136+天猫!O136+京东!O136 -> 0 | P136: 0 | Q136: =C店!P136+天猫!Q136+京东!Q136 -> 3890.04 | R136: =C店!Q136+天猫!R136+京东!R136 -> 29024.13 | S136: 8.461139217
A137: 2015-05-04 | B137: =C店!B137+天猫!B137+京东!B137 -> 32889.57 | C137: =C店!C137+天猫!C137+京东!C137 -> 260.79 | D137: =C店!D137+天猫!D137+京东!D137 -> 0 | E137: =C店!E137+天猫!E137+京东!E137 -> 32628.78 | H137: =C店!H137+天猫!H137+京东!H137 ->  | I137: =C店!I137+天猫!I137+京东!I137 -> 529.44 | J137: =C店!J137+天猫!J137+京东!J137 -> 530.005 | K137: =C店!K137+天猫!K137+京东!K137 -> 2865.5 | L137: =C店!L137+天猫!L137+京东!L137 -> 54.12 | M137: =C店!M137+天猫!M137+京东!M137 -> 0 | N137: =C店!N137+天猫!N137+京东!N137 -> 0 | O137: =C店!O137+天猫!O137+京东!O137 -> 0 | P137: 0 | Q137: =C店!P137+天猫!Q137+京东!Q137 -> 3979.065 | R137: =C店!Q137+天猫!R137+京东!R137 -> 28649.715 | S137: 8.200112338
A138: 2015-05-05 | B138: =C店!B138+天猫!B138+京东!B138 -> 32327.41 | C138: =C店!C138+天猫!C138+京东!C138 -> 1155.1 | D138: =C店!D138+天猫!D138+京东!D138 -> 0 | E138: =C店!E138+天猫!E138+京东!E138 -> 31172.31 | H138: =C店!H138+天猫!H138+京东!H138 ->  | I138: =C店!I138+天猫!I138+京东!I138 -> 435.24 | J138: =C店!J138+天猫!J138+京东!J138 -> 450.835 | K138: =C店!K138+天猫!K138+京东!K138 -> 2906.79 | L138: =C店!L138+天猫!L138+京东!L138 -> 38.07 | M138: =C店!M138+天猫!M138+京东!M138 -> 0 | N138: =C店!N138+天猫!N138+京东!N138 -> 0 | O138: =C店!O138+天猫!O138+京东!O138 -> 0 | P138: 0 | Q138: =C店!P138+天猫!Q138+京东!Q138 -> 3830.935 | R138: =C店!Q138+天猫!R138+京东!R138 -> 27341.375 | S138: 8.136997887
A139: 2015-05-06 | B139: =C店!B139+天猫!B139+京东!B139 -> 32319.58 | C139: =C店!C139+天猫!C139+京东!C139 -> 932.16 | D139: =C店!D139+天猫!D139+京东!D139 -> 0 | E139: =C店!E139+天猫!E139+京东!E139 -> 31387.42 | H139: =C店!H139+天猫!H139+京东!H139 -> 0 | I139: =C店!I139+天猫!I139+京东!I139 -> 458.85 | J139: =C店!J139+天猫!J139+京东!J139 -> 502.67 | K139: =C店!K139+天猫!K139+京东!K139 -> 2737.99 | L139: =C店!L139+天猫!L139+京东!L139 -> 134.3 | M139: =C店!M139+天猫!M139+京东!M139 -> 0 | N139: =C店!N139+天猫!N139+京东!N139 -> 0 | O139: =C店!O139+天猫!O139+京东!O139 -> 0 | P139: 0 | Q139: =C店!P139+天猫!Q139+京东!Q139 -> 3833.81 | R139: =C店!Q139+天猫!R139+京东!R139 -> 27553.61 | S139: 8.187004572
A140: 2015-05-07 | B140: =C店!B140+天猫!B140+京东!B140 -> 28297.39 | C140: =C店!C140+天猫!C140+京东!C140 -> 1256.32 | D140: =C店!D140+天猫!D140+京东!D140 -> 0 | E140: =C店!E140+天猫!E140+京东!E140 -> 27041.07 | H140: =C店!H140+天猫!H140+京东!H140 -> 0 | I140: =C店!I140+天猫!I140+京东!I140 -> 446.85 | J140: =C店!J140+天猫!J140+京东!J140 -> 456.995 | K140: =C店!K140+天猫!K140+京东!K140 -> 2523.87 | L140: =C店!L140+天猫!L140+京东!L140 -> 104.21 | M140: =C店!M140+天猫!M140+京东!M140 -> 0 | N140: =C店!N140+天猫!N140+京东!N140 -> 0 | O140: =C店!O140+天猫!O140+京东!O140 -> 0 | P140: 0 | Q140: =C店!P140+天猫!Q140+京东!Q140 -> 3531.925 | R140: =C店!Q140+天猫!R140+京东!R140 -> 23509.145 | S140: 7.656184659
A141: 2015-05-08 | B141: =C店!B141+天猫!B141+京东!B141 -> 31524.92 | C141: =C店!C141+天猫!C141+京东!C141 -> 877.79 | D141: =C店!D141+天猫!D141+京东!D141 -> 0 | E141: =C店!E141+天猫!E141+京东!E141 -> 30647.13 | H141: =C店!H141+天猫!H141+京东!H141 -> 0 | I141: =C店!I141+天猫!I141+京东!I141 -> 431.91 | J141: =C店!J141+天猫!J141+京东!J141 -> 439.18 | K141: =C店!K141+天猫!K141+京东!K141 -> 2401.1 | L141: =C店!L141+天猫!L141+京东!L141 -> 119.29 | M141: =C店!M141+天猫!M141+京东!M141 -> 0 | N141: =C店!N141+天猫!N141+京东!N141 -> 0 | O141: =C店!O141+天猫!O141+京东!O141 -> 0 | P141: 0 | Q141: =C店!P141+天猫!Q141+京东!Q141 -> 3391.48 | R141: =C店!Q141+天猫!R141+京东!R141 -> 27255.65 | S141: 9.036506186
A142: 2015-05-09 | B142: =C店!B142+天猫!B142+京东!B142 -> 31910.84 | C142: =C店!C142+天猫!C142+京东!C142 -> 636.44 | D142: =C店!D142+天猫!D142+京东!D142 -> 1727 | E142: =C店!E142+天猫!E142+京东!E142 -> 29547.4 | H142: =C店!H142+天猫!H142+京东!H142 -> 0 | I142: =C店!I142+天猫!I142+京东!I142 -> 414.57 | J142: =C店!J142+天猫!J142+京东!J142 -> 447.965 | K142: =C店!K142+天猫!K142+京东!K142 -> 2108.8 | L142: =C店!L142+天猫!L142+京东!L142 -> 136.72 | M142: =C店!M142+天猫!M142+京东!M142 -> 0 | N142: =C店!N142+天猫!N142+京东!N142 -> 0 | O142: =C店!O142+天猫!O142+京东!O142 -> 0 | P142: 0 | Q142: =C店!P142+天猫!Q142+京东!Q142 -> 3108.055 | R142: =C店!Q142+天猫!R142+京东!R142 -> 26439.345 | S142: 9.506717223
A143: 2015-05-10 | B143: =C店!B143+天猫!B143+京东!B143 -> 31497.58 | C143: =C店!C143+天猫!C143+京东!C143 -> 1169.82 | D143: =C店!D143+天猫!D143+京东!D143 -> 0 | E143: =C店!E143+天猫!E143+京东!E143 -> 30327.76 | H143: =C店!H143+天猫!H143+京东!H143 -> 0 | I143: =C店!I143+天猫!I143+京东!I143 -> 456.27 | J143: =C店!J143+天猫!J143+京东!J143 -> 485.17 | K143: =C店!K143+天猫!K143+京东!K143 -> 2273.05 | L143: =C店!L143+天猫!L143+京东!L143 -> 143.35 | M143: =C店!M143+天猫!M143+京东!M143 -> 0 | N143: =C店!N143+天猫!N143+京东!N143 -> 0 | O143: =C店!O143+天猫!O143+京东!O143 -> 0 | P143: 0 | Q143: =C店!P143+天猫!Q143+京东!Q143 -> 3357.84 | R143: =C店!Q143+天猫!R143+京东!R143 -> 26969.92 | S143: 9.031925285
A144: 2015-05-11 | B144: =C店!B144+天猫!B144+京东!B144 -> 34233.17 | C144: =C店!C144+天猫!C144+京东!C144 -> 715 | D144: =C店!D144+天猫!D144+京东!D144 -> 0 | E144: =C店!E144+天猫!E144+京东!E144 -> 33518.17 | H144: =C店!H144+天猫!H144+京东!H144 -> 0 | I144: =C店!I144+天猫!I144+京东!I144 -> 450.72 | J144: =C店!J144+天猫!J144+京东!J144 -> 482.965 | K144: =C店!K144+天猫!K144+京东!K144 -> 2573.52 | L144: =C店!L144+天猫!L144+京东!L144 -> 89.67 | M144: =C店!M144+天猫!M144+京东!M144 -> 0 | N144: =C店!N144+天猫!N144+京东!N144 -> 0 | O144: =C店!O144+天猫!O144+京东!O144 -> 0 | P144: 0 | Q144: =C店!P144+天猫!Q144+京东!Q144 -> 3596.875 | R144: =C店!Q144+天猫!R144+京东!R144 -> 29921.295 | S144: 9.31869192
A145: 2015-05-12 | B145: =C店!B145+天猫!B145+京东!B145 -> 37584.39 | C145: =C店!C145+天猫!C145+京东!C145 -> 714.97 | D145: =C店!D145+天猫!D145+京东!D145 -> 740 | E145: =C店!E145+天猫!E145+京东!E145 -> 36129.42 | H145: =C店!H145+天猫!H145+京东!H145 -> 0 | I145: =C店!I145+天猫!I145+京东!I145 -> 582.63 | J145: =C店!J145+天猫!J145+京东!J145 -> 646.8 | K145: =C店!K145+天猫!K145+京东!K145 -> 2540.34 | L145: =C店!L145+天猫!L145+京东!L145 -> 145.06 | M145: =C店!M145+天猫!M145+京东!M145 -> 0 | N145: =C店!N145+天猫!N145+京东!N145 -> 0 | O145: =C店!O145+天猫!O145+京东!O145 -> 0 | P145: 0 | Q145: =C店!P145+天猫!Q145+京东!Q145 -> 3914.83 | R145: =C店!Q145+天猫!R145+京东!R145 -> 32250.59 | S145: 9.228860512
A146: 2015-05-13 | B146: =C店!B146+天猫!B146+京东!B146 -> 36296.24 | C146: =C店!C146+天猫!C146+京东!C146 -> 1577.3 | D146: =C店!D146+天猫!D146+京东!D146 -> 0 | E146: =C店!E146+天猫!E146+京东!E146 -> 34718.94 | H146: =C店!H146+天猫!H146+京东!H146 -> 0 | I146: =C店!I146+天猫!I146+京东!I146 -> 407.49 | J146: =C店!J146+天猫!J146+京东!J146 -> 446.915 | K146: =C店!K146+天猫!K146+京东!K146 -> 2519.59 | L146: =C店!L146+天猫!L146+京东!L146 -> 100.72 | M146: =C店!M146+天猫!M146+京东!M146 -> 0 | N146: =C店!N146+天猫!N146+京东!N146 -> 0 | O146: =C店!O146+天猫!O146+京东!O146 -> 0 | P146: 0 | Q146: =C店!P146+天猫!Q146+京东!Q146 -> 3474.715 | R146: =C店!Q146+天猫!R146+京东!R146 -> 31244.225 | S146: 9.991881349
A147: 2015-05-14 | B147: =C店!B147+天猫!B147+京东!B147 -> 35237.78 | C147: =C店!C147+天猫!C147+京东!C147 -> 663.09 | D147: =C店!D147+天猫!D147+京东!D147 -> 3143 | E147: =C店!E147+天猫!E147+京东!E147 -> 32445.69 | H147: =C店!H147+天猫!H147+京东!H147 -> 0 | I147: =C店!I147+天猫!I147+京东!I147 -> 467.61 | J147: =C店!J147+天猫!J147+京东!J147 -> 528.36 | K147: =C店!K147+天猫!K147+京东!K147 -> 2679.01 | L147: =C店!L147+天猫!L147+京东!L147 -> 264.52 | M147: =C店!M147+天猫!M147+京东!M147 -> 0 | N147: =C店!N147+天猫!N147+京东!N147 -> 0 | O147: =C店!O147+天猫!O147+京东!O147 -> 0 | P147: 0 | Q147: =C店!P147+天猫!Q147+京东!Q147 -> 3939.5 | R147: =C店!Q147+天猫!R147+京东!R147 -> 28506.19 | S147: 8.235991877
A148: 2015-05-15 | B148: =C店!B148+天猫!B148+京东!B148 -> 29831.85 | C148: =C店!C148+天猫!C148+京东!C148 -> 798.27 | D148: =C店!D148+天猫!D148+京东!D148 -> 0 | E148: =C店!E148+天猫!E148+京东!E148 -> 29033.58 | H148: =C店!H148+天猫!H148+京东!H148 -> 0 | I148: =C店!I148+天猫!I148+京东!I148 -> 433.02 | J148: =C店!J148+天猫!J148+京东!J148 -> 479.08 | K148: =C店!K148+天猫!K148+京东!K148 -> 2772.6418 | L148: =C店!L148+天猫!L148+京东!L148 -> 220.76 | M148: =C店!M148+天猫!M148+京东!M148 -> 0 | N148: =C店!N148+天猫!N148+京东!N148 -> 0 | O148: =C店!O148+天猫!O148+京东!O148 -> 0 | P148: 0 | Q148: =C店!P148+天猫!Q148+京东!Q148 -> 3905.5018 | R148: =C店!Q148+天猫!R148+京东!R148 -> 25128.0782 | S148: 7.434020386
A149: 2015-05-16 | B149: =C店!B149+天猫!B149+京东!B149 -> 28397.7 | C149: =C店!C149+天猫!C149+京东!C149 -> 745.36 | D149: =C店!D149+天猫!D149+京东!D149 -> 0 | E149: =C店!E149+天猫!E149+京东!E149 -> 27652.34 | H149: =C店!H149+天猫!H149+京东!H149 -> 0 | I149: =C店!I149+天猫!I149+京东!I149 -> 359.01 | J149: =C店!J149+天猫!J149+京东!J149 -> 388.395 | K149: =C店!K149+天猫!K149+京东!K149 -> 2692.6136 | L149: =C店!L149+天猫!L149+京东!L149 -> 139.22 | M149: =C店!M149+天猫!M149+京东!M149 -> 0 | N149: =C店!N149+天猫!N149+京东!N149 -> 0 | O149: =C店!O149+天猫!O149+京东!O149 -> 0 | P149: 0 | Q149: =C店!P149+天猫!Q149+京东!Q149 -> 3579.2386 | R149: =C店!Q149+天猫!R149+京东!R149 -> 24073.1014 | S149: 7.725760445
A150: 2015-05-17 | B150: =C店!B150+天猫!B150+京东!B150 -> 31921.8 | C150: =C店!C150+天猫!C150+京东!C150 -> 552.69 | D150: =C店!D150+天猫!D150+京东!D150 -> 0 | E150: =C店!E150+天猫!E150+京东!E150 -> 31369.11 | H150: =C店!H150+天猫!H150+京东!H150 -> 0 | I150: =C店!I150+天猫!I150+京东!I150 -> 443.4 | J150: =C店!J150+天猫!J150+京东!J150 -> 493.395 | K150: =C店!K150+天猫!K150+京东!K150 -> 3448.47 | L150: =C店!L150+天猫!L150+京东!L150 -> 102.2 | M150: =C店!M150+天猫!M150+京东!M150 -> 0 | N150: =C店!N150+天猫!N150+京东!N150 -> 0 | O150: =C店!O150+天猫!O150+京东!O150 -> 0 | P150: 0 | Q150: =C店!P150+天猫!Q150+京东!Q150 -> 4487.465 | R150: =C店!Q150+天猫!R150+京东!R150 -> 26881.645 | S150: 6.99038544
A151: 2015-05-18 | B151: =C店!B151+天猫!B151+京东!B151 -> 37538.61 | C151: =C店!C151+天猫!C151+京东!C151 -> 1313.28 | D151: =C店!D151+天猫!D151+京东!D151 -> 0 | E151: =C店!E151+天猫!E151+京东!E151 -> 36225.33 | H151: =C店!H151+天猫!H151+京东!H151 -> 0 | I151: =C店!I151+天猫!I151+京东!I151 -> 471.81 | J151: =C店!J151+天猫!J151+京东!J151 -> 513.905 | K151: =C店!K151+天猫!K151+京东!K151 -> 3542.28 | L151: =C店!L151+天猫!L151+京东!L151 -> 115.04 | M151: =C店!M151+天猫!M151+京东!M151 -> 0 | N151: =C店!N151+天猫!N151+京东!N151 -> 0 | O151: =C店!O151+天猫!O151+京东!O151 -> 0 | P151: 0 | Q151: =C店!P151+天猫!Q151+京东!Q151 -> 4643.035 | R151: =C店!Q151+天猫!R151+京东!R151 -> 31582.295 | S151: 7.80207989
A152: 2015-05-19 | B152: =C店!B152+天猫!B152+京东!B152 -> 34167.87 | C152: =C店!C152+天猫!C152+京东!C152 -> 1162.08 | D152: =C店!D152+天猫!D152+京东!D152 -> 468 | E152: =C店!E152+天猫!E152+京东!E152 -> 32537.79 | H152: =C店!H152+天猫!H152+京东!H152 -> 0 | I152: =C店!I152+天猫!I152+京东!I152 -> 518.13 | J152: =C店!J152+天猫!J152+京东!J152 -> 544.005 | K152: =C店!K152+天猫!K152+京东!K152 -> 3436.56 | L152: =C店!L152+天猫!L152+京东!L152 -> 167.11 | M152: =C店!M152+天猫!M152+京东!M152 -> 0 | N152: =C店!N152+天猫!N152+京东!N152 -> 0 | O152: =C店!O152+天猫!O152+京东!O152 -> 0 | P152: 0 | Q152: =C店!P152+天猫!Q152+京东!Q152 -> 4665.805 | R152: =C店!Q152+天猫!R152+京东!R152 -> 27871.985 | S152: 6.97367121
A153: 2015-05-20 | B153: =C店!B153+天猫!B153+京东!B153 -> 34350.63 | C153: =C店!C153+天猫!C153+京东!C153 -> 1204.81 | D153: =C店!D153+天猫!D153+京东!D153 -> 0 | E153: =C店!E153+天猫!E153+京东!E153 -> 33145.82 | H153: =C店!H153+天猫!H153+京东!H153 -> 0 | I153: =C店!I153+天猫!I153+京东!I153 -> 458.88 | J153: =C店!J153+天猫!J153+京东!J153 -> 478.87 | K153: =C店!K153+天猫!K153+京东!K153 -> 2919.49 | L153: =C店!L153+天猫!L153+京东!L153 -> 164.53 | M153: =C店!M153+天猫!M153+京东!M153 -> 0 | N153: =C店!N153+天猫!N153+京东!N153 -> 0 | O153: =C店!O153+天猫!O153+京东!O153 -> 0 | P153: 0 | Q153: =C店!P153+天猫!Q153+京东!Q153 -> 4021.77 | R153: =C店!Q153+天猫!R153+京东!R153 -> 29124.05 | S153: 8.241600092
A154: 2015-05-21 | B154: =C店!B154+天猫!B154+京东!B154 -> 37837.57 | C154: =C店!C154+天猫!C154+京东!C154 -> 562.04 | D154: =C店!D154+天猫!D154+京东!D154 -> 468 | E154: =C店!E154+天猫!E154+京东!E154 -> 36807.53 | H154: =C店!H154+天猫!H154+京东!H154 -> 0 | I154: =C店!I154+天猫!I154+京东!I154 -> 556.95 | J154: =C店!J154+天猫!J154+京东!J154 -> 553.84 | K154: =C店!K154+天猫!K154+京东!K154 -> 3226.35 | L154: =C店!L154+天猫!L154+京东!L154 -> 159.49 | M154: =C店!M154+天猫!M154+京东!M154 -> 0 | N154: =C店!N154+天猫!N154+京东!N154 -> 0 | O154: =C店!O154+天猫!O154+京东!O154 -> 0 | P154: 0 | Q154: =C店!P154+天猫!Q154+京东!Q154 -> 1989.63 | R154: =C店!Q154+天猫!R154+京东!R154 -> 12949.33 | S154: 18.49968587
A155: 2015-05-22 | B155: =C店!B155+天猫!B155+京东!B155 -> 37848.25 | C155: =C店!C155+天猫!C155+京东!C155 -> 1467.19 | D155: =C店!D155+天猫!D155+京东!D155 -> 0 | E155: =C店!E155+天猫!E155+京东!E155 -> 36381.06 | H155: =C店!H155+天猫!H155+京东!H155 -> 0 | I155: =C店!I155+天猫!I155+京东!I155 -> 456.6 | J155: =C店!J155+天猫!J155+京东!J155 -> 481.985 | K155: =C店!K155+天猫!K155+京东!K155 -> 2900.26 | L155: =C店!L155+天猫!L155+京东!L155 -> 135.62 | M155: =C店!M155+天猫!M155+京东!M155 -> 0 | N155: =C店!N155+天猫!N155+京东!N155 -> 0 | O155: =C店!O155+天猫!O155+京东!O155 -> 0 | P155: 0 | Q155: =C店!P155+天猫!Q155+京东!Q155 -> 1744.015 | R155: =C店!Q155+天猫!R155+京东!R155 -> 12026.985 | S155: 20.86052012
A156: 2015-05-23 | B156: =C店!B156+天猫!B156+京东!B156 -> 38146.85 | C156: =C店!C156+天猫!C156+京东!C156 -> 1200.24 | D156: =C店!D156+天猫!D156+京东!D156 -> 0 | E156: =C店!E156+天猫!E156+京东!E156 -> 36946.61 | H156: =C店!H156+天猫!H156+京东!H156 -> 0 | I156: =C店!I156+天猫!I156+京东!I156 -> 371.25 | J156: =C店!J156+天猫!J156+京东!J156 -> 413.735 | K156: =C店!K156+天猫!K156+京东!K156 -> 3013.0302 | L156: =C店!L156+天猫!L156+京东!L156 -> 106 | M156: =C店!M156+天猫!M156+京东!M156 -> 0 | N156: =C店!N156+天猫!N156+京东!N156 -> 0 | O156: =C店!O156+天猫!O156+京东!O156 -> 0 | P156: 0 | Q156: =C店!P156+天猫!Q156+京东!Q156 -> 1580.1052 | R156: =C店!Q156+天猫!R156+京东!R156 -> 9438.8948 | S156: 23.38237353
A157: 2015-05-24 | B157: =C店!B157+天猫!B157+京东!B157 -> 39372.09 | C157: =C店!C157+天猫!C157+京东!C157 -> 1171.63 | D157: =C店!D157+天猫!D157+京东!D157 -> 0 | E157: =C店!E157+天猫!E157+京东!E157 -> 38200.46 | H157: =C店!H157+天猫!H157+京东!H157 -> 0 | I157: =C店!I157+天猫!I157+京东!I157 -> 440.46 | J157: =C店!J157+天猫!J157+京东!J157 -> 468.685 | K157: =C店!K157+天猫!K157+京东!K157 -> 3538.27 | L157: =C店!L157+天猫!L157+京东!L157 -> 115.55 | M157: =C店!M157+天猫!M157+京东!M157 -> 0 | N157: =C店!N157+天猫!N157+京东!N157 -> 0 | O157: =C店!O157+天猫!O157+京东!O157 -> 0 | P157: 0 | Q157: =C店!P157+天猫!Q157+京东!Q157 -> 2127.645 | R157: =C店!Q157+天猫!R157+京东!R157 -> 10727.115 | S157: 17.95433919
A158: 2015-05-25 | B158: =C店!B158+天猫!B158+京东!B158 -> 42872.63 | C158: =C店!C158+天猫!C158+京东!C158 -> 2271.72 | D158: =C店!D158+天猫!D158+京东!D158 -> 0 | E158: =C店!E158+天猫!E158+京东!E158 -> 40600.91 | H158: =C店!H158+天猫!H158+京东!H158 -> 0 | I158: =C店!I158+天猫!I158+京东!I158 -> 607.89 | J158: =C店!J158+天猫!J158+京东!J158 -> 675.78 | K158: =C店!K158+天猫!K158+京东!K158 -> 3177.66 | L158: =C店!L158+天猫!L158+京东!L158 -> 249.88 | M158: =C店!M158+天猫!M158+京东!M158 -> 0 | N158: =C店!N158+天猫!N158+京东!N158 -> 0 | O158: =C店!O158+天猫!O158+京东!O158 -> 0 | P158: 0 | Q158: =C店!P158+天猫!Q158+京东!Q158 -> 2276.5 | R158: =C店!Q158+天猫!R158+京东!R158 -> 15435.98 | S158: 17.83479464
A159: 2015-05-26 | B159: =C店!B159+天猫!B159+京东!B159 -> 44346.26 | C159: =C店!C159+天猫!C159+京东!C159 -> 1982.21 | D159: =C店!D159+天猫!D159+京东!D159 -> 0 | E159: =C店!E159+天猫!E159+京东!E159 -> 42364.05 | H159: =C店!H159+天猫!H159+京东!H159 -> 0 | I159: =C店!I159+天猫!I159+京东!I159 -> 619.11 | J159: =C店!J159+天猫!J159+京东!J159 -> 651.49 | K159: =C店!K159+天猫!K159+京东!K159 -> 3173.69 | L159: =C店!L159+天猫!L159+京东!L159 -> 206.82 | M159: =C店!M159+天猫!M159+京东!M159 -> 0 | N159: =C店!N159+天猫!N159+京东!N159 -> 0 | O159: =C店!O159+天猫!O159+京东!O159 -> 0 | P159: 0 | Q159: =C店!P159+天猫!Q159+京东!Q159 -> 2269.04 | R159: =C店!Q159+天猫!R159+京东!R159 -> 15724.96 | S159: 18.67047298
A160: 2015-05-27 | B160: =C店!B160+天猫!B160+京东!B160 -> 35364.4 | C160: =C店!C160+天猫!C160+京东!C160 -> 956.05 | D160: =C店!D160+天猫!D160+京东!D160 -> 0 | E160: =C店!E160+天猫!E160+京东!E160 -> 34408.35 | H160: =C店!H160+天猫!H160+京东!H160 -> 0 | I160: =C店!I160+天猫!I160+京东!I160 -> 394.2 | J160: =C店!J160+天猫!J160+京东!J160 -> 424.48 | K160: =C店!K160+天猫!K160+京东!K160 -> 3107.31 | L160: =C店!L160+天猫!L160+京东!L160 -> 178.73 | M160: =C店!M160+天猫!M160+京东!M160 -> 0 | N160: =C店!N160+天猫!N160+京东!N160 -> 0 | O160: =C店!O160+天猫!O160+京东!O160 -> 0 | P160: 0 | Q160: =C店!P160+天猫!Q160+京东!Q160 -> 1842.82 | R160: =C店!Q160+天猫!R160+京东!R160 -> 10285.18 | S160: 18.671574
A161: 2015-05-28 | B161: =C店!B161+天猫!B161+京东!B161 -> 35995 | C161: =C店!C161+天猫!C161+京东!C161 -> 690.02 | D161: =C店!D161+天猫!D161+京东!D161 -> 0 | E161: =C店!E161+天猫!E161+京东!E161 -> 35304.98 | H161: =C店!H161+天猫!H161+京东!H161 -> 0 | I161: =C店!I161+天猫!I161+京东!I161 -> 537.93 | J161: =C店!J161+天猫!J161+京东!J161 -> 578.41 | K161: =C店!K161+天猫!K161+京东!K161 -> 3415.72 | L161: =C店!L161+天猫!L161+京东!L161 -> 277.51 | M161: =C店!M161+天猫!M161+京东!M161 -> 0 | N161: =C店!N161+天猫!N161+京东!N161 -> 0 | O161: =C店!O161+天猫!O161+京东!O161 -> 0 | P161: 0 | Q161: =C店!P161+天猫!Q161+京东!Q161 -> 2341.98 | R161: =C店!Q161+天猫!R161+京东!R161 -> 13710.02 | S161: 15.07484265
A162: 2015-05-29 | B162: =C店!B162+天猫!B162+京东!B162 -> 31922.88 | C162: =C店!C162+天猫!C162+京东!C162 -> 1037.85 | D162: =C店!D162+天猫!D162+京东!D162 -> 0 | E162: =C店!E162+天猫!E162+京东!E162 -> 30885.03 | H162: =C店!H162+天猫!H162+京东!H162 -> 0 | I162: =C店!I162+天猫!I162+京东!I162 -> 439.17 | J162: =C店!J162+天猫!J162+京东!J162 -> 453.145 | K162: =C店!K162+天猫!K162+京东!K162 -> 3153.6297 | L162: =C店!L162+天猫!L162+京东!L162 -> 123.8 | M162: =C店!M162+天猫!M162+京东!M162 -> 0 | N162: =C店!N162+天猫!N162+京东!N162 -> 0 | O162: =C店!O162+天猫!O162+京东!O162 -> 0 | P162: 0 | Q162: =C店!P162+天猫!Q162+京东!Q162 -> 2071.5247 | R162: =C店!Q162+天猫!R162+京东!R162 -> 10875.4753 | S162: 14.90932259
A163: 2015-05-30 | B163: =C店!B163+天猫!B163+京东!B163 -> 30861.39 | C163: =C店!C163+天猫!C163+京东!C163 -> 1546.89 | D163: =C店!D163+天猫!D163+京东!D163 -> 0 | E163: =C店!E163+天猫!E163+京东!E163 -> 29314.5 | H163: =C店!H163+天猫!H163+京东!H163 -> 0 | I163: =C店!I163+天猫!I163+京东!I163 -> 499.53 | J163: =C店!J163+天猫!J163+京东!J163 -> 513.135 | K163: =C店!K163+天猫!K163+京东!K163 -> 2873.56 | L163: =C店!L163+天猫!L163+京东!L163 -> 164.33 | M163: =C店!M163+天猫!M163+京东!M163 -> 0 | N163: =C店!N163+天猫!N163+京东!N163 -> 0 | O163: =C店!O163+天猫!O163+京东!O163 -> 0 | P163: 0 | Q163: =C店!P163+天猫!Q163+京东!Q163 -> 2140.195 | R163: =C店!Q163+天猫!R163+京东!R163 -> 12520.805 | S163: 13.69711638
A164: 2015-05-31 | B164: =C店!B164+天猫!B164+京东!B164 -> 36179.07 | C164: =C店!C164+天猫!C164+京东!C164 -> 696.24 | D164: =C店!D164+天猫!D164+京东!D164 -> 0 | E164: =C店!E164+天猫!E164+京东!E164 -> 35482.83 | H164: =C店!H164+天猫!H164+京东!H164 -> 0 | I164: =C店!I164+天猫!I164+京东!I164 -> 585.48 | J164: =C店!J164+天猫!J164+京东!J164 -> 609.21 | K164: =C店!K164+天猫!K164+京东!K164 -> 1934.39 | L164: =C店!L164+天猫!L164+京东!L164 -> 123.88 | M164: =C店!M164+天猫!M164+京东!M164 -> 0 | N164: =C店!N164+天猫!N164+京东!N164 -> 0 | O164: =C店!O164+天猫!O164+京东!O164 -> 0 | P164: 0 | Q164: =C店!P164+天猫!Q164+京东!Q164 -> 2404.79 | R164: =C店!Q164+天猫!R164+京东!R164 -> 15001.21 | S164: =E164/Q164 -> 14.75506385
A165: 合计 | B165: =C店!B165+天猫!B165+京东!B165 -> 1052568.86 | C165: =C店!C165+天猫!C165+京东!C165 -> 31894.67 | D165: =C店!D165+天猫!D165+京东!D165 -> 6546 | E165: =C店!E165+天猫!E165+京东!E165 -> 1015142.19 | F165: =SUM(F135:F164) -> 0 | G165: =SUM(G135:G164) -> 0 | H165: 0 | I165: =SUM(I135:I164) -> 14027.91 | J165: 14965.37 | K165: 85724.8537 | L165: 4304.39 | M165: 0 | N165: 0 | O165: 0 | P165: 0 | Q165: 95122.8237 | R165: 664381.3963 | S165: 10.67190975
A166: 2015-06-01 | B166: =C店!B166+天猫!B166+京东!B166 -> 37889.41 | C166: =C店!C166+天猫!C166+京东!C166 -> 1295.32 | D166: =C店!D166+天猫!D166+京东!D166 -> 0 | E166: =C店!E166+天猫!E166+京东!E166 -> 36594.09 | H166: =C店!H166+天猫!H166+京东!H166 -> 0 | I166: =C店!I166+天猫!I166+京东!I166 -> 514.92 | J166: =C店!J166+天猫!J166+京东!J166 -> 526.155 | K166: =C店!K166+天猫!K166+京东!K166 -> 3016.47 | L166: =C店!L166+天猫!L166+京东!L166 -> 273.06 | M166: =C店!M166+天猫!M166+京东!M166 -> 0 | N166: =C店!N166+天猫!N166+京东!N166 -> 0 | O166: =C店!O166+天猫!O166+京东!O166 -> 0 | P166: =C店!O166+天猫!P166+京东!P166 -> 0 | Q166: =C店!P166+天猫!Q166+京东!Q166 -> 2231.785 | R166: =C店!Q166+天猫!R166+京东!R166 -> 12335.215 | S166: 16.39678105
A167: 2015-06-02 | B167: =C店!B167+天猫!B167+京东!B167 -> 41057.53 | C167: =C店!C167+天猫!C167+京东!C167 -> 1303.71 | D167: =C店!D167+天猫!D167+京东!D167 -> 0 | E167: =C店!E167+天猫!E167+京东!E167 -> 39753.82 | H167: =C店!H167+天猫!H167+京东!H167 -> 0 | I167: =C店!I167+天猫!I167+京东!I167 -> 568.89 | J167: =C店!J167+天猫!J167+京东!J167 -> 600.53 | K167: =C店!K167+天猫!K167+京东!K167 -> 3221.13 | L167: =C店!L167+天猫!L167+京东!L167 -> 120.15 | M167: =C店!M167+天猫!M167+京东!M167 -> 0 | N167: =C店!N167+天猫!N167+京东!N167 -> 0 | O167: =C店!O167+天猫!O167+京东!O167 -> 0 | P167: =SUM(P139:P166) -> 0 | Q167: =C店!P167+天猫!Q167+京东!Q167 -> 2258.32 | R167: =C店!Q167+天猫!R167+京东!R167 -> 14899.68 | S167: =E167/Q167 -> 17.60327146
A168: 2015-06-03 | B168: =C店!B168+天猫!B168+京东!B168 -> 39031.47 | C168: =C店!C168+天猫!C168+京东!C168 -> 1558.8 | D168: =C店!D168+天猫!D168+京东!D168 -> 0 | E168: =C店!E168+天猫!E168+京东!E168 -> 37472.67 | H168: =C店!H168+天猫!H168+京东!H168 -> 0 | I168: =C店!I168+天猫!I168+京东!I168 -> 554.4 | J168: =C店!J168+天猫!J168+京东!J168 -> 554.435 | K168: =C店!K168+天猫!K168+京东!K168 -> 3008.21 | L168: =C店!L168+天猫!L168+京东!L168 -> 168.96 | M168: =C店!M168+天猫!M168+京东!M168 -> 0 | N168: =C店!N168+天猫!N168+京东!N168 -> 0 | O168: =C店!O168+天猫!O168+京东!O168 -> 0 | P168: 0 | Q168: =C店!P168+天猫!Q168+京东!Q168 -> 2357.615 | R168: =C店!Q168+天猫!R168+京东!R168 -> 12620.725 | S168: 15.89431268
A169: 2015-06-04 | B169: =C店!B169+天猫!B169+京东!B169 -> 37272.63 | C169: =C店!C169+天猫!C169+京东!C169 -> 1814.46 | D169: =C店!D169+天猫!D169+京东!D169 -> 0 | E169: =C店!E169+天猫!E169+京东!E169 -> 35458.17 | H169: =C店!H169+天猫!H169+京东!H169 -> 0 | I169: =C店!I169+天猫!I169+京东!I169 -> 556.2 | J169: =C店!J169+天猫!J169+京东!J169 -> 588.735 | K169: =C店!K169+天猫!K169+京东!K169 -> 3350.07 | L169: =C店!L169+天猫!L169+京东!L169 -> 93.66 | M169: =C店!M169+天猫!M169+京东!M169 -> 0 | N169: =C店!N169+天猫!N169+京东!N169 -> 0 | O169: =C店!O169+天猫!O169+京东!O169 -> 0 | P169: 0 | Q169: =C店!P169+天猫!Q169+京东!Q169 -> 2464.235 | R169: =C店!Q169+天猫!R169+京东!R169 -> 14356.765 | S169: 14.38911873
A170: 2015-06-05 | B170: =C店!B170+天猫!B170+京东!B170 -> 36524.06 | C170: =C店!C170+天猫!C170+京东!C170 -> 1950.71 | D170: =C店!D170+天猫!D170+京东!D170 -> 0 | E170: =C店!E170+天猫!E170+京东!E170 -> 34573.35 | H170: =C店!H170+天猫!H170+京东!H170 -> 0 | I170: =C店!I170+天猫!I170+京东!I170 -> 519.3 | J170: =C店!J170+天猫!J170+京东!J170 -> 513.94735 | K170: =C店!K170+天猫!K170+京东!K170 -> 3762.22 | L170: =C店!L170+天猫!L170+京东!L170 -> 166.99 | M170: =C店!M170+天猫!M170+京东!M170 -> 0 | N170: =C店!N170+天猫!N170+京东!N170 -> 0 | O170: =C店!O170+天猫!O170+京东!O170 -> 0 | P170: 0 | Q170: =C店!P170+天猫!Q170+京东!Q170 -> 2610.95735 | R170: =C店!Q170+天猫!R170+京东!R170 -> 12073.25265 | S170: 13.24163721
A171: 2015-06-06 | B171: =C店!B171+天猫!B171+京东!B171 -> 37071.73 | C171: =C店!C171+天猫!C171+京东!C171 -> 1692.19 | D171: =C店!D171+天猫!D171+京东!D171 -> 0 | E171: =C店!E171+天猫!E171+京东!E171 -> 35379.54 | H171: =C店!H171+天猫!H171+京东!H171 -> 0 | I171: =C店!I171+天猫!I171+京东!I171 -> 573.39 | J171: =C店!J171+天猫!J171+京东!J171 -> 577.43 | K171: =C店!K171+天猫!K171+京东!K171 -> 3863.5091 | L171: =C店!L171+天猫!L171+京东!L171 -> 78.97 | M171: =C店!M171+天猫!M171+京东!M171 -> 0 | N171: =C店!N171+天猫!N171+京东!N171 -> 0 | O171: =C店!O171+天猫!O171+京东!O171 -> 0 | P171: 0 | Q171: =C店!P171+天猫!Q171+京东!Q171 -> 2755.5091 | R171: =C店!Q171+天猫!R171+京东!R171 -> 13742.4909 | S171: 12.83956565
A172: 2015-06-07 | B172: =C店!B172+天猫!B172+京东!B172 -> 37958.46 | C172: =C店!C172+天猫!C172+京东!C172 -> 383 | D172: =C店!D172+天猫!D172+京东!D172 -> 0 | E172: =C店!E172+天猫!E172+京东!E172 -> 37575.46 | H172: =C店!H172+天猫!H172+京东!H172 -> 0 | I172: =C店!I172+天猫!I172+京东!I172 -> 564.27 | J172: =C店!J172+天猫!J172+京东!J172 -> 612.535 | K172: =C店!K172+天猫!K172+京东!K172 -> 4830.18 | L172: =C店!L172+天猫!L172+京东!L172 -> 70.78 | M172: =C店!M172+天猫!M172+京东!M172 -> 0 | N172: =C店!N172+天猫!N172+京东!N172 -> 0 | O172: =C店!O172+天猫!O172+京东!O172 -> 0 | P172: 0 | Q172: =C店!P172+天猫!Q172+京东!Q172 -> 3068.645 | R172: =C店!Q172+天猫!R172+京东!R172 -> 14432.355 | S172: 12.24496806
A173: 2015-06-08 | B173: =C店!B173+天猫!B173+京东!B173 -> 46170.08 | C173: =C店!C173+天猫!C173+京东!C173 -> 2585.87 | D173: =C店!D173+天猫!D173+京东!D173 -> 0 | E173: =C店!E173+天猫!E173+京东!E173 -> 43584.21 | H173: =C店!H173+天猫!H173+京东!H173 -> 0 | I173: =C店!I173+天猫!I173+京东!I173 -> 796.47 | J173: =C店!J173+天猫!J173+京东!J173 -> 816.87165 | K173: =C店!K173+天猫!K173+京东!K173 -> 4493.63 | L173: =C店!L173+天猫!L173+京东!L173 -> 146.15 | M173: =C店!M173+天猫!M173+京东!M173 -> 0 | N173: =C店!N173+天猫!N173+京东!N173 -> 0 | O173: =C店!O173+天猫!O173+京东!O173 -> 0 | P173: 0 | Q173: =C店!P173+天猫!Q173+京东!Q173 -> 3435.48165 | R173: =C店!Q173+天猫!R173+京东!R173 -> 19903.70835 | S173: 12.68649186
A174: 2015-06-09 | B174: =C店!B174+天猫!B174+京东!B174 -> 44492.69 | C174: =C店!C174+天猫!C174+京东!C174 -> 1984.97 | D174: =C店!D174+天猫!D174+京东!D174 -> 0 | E174: =C店!E174+天猫!E174+京东!E174 -> 42507.72 | H174: =C店!H174+天猫!H174+京东!H174 -> 0 | I174: =C店!I174+天猫!I174+京东!I174 -> 811.8 | J174: =C店!J174+天猫!J174+京东!J174 -> 830.7117 | K174: =C店!K174+天猫!K174+京东!K174 -> 5002.9874 | L174: =C店!L174+天猫!L174+京东!L174 -> 159.09 | M174: =C店!M174+天猫!M174+京东!M174 -> 0 | N174: =C店!N174+天猫!N174+京东!N174 -> 0 | O174: =C店!O174+天猫!O174+京东!O174 -> 0 | P174: 0 | Q174: =C店!P174+天猫!Q174+京东!Q174 -> 4105.6091 | R174: =C店!Q174+天猫!R174+京东!R174 -> 19629.0109 | S174: 10.35357214
A175: 2015-06-10 | B175: =C店!B175+天猫!B175+京东!B175 -> 48952.69 | C175: =C店!C175+天猫!C175+京东!C175 -> 1480.14 | D175: =C店!D175+天猫!D175+京东!D175 -> 0 | E175: =C店!E175+天猫!E175+京东!E175 -> 47472.55 | H175: =C店!H175+天猫!H175+京东!H175 -> 0 | I175: =C店!I175+天猫!I175+京东!I175 -> 734.25 | J175: =C店!J175+天猫!J175+京东!J175 -> 735.1351 | K175: =C店!K175+天猫!K175+京东!K175 -> 5680.4296 | L175: =C店!L175+天猫!L175+京东!L175 -> 118 | M175: =C店!M175+天猫!M175+京东!M175 -> 0 | N175: =C店!N175+天猫!N175+京东!N175 -> 0 | O175: =C店!O175+天猫!O175+京东!O175 -> 0 | P175: 0 | Q175: =C店!P175+天猫!Q175+京东!Q175 -> 4678.4847 | R175: =C店!Q175+天猫!R175+京东!R175 -> 16325.3753 | S175: 10.14699268
A176: 2015-06-11 | B176: =C店!B176+天猫!B176+京东!B176 -> 46816.32 | C176: =C店!C176+天猫!C176+京东!C176 -> 2491.54 | D176: =C店!D176+天猫!D176+京东!D176 -> 0 | E176: =C店!E176+天猫!E176+京东!E176 -> 44324.78 | H176: =C店!H176+天猫!H176+京东!H176 -> 0 | I176: =C店!I176+天猫!I176+京东!I176 -> 764.25 | J176: =C店!J176+天猫!J176+京东!J176 -> 725.33265 | K176: 0 | L176: =C店!L176+天猫!L176+京东!L176 -> 170.74 | M176: =C店!M176+天猫!M176+京东!M176 -> 0 | N176: =C店!N176+天猫!N176+京东!N176 -> 0 | O176: =C店!O176+天猫!O176+京东!O176 -> 0 | P176: 0 | Q176: =C店!P176+天猫!Q176+京东!Q176 -> 4587.26815 | R176: =C店!Q176+天猫!R176+京东!R176 -> 16136.52185 | S176: 9.662565726
A177: 2015-06-12 | B177: =C店!B177+天猫!B177+京东!B177 -> 28954.56 | C177: =C店!C177+天猫!C177+京东!C177 -> 2141.55 | D177: =C店!D177+天猫!D177+京东!D177 -> 0 | E177: =C店!E177+天猫!E177+京东!E177 -> 26813.01 | H177: =C店!H177+天猫!H177+京东!H177 -> 0 | I177: =C店!I177+天猫!I177+京东!I177 -> 458.31 | J177: =C店!J177+天猫!J177+京东!J177 -> 413.33075 | K177: =C店!K177+天猫!K177+京东!K177 -> 5019.1921 | L177: =C店!L177+天猫!L177+京东!L177 -> 100.06 | M177: =C店!M177+天猫!M177+京东!M177 -> 0 | N177: =C店!N177+天猫!N177+京东!N177 -> 0 | O177: =C店!O177+天猫!O177+京东!O177 -> 0 | P177: 0 | Q177: =C店!P177+天猫!Q177+京东!Q177 -> 3599.01285 | R177: =C店!Q177+天猫!R177+京东!R177 -> 8210.43715 | S177: 7.450101213
A178: 2015-06-13 | B178: =C店!B178+天猫!B178+京东!B178 -> 33776.31 | C178: =C店!C178+天猫!C178+京东!C178 -> 1252.89 | D178: =C店!D178+天猫!D178+京东!D178 -> 0 | E178: =C店!E178+天猫!E178+京东!E178 -> 32523.42 | H178: =C店!H178+天猫!H178+京东!H178 -> 0 | I178: =C店!I178+天猫!I178+京东!I178 -> 652.38 | J178: =C店!J178+天猫!J178+京东!J178 -> 623.29295 | K178: =C店!K178+天猫!K178+京东!K178 -> 5036.79 | L178: =C店!L178+天猫!L178+京东!L178 -> 227.57 | M178: =C店!M178+天猫!M178+京东!M178 -> 0 | N178: =C店!N178+天猫!N178+京东!N178 -> 0 | O178: =C店!O178+天猫!O178+京东!O178 -> 0 | P178: 0 | Q178: =C店!P178+天猫!Q178+京东!Q178 -> 3906.79295 | R178: =C店!Q178+天猫!R178+京东!R178 -> 13901.57705 | S178: 8.324838407
A179: 2015-06-14 | B179: =C店!B179+天猫!B179+京东!B179 -> 31779.67 | C179: =C店!C179+天猫!C179+京东!C179 -> 967.44 | D179: =C店!D179+天猫!D179+京东!D179 -> 0 | E179: =C店!E179+天猫!E179+京东!E179 -> 30812.23 | H179: =C店!H179+天猫!H179+京东!H179 -> 0 | I179: =C店!I179+天猫!I179+京东!I179 -> 539.01 | J179: =C店!J179+天猫!J179+京东!J179 -> 509.11 | K179: =C店!K179+天猫!K179+京东!K179 -> 5482.4081 | L179: =C店!L179+天猫!L179+京东!L179 -> 86.2 | M179: =C店!M179+天猫!M179+京东!M179 -> 0 | N179: =C店!N179+天猫!N179+京东!N179 -> 0 | O179: =C店!O179+天猫!O179+京东!O179 -> 0 | P179: 0 | Q179: =C店!P179+天猫!Q179+京东!Q179 -> 3612.7781 | R179: =C店!Q179+天猫!R179+京东!R179 -> 10933.2219 | S179: 8.528680463
A180: 2015-06-15 | B180: =C店!B180+天猫!B180+京东!B180 -> 33661.41 | C180: =C店!C180+天猫!C180+京东!C180 -> 2292.58 | D180: =C店!D180+天猫!D180+京东!D180 -> 0 | E180: =C店!E180+天猫!E180+京东!E180 -> 31368.83 | H180: =C店!H180+天猫!H180+京东!H180 -> 0 | I180: =C店!I180+天猫!I180+京东!I180 -> 523.98 | J180: =C店!J180+天猫!J180+京东!J180 -> 486.5672 | K180: =C店!K180+天猫!K180+京东!K180 -> 6577.0251 | L180: =C店!L180+天猫!L180+京东!L180 -> 120.5 | M180: =C店!M180+天猫!M180+京东!M180 -> 0 | N180: =C店!N180+天猫!N180+京东!N180 -> 0 | O180: =C店!O180+天猫!O180+京东!O180 -> 0 | P180: 0 | Q180: =C店!P180+天猫!Q180+京东!Q180 -> 3979.0823 | R180: =C店!Q180+天猫!R180+京东!R180 -> 9922.8377 | S180: 7.883433323
A181: 2015-06-16 | B181: =C店!B181+天猫!B181+京东!B181 -> 36711.02 | C181: =C店!C181+天猫!C181+京东!C181 -> 1798.59 | D181: =C店!D181+天猫!D181+京东!D181 -> 0 | E181: =C店!E181+天猫!E181+京东!E181 -> 34912.43 | H181: =C店!H181+天猫!H181+京东!H181 -> 0 | I181: =C店!I181+天猫!I181+京东!I181 -> 520.38 | J181: =C店!J181+天猫!J181+京东!J181 -> 501.06 | K181: =C店!K181+天猫!K181+京东!K181 -> 6354.0749 | L181: =C店!L181+天猫!L181+京东!L181 -> 219.92 | M181: =C店!M181+天猫!M181+京东!M181 -> 0 | N181: =C店!N181+天猫!N181+京东!N181 -> 0 | O181: =C店!O181+天猫!O181+京东!O181 -> 0 | P181: 0 | Q181: =C店!P181+天猫!Q181+京东!Q181 -> 3834.1149 | R181: =C店!Q181+天猫!R181+京东!R181 -> 10481.8851 | S181: 9.105733894
A182: 2015-06-17 | B182: =C店!B182+天猫!B182+京东!B182 -> 28556.13 | C182: =C店!C182+天猫!C182+京东!C182 -> 1470.37 | D182: =C店!D182+天猫!D182+京东!D182 -> 0 | E182: =C店!E182+天猫!E182+京东!E182 -> 27085.76 | H182: =C店!H182+天猫!H182+京东!H182 -> 0 | I182: =C店!I182+天猫!I182+京东!I182 -> 489.9 | J182: =C店!J182+天猫!J182+京东!J182 -> 457.555 | K182: =C店!K182+天猫!K182+京东!K182 -> 5587.7831 | L182: =C店!L182+天猫!L182+京东!L182 -> 387.41 | M182: =C店!M182+天猫!M182+京东!M182 -> 0 | N182: =C店!N182+天猫!N182+京东!N182 -> 0 | O182: =C店!O182+天猫!O182+京东!O182 -> 0 | P182: 0 | Q182: =C店!P182+天猫!Q182+京东!Q182 -> 3672.3181 | R182: =C店!Q182+天猫!R182+京东!R182 -> 9400.6819 | S182: 7.375657354
A183: 2015-06-18 | B183: =C店!B183+天猫!B183+京东!B183 -> 160912.13 | C183: =C店!C183+天猫!C183+京东!C183 -> 6354.2 | D183: =C店!D183+天猫!D183+京东!D183 -> 0 | E183: =C店!E183+天猫!E183+京东!E183 -> 154557.93 | H183: =C店!H183+天猫!H183+京东!H183 -> 0 | I183: =C店!I183+天猫!I183+京东!I183 -> 3023.757 | J183: =C店!J183+天猫!J183+京东!J183 -> 3259.2525 | K183: =C店!K183+天猫!K183+京东!K183 -> 5355.1229 | L183: =C店!L183+天猫!L183+京东!L183 -> 91.31 | M183: =C店!M183+天猫!M183+京东!M183 -> 0 | N183: =C店!N183+天猫!N183+京东!N183 -> 0 | O183: =C店!O183+天猫!O183+京东!O183 -> 0 | P183: 0 | Q183: =C店!P183+天猫!Q183+京东!Q183 -> 9270.2124 | R183: =C店!Q183+天猫!R183+京东!R183 -> 83851.2876 | S183: 16.67253385
A184: 2015-06-19 | B184: =C店!B184+天猫!B184+京东!B184 -> 34279.95 | C184: =C店!C184+天猫!C184+京东!C184 -> 2218.48 | D184: =C店!D184+天猫!D184+京东!D184 -> 0 | E184: =C店!E184+天猫!E184+京东!E184 -> 32061.47 | H184: =C店!H184+天猫!H184+京东!H184 -> 0 | I184: =C店!I184+天猫!I184+京东!I184 -> 556.668 | J184: =C店!J184+天猫!J184+京东!J184 -> 518.4907 | K184: =C店!K184+天猫!K184+京东!K184 -> 5253.5552 | L184: =C店!L184+天猫!L184+京东!L184 -> 133.77 | M184: =C店!M184+天猫!M184+京东!M184 -> 0 | N184: =C店!N184+天猫!N184+京东!N184 -> 0 | O184: =C店!O184+天猫!O184+京东!O184 -> 0 | P184: 0 | Q184: =C店!P184+天猫!Q184+京东!Q184 -> 3678.7639 | R184: =C店!Q184+天猫!R184+京东!R184 -> 11135.2561 | S184: 8.715283414
A185: 2015-06-20 | B185: =C店!B185+天猫!B185+京东!B185 -> 29697.34 | C185: =C店!C185+天猫!C185+京东!C185 -> 1586.82 | D185: =C店!D185+天猫!D185+京东!D185 -> 0 | E185: =C店!E185+天猫!E185+京东!E185 -> 28110.52 | H185: =C店!H185+天猫!H185+京东!H185 -> 0 | I185: =C店!I185+天猫!I185+京东!I185 -> 491.82 | J185: =C店!J185+天猫!J185+京东!J185 -> 451.948 | K185: =C店!K185+天猫!K185+京东!K185 -> 4973.4922 | L185: =C店!L185+天猫!L185+京东!L185 -> 1018.25 | M185: =C店!M185+天猫!M185+京东!M185 -> 0 | N185: =C店!N185+天猫!N185+京东!N185 -> 0 | O185: =C店!O185+天猫!O185+京东!O185 -> 0 | P185: 0 | Q185: =C店!P185+天猫!Q185+京东!Q185 -> 3294.9102 | R185: =C店!Q185+天猫!R185+京东!R185 -> 9617.8898 | S185: 8.531498066
A186: 2015-06-21 | B186: =C店!B186+天猫!B186+京东!B186 -> 36990.62 | C186: =C店!C186+天猫!C186+京东!C186 -> 4418.77 | D186: =C店!D186+天猫!D186+京东!D186 -> 0 | E186: =C店!E186+天猫!E186+京东!E186 -> 32571.85 | H186: =C店!H186+天猫!H186+京东!H186 -> 0 | I186: =C店!I186+天猫!I186+京东!I186 -> 540.66 | J186: =C店!J186+天猫!J186+京东!J186 -> 506.1525 | K186: =C店!K186+天猫!K186+京东!K186 -> 4569.1619 | L186: =C店!L186+天猫!L186+京东!L186 -> 99.95 | M186: =C店!M186+天猫!M186+京东!M186 -> 0 | N186: =C店!N186+天猫!N186+京东!N186 -> 0 | O186: =C店!O186+天猫!O186+京东!O186 -> 0 | P186: 0 | Q186: =C店!P186+天猫!Q186+京东!Q186 -> 3453.9444 | R186: =C店!Q186+天猫!R186+京东!R186 -> 11007.5556 | S186: 9.4303342
A187: 2015-06-22 | B187: =C店!B187+天猫!B187+京东!B187 -> 33878.76 | C187: =C店!C187+天猫!C187+京东!C187 -> 2188.03 | D187: =C店!D187+天猫!D187+京东!D187 -> 0 | E187: =C店!E187+天猫!E187+京东!E187 -> 31690.73 | H187: =C店!H187+天猫!H187+京东!H187 -> 0 | I187: =C店!I187+天猫!I187+京东!I187 -> 612.9 | J187: =C店!J187+天猫!J187+京东!J187 -> 573.65 | K187: =C店!K187+天猫!K187+京东!K187 -> 5241.9976 | L187: =C店!L187+天猫!L187+京东!L187 -> 153.63 | M187: =C店!M187+天猫!M187+京东!M187 -> 0 | N187: =C店!N187+天猫!N187+京东!N187 -> 0 | O187: =C店!O187+天猫!O187+京东!O187 -> 0 | P187: 0 | Q187: =C店!P187+天猫!Q187+京东!Q187 -> 3456.9776 | R187: =C店!Q187+天猫!R187+京东!R187 -> 12933.0224 | S187: 9.167178289
A188: 2015-06-23 | B188: =C店!B188+天猫!B188+京东!B188 -> 35459.2 | C188: =C店!C188+天猫!C188+京东!C188 -> 727.41 | D188: =C店!D188+天猫!D188+京东!D188 -> 0 | E188: =C店!E188+天猫!E188+京东!E188 -> 34731.79 | H188: =C店!H188+天猫!H188+京东!H188 -> 0 | I188: =C店!I188+天猫!I188+京东!I188 -> 517.29 | J188: =C店!J188+天猫!J188+京东!J188 -> 490.1547 | K188: =C店!K188+天猫!K188+京东!K188 -> 4713.327 | L188: =C店!L188+天猫!L188+京东!L188 -> 193.13 | M188: =C店!M188+天猫!M188+京东!M188 -> 0 | N188: =C店!N188+天猫!N188+京东!N188 -> 0 | O188: =C店!O188+天猫!O188+京东!O188 -> 0 | P188: 0 | Q188: =C店!P188+天猫!Q188+京东!Q188 -> 3225.6017 | R188: =C店!Q188+天猫!R188+京东!R188 -> 10778.8183 | S188: 10.76753835
A189: 2015-06-24 | B189: =C店!B189+天猫!B189+京东!B189 -> 33956.49 | C189: =C店!C189+天猫!C189+京东!C189 -> 2311.67 | D189: =C店!D189+天猫!D189+京东!D189 -> 0 | E189: =C店!E189+天猫!E189+京东!E189 -> 31644.82 | H189: =C店!H189+天猫!H189+京东!H189 -> 0 | I189: =C店!I189+天猫!I189+京东!I189 -> 557.28 | J189: =C店!J189+天猫!J189+京东!J189 -> 509.4348 | K189: =C店!K189+天猫!K189+京东!K189 -> 3765.223 | L189: =C店!L189+天猫!L189+京东!L189 -> 161.71 | M189: =C店!M189+天猫!M189+京东!M189 -> 0 | N189: =C店!N189+天猫!N189+京东!N189 -> 0 | O189: =C店!O189+天猫!O189+京东!O189 -> 0 | P189: 0 | Q189: =C店!P189+天猫!Q189+京东!Q189 -> 2214.8478 | R189: =C店!Q189+天猫!R189+京东!R189 -> 12340.4322 | S189: 14.2875822
A190: 2015-06-25 | B190: =C店!B190+天猫!B190+京东!B190 -> 33490.71 | C190: =C店!C190+天猫!C190+京东!C190 -> 1904.83 | D190: =C店!D190+天猫!D190+京东!D190 -> 0 | E190: =C店!E190+天猫!E190+京东!E190 -> 31585.88 | H190: =C店!H190+天猫!H190+京东!H190 -> 0 | I190: =C店!I190+天猫!I190+京东!I190 -> 462.66 | J190: =C店!J190+天猫!J190+京东!J190 -> 447.755 | K190: =C店!K190+天猫!K190+京东!K190 -> 4325.33 | L190: =C店!L190+天猫!L190+京东!L190 -> 140.11 | M190: =C店!M190+天猫!M190+京东!M190 -> 0 | N190: =C店!N190+天猫!N190+京东!N190 -> 0 | O190: =C店!O190+天猫!O190+京东!O190 -> 0 | P190: 0 | Q190: =C店!P190+天猫!Q190+京东!Q190 -> 3269.775 | R190: =C店!Q190+天猫!R190+京东!R190 -> 9523.225 | S190: 9.659955196
A191: 2015-06-26 | B191: =C店!B191+天猫!B191+京东!B191 -> 89092.24 | C191: =C店!C191+天猫!C191+京东!C191 -> 3076.33 | D191: =C店!D191+天猫!D191+京东!D191 -> 0 | E191: =C店!E191+天猫!E191+京东!E191 -> 86015.91 | H191: =C店!H191+天猫!H191+京东!H191 -> 0 | I191: =C店!I191+天猫!I191+京东!I191 -> 1549.443 | J191: =C店!J191+天猫!J191+京东!J191 -> 1701.1932 | K191: =C店!K191+天猫!K191+京东!K191 -> 4323.7903 | L191: =C店!L191+天猫!L191+京东!L191 -> 134.34 | M191: =C店!M191+天猫!M191+京东!M191 -> 0 | N191: =C店!N191+天猫!N191+京东!N191 -> 0 | O191: =C店!O191+天猫!O191+京东!O191 -> 0 | P191: 0 | Q191: =C店!P191+天猫!Q191+京东!Q191 -> 5506.4065 | R191: =C店!Q191+天猫!R191+京东!R191 -> 43099.1135 | S191: 15.62106067
A192: 2015-06-27 | B192: =C店!B192+天猫!B192+京东!B192 -> 60594.87 | C192: =C店!C192+天猫!C192+京东!C192 -> 2777.73 | D192: =C店!D192+天猫!D192+京东!D192 -> 0 | E192: =C店!E192+天猫!E192+京东!E192 -> 57817.14 | H192: =C店!H192+天猫!H192+京东!H192 -> 0 | I192: =C店!I192+天猫!I192+京东!I192 -> 1160.412 | J192: =C店!J192+天猫!J192+京东!J192 -> 1223.3347 | K192: =C店!K192+天猫!K192+京东!K192 -> 4653.5931 | L192: =C店!L192+天猫!L192+京东!L192 -> 74.35 | M192: =C店!M192+天猫!M192+京东!M192 -> 0 | N192: =C店!N192+天猫!N192+京东!N192 -> 0 | O192: =C店!O192+天猫!O192+京东!O192 -> 0 | P192: 0 | Q192: =C店!P192+天猫!Q192+京东!Q192 -> 4618.7398 | R192: =C店!Q192+天猫!R192+京东!R192 -> 30333.6802 | S192: 12.51794699
A193: 2015-06-28 | B193: =C店!B193+天猫!B193+京东!B193 -> 62788.53 | C193: =C店!C193+天猫!C193+京东!C193 -> 3075.56 | D193: =C店!D193+天猫!D193+京东!D193 -> 0 | E193: =C店!E193+天猫!E193+京东!E193 -> 59712.97 | H193: =C店!H193+天猫!H193+京东!H193 -> 0 | I193: =C店!I193+天猫!I193+京东!I193 -> 1092.906 | J193: =C店!J193+天猫!J193+京东!J193 -> 1143.91725 | K193: =C店!K193+天猫!K193+京东!K193 -> 4889.4467 | L193: =C店!L193+天猫!L193+京东!L193 -> 260.89 | M193: =C店!M193+天猫!M193+京东!M193 -> 0 | N193: =C店!N193+天猫!N193+京东!N193 -> 0 | O193: =C店!O193+天猫!O193+京东!O193 -> 0 | P193: 0 | Q193: =C店!P193+天猫!Q193+京东!Q193 -> 4612.52995 | R193: =C店!Q193+天猫!R193+京东!R193 -> 28070.82005 | S193: 12.94581729
A194: 2015-06-29 | B194: =C店!B194+天猫!B194+京东!B194 -> 55907.53 | C194: =C店!C194+天猫!C194+京东!C194 -> 2937.87 | D194: =C店!D194+天猫!D194+京东!D194 -> 0 | E194: =C店!E194+天猫!E194+京东!E194 -> 52969.66 | H194: =C店!H194+天猫!H194+京东!H194 -> 0 | I194: =C店!I194+天猫!I194+京东!I194 -> 945.156 | J194: =C店!J194+天猫!J194+京东!J194 -> 1001.8638 | K194: =C店!K194+天猫!K194+京东!K194 -> 5157.5114 | L194: =C店!L194+天猫!L194+京东!L194 -> 242.05 | M194: =C店!M194+天猫!M194+京东!M194 -> 0 | N194: =C店!N194+天猫!N194+京东!N194 -> 0 | O194: =C店!O194+天猫!O194+京东!O194 -> 0 | P194: 0 | Q194: =C店!P194+天猫!Q194+京东!Q194 -> 4593.9512 | R194: =C店!Q194+天猫!R194+京东!R194 -> 24030.7288 | S194: 11.53030533
A195: 2015-06-30 | B195: =C店!B195+天猫!B195+京东!B195 -> 45892.07 | C195: =C店!C195+天猫!C195+京东!C195 -> 3472.89 | D195: =C店!D195+天猫!D195+京东!D195 -> 0 | E195: =C店!E195+天猫!E195+京东!E195 -> 42419.18 | H195: =C店!H195+天猫!H195+京东!H195 -> 0 | I195: =C店!I195+天猫!I195+京东!I195 -> 820.101 | J195: =C店!J195+天猫!J195+京东!J195 -> 801.3005 | K195: =C店!K195+天猫!K195+京东!K195 -> 4508.4763 | L195: =C店!L195+天猫!L195+京东!L195 -> 121.78 | M195: =C店!M195+天猫!M195+京东!M195 -> 0 | N195: =C店!N195+天猫!N195+京东!N195 -> 0 | O195: =C店!O195+天猫!O195+京东!O195 -> 0 | P195: 0 | Q195: =C店!P195+天猫!Q195+京东!Q195 -> 3998.5878 | R195: =C店!Q195+天猫!R195+京东!R195 -> 18895.7122 | S195: 10.60854035
A196: 合计 | B196: =C店!B196+天猫!B196+京东!B196 -> 1359616.61 | C196: =C店!C196+天猫!C196+京东!C196 -> 65514.72 | D196: =C店!D196+天猫!D196+京东!D196 -> 0 | E196: =C店!E196+天猫!E196+京东!E196 -> 1294101.89 | F196: =SUM(F167:F195) -> 0 | G196: =SUM(G167:G195) -> 0 | H196: 0 | I196: =SUM(I167:I195) -> 21958.233 | J196: 22175.027 | K196: 132999.667 | L196: 5260.42 | M196: 0 | N196: 0 | O196: 0 | P196: 0 | Q196: 110121.4725 | R196: 522588.0675 | S196: 11.75158541
A197: 2015-07-01 | B197: =C店!B197+天猫!B197+京东!B197 -> 43297.74 | C197: =C店!C197+天猫!C197+京东!C197 -> 5858.46 | E197: =C店!E197+天猫!E197+京东!E197 -> 37439.28 | I197: =C店!I197+天猫!I197+京东!I197 -> 741.12 | J197: =C店!J197+天猫!J197+京东!J197 -> 792.155 | K197: =C店!K197+天猫!K197+京东!K197 -> 4120.665 | L197: =C店!L197+天猫!L197+京东!L197 -> 202.2 | Q197: =C店!P197+天猫!Q197+京东!Q197 -> 3646.04 | R197: =C店!Q197+天猫!R197+京东!R197 -> 15646.79 | S197: 10.26847758
A198: 2015-07-02 | B198: =C店!B198+天猫!B198+京东!B198 -> 51248.1 | C198: =C店!C198+天猫!C198+京东!C198 -> 3762.81 | E198: =C店!E198+天猫!E198+京东!E198 -> 47485.29 | I198: =C店!I198+天猫!I198+京东!I198 -> 934.11 | J198: =C店!J198+天猫!J198+京东!J198 -> 1046.99 | K198: =C店!K198+天猫!K198+京东!K198 -> 3761.0085 | L198: =C店!L198+天猫!L198+京东!L198 -> 274.83
A199: 2015-07-03 | B199: =C店!B199+天猫!B199+京东!B199 -> 44453.94 | C199: =C店!C199+天猫!C199+京东!C199 -> 3118.81 | E199: =C店!E199+天猫!E199+京东!E199 -> 41335.13 | I199: =C店!I199+天猫!I199+京东!I199 -> 815.76 | J199: =C店!J199+天猫!J199+京东!J199 -> 893.585 | K199: =C店!K199+天猫!K199+京东!K199 -> 3653.2256 | L199: =C店!L199+天猫!L199+京东!L199 -> 272.23
A200: 2015-07-04 | B200: =C店!B200+天猫!B200+京东!B200 -> 46607.25 | C200: =C店!C200+天猫!C200+京东!C200 -> 2565.46 | E200: =C店!E200+天猫!E200+京东!E200 -> 44041.79 | I200: =C店!I200+天猫!I200+京东!I200 -> 810.54 | J200: =C店!J200+天猫!J200+京东!J200 -> 874.23 | K200: =C店!K200+天猫!K200+京东!K200 -> 4106.481 | L200: =C店!L200+天猫!L200+京东!L200 -> 497.05
... 218 more rows

Sheet C店
A1: 2015年【C店】销售月数据表
A2: 销售收入部分 | H2: 其他支出部分 | K2: 推广支出 | N2: 活动支出部分 | Q2: 月成果 | S2: 利润
A3: 店铺ID | B3: A支付宝成交款 | C3: B退款总金额 | D3: C刷单金额 | E3: D有效销售额 | F3: E月初目标设定 | G3: F目标达成比例=D/E | H3: 刷单支出（佣金快递） | I3: 平台扣点支出 | J3: 税点支出（3.5%） | K3: 直通车(京东所有推广) | L3: 淘宝客 | M3: 钻展/广告费 | N3: 淘金币 （积分支出） | O3: 聚划算费用 | P3: J花费支出总计 | Q3: K净销售额=E-I-J | R3: L投入产出比=J/D | S3: 按25%算
A4: 11月 | B4: 854068 | C4: =B4-E4 -> 48051 | D4: 0 | E4: 806017 | F4: 0 | G4: =E4/F4 ->  | H4: 0 | I4: 0 | J4: 0 | K4: 110873.95 | L4: 3000 | M4: 4214 | N4: 1500 | O4: 15000 | P4: =SUM(H4:O4) -> 134587.95 | Q4: =E4-P4 -> 671429.05 | R4: =E4/P4 -> 5.98877537 | S4: =E4*0.25-P4 -> 66916.3
A5: 12月 | B5: 779044.57 | C5: =B5-E5 -> 127998.57 | D5: 0 | E5: 651046 | F5: 0 | H5: 0 | I5: 0 | J5: 0 | K5: 111580 | L5: 4230 | M5: 8221 | N5: 500 | O5: 0 | P5: =SUM(H5:O5) -> 124531 | Q5: =E5-P5 -> 526515 | R5: =E5/P5 -> 5.227983394 | S5: =E5*0.25-P5 -> 38230.5
A6: 1月合计 | B6: 731848.82 | C6: 33039.93 | D6: 0 | E6: 698808.89 | F6: 750000 | H6: 0 | I6: 0 | J6: 0 | K6: 58674.68 | L6: 3147.22 | M6: 0 | N6: 0 | O6: 0 | P6: 128508.68 | Q6: 570300.21 | R6: 5.43783416
A7: 2月合计 | B7: 324526.24 | C7: 20628.02 | D7: 0 | E7: 303898.22 | F7: 0 | H7: 0 | I7: 0 | J7: 0 | K7: 18667.6 | L7: 885 | M7: 0 | N7: 0 | O7: 0 | P7: 36271.31 | Q7: 267626.91 | R7: 8.378473785
A8: 销售收入部分 | H8: 其他支出部分 | K8: 推广支出 | N8: 活动支出部分 | Q8: 月成果
A9: 店铺ID | B9: A支付宝成交款 | C9: B退款总金额 | D9: C刷单金额 | E9: D有效销售额 | F9: E月初目标设定 | G9: F目标达成比例=D/E | H9: 刷单支出（佣金快递） | I9: 平台扣点支出 | J9: 税点支出（3.5%） | K9: 直通车(京东所有推广) | L9: 淘宝客 | M9: 钻展/广告费 | N9: 淘金币 （积分支出） | O9: 聚划算费用 | P9: J花费支出总计 | Q9: K净销售额=E-I-J | R9: L投入产出比=J/D
A10: 2015-01-01 | B10: 127717.9 | C10: 1907.74 | D10: 0 | E10: =B10-C10 -> 125810.16 | F10: 0 | G10: =E10/F10 ->  | H10: 0 | K10: 3577 | L10: 244.91 | M10: 0 | N10: 0 | O10: 0 | P10: =SUM(H10:O10) -> 3821.91 | Q10: =E10-P10 -> 121988.25 | R10: =E10/P10 -> 32.91813779
A11: 2015-01-02 | B11: 109772.39 | C11: 2602.71 | D11: 0 | E11: =B11-C11 -> 107169.68 | K11: 4648 | L11: 378.37 | P11: 5026.37 | Q11: 102143.31 | R11: 21.32148648
A12: 2015-01-03 | B12: 16450.84 | C12: 2301.05 | D12: 0 | E12: 14149.79 | K12: 3152 | L12: 52.08 | P12: 3204.08 | Q12: 10945.71 | R12: 4.416178747
A13: 2015-01-04 | B13: 22735.01 | C13: 1942.26 | D13: 0 | E13: 20792.75 | K13: 1034 | L13: 90.05 | P13: 1124.05 | Q13: 19668.7 | R13: 18.49806503
A14: 2015-01-05 | B14: 20659.57 | C14: 1888.78 | D14: 0 | E14: 18770.79 | K14: 3635 | L14: 153.21 | P14: 3788.21 | Q14: 14982.58 | R14: 4.95505529
A15: 2015-01-06 | B15: 20191.12 | C15: 1406.85 | D15: 0 | E15: 18784.27 | K15: 2631 | L15: 114.61 | P15: 2745.61 | Q15: 16038.66 | R15: 6.841565262
A16: 2015-01-07 | B16: 21666.12 | C16: 1176.15 | D16: 0 | E16: 20489.97 | K16: 2036 | L16: 178.29 | P16: 2214.29 | Q16: 18275.68 | R16: 9.253516929
A17: 2015-01-08 | B17: 16588.5 | C17: 4250.84 | D17: 0 | E17: 12337.66 | K17: 1972 | L17: 124.03 | P17: 2096.03 | Q17: 10241.63 | R17: 5.886203919
A18: 2015-01-09 | B18: 14789.57 | C18: 1773.56 | D18: 0 | E18: 13016.01 | K18: 2129 | L18: 82.35 | P18: 2211.35 | Q18: 10804.66 | R18: 5.886001764
A19: 2015-01-10 | B19: 14532.53 | C19: 762.48 | D19: 0 | E19: 13770.05 | K19: 2230 | L19: 110.67 | P19: 2340.67 | Q19: 11429.38 | R19: 5.882952317
A20: 2015-01-11 | B20: 14250.21 | C20: 401.76 | D20: 0 | E20: 13848.45 | K20: 1955 | L20: 186.54 | P20: 2141.54 | Q20: 11706.91 | R20: 6.466584794
A21: 2015-01-12 | B21: 17606.76 | C21: 886.62 | D21: 0 | E21: 16720.14 | K21: 2482 | L21: 134.07 | P21: 2616.07 | Q21: 14104.07 | R21: 6.391319804
A22: 2015-01-13 | B22: 19316.18 | C22: 388.08 | D22: 0 | E22: 18928.1 | K22: 2163 | L22: 177.43 | P22: 2340.43 | Q22: 16587.67 | R22: 8.087445469
A23: 2015-01-14 | B23: 15034.9 | C23: 1097.34 | D23: 0 | E23: 13937.56 | K23: 2033 | L23: 143.83 | P23: 2176.83 | Q23: 11760.73 | R23: 6.402686475
A24: 2015-01-15 | B24: 19937.6 | C24: 829.25 | D24: 0 | E24: 19108.35 | K24: 1228 | L24: 178.58 | P24: 1406.58 | Q24: 17701.77 | R24: 13.58497206
A25: 2015-01-16 | B25: 11803.13 | C25: 400.28 | D25: 0 | E25: 11402.85 | K25: 964 | L25: 108.4 | P25: 1072.4 | Q25: 10330.45 | R25: 10.6330194
A26: 2015-01-17 | B26: 10886.57 | C26: 141.12 | D26: 0 | E26: 10745.45 | K26: 798 | L26: 65.89 | P26: 863.89 | Q26: 9881.56 | R26: 12.43844702
A27: 2015-01-18 | B27: 11853.8 | C27: 576.72 | D27: 0 | E27: 11277.08 | K27: 921 | L27: 63.31 | P27: 984.31 | Q27: 10292.77 | R27: 11.45683778
A28: 2015-01-19 | B28: 16551.36 | C28: 249.9 | D28: 0 | E28: 16301.46 | K28: 1394 | L28: 85.68 | P28: 1479.68 | Q28: 14821.78 | R28: 11.01688203
A29: 2015-01-20 | B29: 13552.26 | C29: 693.7 | D29: 0 | E29: 12858.56 | K29: 1156 | L29: 73.79 | P29: 1229.79 | Q29: 11628.77 | R29: 10.45589897
A30: 2015-01-21 | B30: 13850.42 | C30: 858.58 | D30: 0 | E30: 12991.84 | K30: 1625 | L30: 32.4 | P30: 1657.4 | Q30: 11334.44 | R30: 7.8386871
A31: 2015-01-22 | B31: 17405.6 | C31: 1743.02 | D31: 0 | E31: 15662.58 | K31: 1524.47 | L31: 58.29 | P31: 1582.76 | Q31: 14079.82 | R31: 9.895739089
A32: 2015-01-23 | B32: 19860.14 | C32: 1300.6 | D32: 0 | E32: 18559.54 | K32: 1514.21 | L32: 75.61 | P32: 1589.82 | Q32: 16969.72 | R32: 11.67398825
A33: 2015-01-24 | B33: 17074.24 | C33: 529.52 | D33: 0 | E33: 16544.72 | K33: 1304.9 | L33: 73.99 | P33: 1378.89 | Q33: 15165.83 | R33: 11.99857857
A34: 2015-01-25 | B34: 16744.06 | C34: 0 | D34: 0 | E34: 16744.06 | K34: 1372.91 | L34: 39.51 | P34: 1412.42 | Q34: 15331.64 | R34: 11.8548732
A35: 2015-01-26 | B35: 21208.36 | C35: 496.82 | E35: 20711.54 | K35: 1793.6 | L35: 46.43 | P35: 1840.03 | Q35: 18871.51 | R35: 11.25608822
A36: 2015-01-27 | B36: 20662.14 | C36: 514.78 | E36: 20147.36 | K36: 1644.86 | L36: 3 | P36: 1647.86 | Q36: 18499.5 | R36: 12.22637845
A37: 2015-01-28 | B37: 14185.6 | C37: 372.82 | E37: 13812.78 | K37: 1455.57 | L37: 24.25 | P37: 1479.82 | Q37: 12332.96 | R37: 9.334094687
A38: 2015-01-29 | B38: 17569.9 | C38: 110.52 | E38: 17459.38 | K38: 1542.99 | L38: 20.88 | P38: 1563.87 | Q38: 15895.51 | R38: 11.16421442
A39: 2015-01-30 | B39: 21438.38 | C39: 1436.08 | E39: 20002.3 | J39: =SUM(H39:I39) -> 0 | K39: 1475.19 | L39: 23.01 | P39: 1498.2 | Q39: 18504.1 | R39: 13.35088773
A40: 2015-01-31 | B40: 15953.66 | C40: 0 | E40: 15953.66 | K40: 1282.98 | L40: 3.76 | P40: 1286.74 | Q40: 14666.92 | R40: 12.39851097
A41: 1月合计 | B41: =SUM(B10:B40) -> 731848.82 | C41: =SUM(C10:C40) -> 33039.93 | D41: 0 | E41: 698808.89 | F41: 750000 | H41: =SUM(H10:H40) -> 0 | I41: 0 | J41: 0 | K41: 58674.68 | L41: 3147.22 | M41: 0 | N41: 0 | O41: 0 | P41: 61821.9 | Q41: 636986.99 | R41: 11.30358158
A42: 2015-02-01 | B42: 15479.36 | C42: 699.98 | D42: 0 | E42: =B42-C42 -> 14779.38 | F42: 0 | G42: =E42/F42 ->  | H42: 0 | K42: 1436.33 | L42: 77.67 | M42: 0 | N42: 0 | O42: 0 | P42: =SUM(H42:O42) -> 1514 | Q42: =E42-P42 -> 13265.38 | R42: =E42/P42 -> 9.761809775
A43: 2015-02-02 | B43: 14789.8 | C43: 785.56 | E43: =B43-C43 -> 14004.24 | K43: 1858.9 | L43: 6.3 | P43: 1865.2 | Q43: 12139.04 | R43: 7.508170706
A44: 2015-02-03 | B44: 53840 | C44: 844.08 | E44: 52995.92 | K44: 1959.8 | L44: 59.73 | P44: 2019.53 | Q44: 50976.39 | R44: 26.2417097
A45: 2015-02-04 | B45: 18341.36 | C45: 1969.7 | E45: 16371.66 | K45: 1532.11 | L45: 13.52 | P45: 1545.63 | Q45: 14826.03 | R45: 10.59222453
A46: 2015-02-05 | B46: 19630.28 | C46: 878.14 | E46: 18752.14 | K46: 1336.33 | L46: 83.31 | P46: 1419.64 | Q46: 17332.5 | R46: 13.20908118
A47: 2015-02-06 | B47: 14370.12 | C47: 2712.26 | E47: 11657.86 | K47: 1029.83 | L47: 59.88 | P47: 1089.71 | Q47: 10568.15 | R47: 10.6981307
A48: 2015-02-07 | B48: 10746.14 | C48: 921.15 | E48: 9824.99 | K48: 1279.96 | L48: 55.19 | P48: 1335.15 | Q48: 8489.84 | R48: 7.358716249
A49: 2015-02-08 | B49: 13662.42 | C49: 1445.24 | E49: 12217.18 | K49: 938.19 | L49: 23.61 | P49: 961.8 | Q49: 11255.38 | R49: 12.70241214
A50: 2015-02-09 | B50: 10621.08 | C50: 928.22 | E50: 9692.86 | K50: 865.66 | L50: 50.78 | P50: 916.44 | Q50: 8776.42 | R50: 10.57664441
A51: 2015-02-10 | B51: 12694.2 | C51: 1477.48 | E51: 11216.72 | K51: 1014.74 | L51: 22.27 | P51: 1037.01 | Q51: 10179.71 | R51: 10.81640486
A52: 2015-02-11 | B52: 9427.96 | C52: 1436.52 | E52: 7991.44 | K52: 557.95 | L52: 0 | P52: 557.95 | Q52: 7433.49 | R52: 14.32286047
A53: 2015-02-12 | B53: 8668.5 | C53: 606.4 | E53: 8062.1 | K53: 715.77 | L53: 97.51 | P53: 813.28 | Q53: 7248.82 | R53: 9.91306807
A54: 2015-02-13 | B54: 3732.02 | C54: 548.04 | E54: 3183.98 | K54: 208.34 | L54: 27.28 | P54: 235.62 | Q54: 2948.36 | R54: 13.51319922
A55: 2015-02-14 | B55: 1880.12 | C55: 90 | E55: 1790.12 | K55: 66.11 | L55: 89.48 | P55: 155.59 | Q55: 1634.53 | R55: 11.50536667
A56: 2015-02-15 | B56: 890.66 | C56: 55 | E56: 835.66 | K56: 96.16 | L56: 107.03 | P56: 203.19 | Q56: 632.47 | R56: 4.112702397
A57: 2015-02-16 | B57: 1170.34 | C57: 246.92 | E57: 923.42 | K57: 85.45 | L57: 42.93 | P57: 128.38 | Q57: 795.04 | R57: 7.192864932
A58: 2015-02-17 | B58: 1392.44 | C58: 0 | E58: 1392.44 | K58: 81.29 | L58: 0 | P58: 81.29 | Q58: 1311.15 | R58: 17.1292902
A59: 2015-02-18 | B59: 1795.16 | C59: 0 | E59: 1795.16 | K59: 53.18 | L59: 0 | P59: 53.18 | Q59: 1741.98 | R59: 33.75629936
A60: 2015-02-19 | B60: 1252.52 | C60: 154 | E60: 1098.52 | K60: 72.4 | L60: 7.06 | P60: 79.46 | Q60: 1019.06 | R60: 13.82481752
A61: 2015-02-20 | B61: 2354.96 | C61: 0 | E61: 2354.96 | K61: 114.61 | L61: 35.36 | P61: 149.97 | Q61: 2204.99 | R61: 15.70287391
A62: 2015-02-21 | B62: 3027.9 | C62: 466.95 | E62: 2560.95 | K62: 111.1 | L62: 0 | P62: 111.1 | Q62: 2449.85 | R62: 23.05085509
A63: 2015-02-22 | B63: 4543.22 | C63: 506 | E63: 4037.22 | K63: 147.35 | L63: 25.8 | P63: 173.15 | Q63: 3864.07 | R63: 23.31631533
A64: 2015-02-23 | B64: 6503.38 | C64: 0 | E64: 6503.38 | K64: 180.92 | L64: 0 | P64: 180.92 | Q64: 6322.46 | R64: 35.94616405
A65: 2015-02-24 | B65: 9439.28 | C65: 0 | E65: 9439.28 | K65: 209.97 | L65: 0 | P65: 209.97 | Q65: 9229.31 | R65: 44.95537458
A66: 2015-02-25 | B66: 12639.96 | C66: 394 | E66: 12245.96 | K66: 289.33 | L66: 0 | P66: 289.33 | Q66: 11956.63 | R66: 42.32523416
A67: 2015-02-26 | B67: 25820.92 | C67: 1735.9 | E67: 24085.02 | K67: 235.27 | L67: 0 | P67: 235.27 | Q67: 23849.75 | R67: 102.3718281
A68: 2015-02-27 | B68: 22203.02 | C68: 815.56 | E68: 21387.46 | K68: 222.46 | L68: 0 | P68: 222.46 | Q68: 21165 | R68: 96.14069945
A69: 2015-02-28 | B69: 23609.12 | C69: 910.92 | E69: 22698.2 | K69: 1968.09 | L69: 0 | P69: 1968.09 | Q69: 20730.11 | R69: 11.53311078
A70: 2月合计 | B70: =SUM(B42:B69) -> 324526.24 | C70: =SUM(C42:C69) -> 20628.02 | D70: =SUM(D42:D69) -> 0 | E70: =SUM(E42:E69) -> 303898.22 | F70: 0 | H70: =SUM(H42:H69) -> 0 | I70: 0 | J70: 0 | K70: 18667.6 | L70: 885 | M70: =SUM(M42:M69) -> 0 | N70: 0 | O70: 0 | P70: 19552.31 | Q70: 284345.91 | R70: 15.54282947
A71: 2015-03-01 | B71: 17372.98 | C71: 141.12 | E71: =B71-C71 -> 17231.86 | K71: 1275.02 | L71: 0 | P71: =SUM(G71:O71) -> 1275.02 | Q71: =E71-P71 -> 15956.84 | R71: 13.51497231
A72: 2015-03-02 | B72: 25495.8 | C72: 2169.56 | E72: =B72-C72 -> 23326.24 | K72: 1377.9 | L72: 11.28 | P72: =SUM(G72:O72) -> 1389.18 | Q72: =E72-P72 -> 21937.06 | R72: =E72/P72 -> 16.79137333
A73: 2015-03-03 | B73: 24082.83 | C73: 1648.76 | E73: 22434.07 | K73: 1719.85 | L73: 29.94 | P73: 1749.79 | Q73: 20684.28 | R73: 12.82100709
A74: 2015-03-04 | B74: 23508.3 | C74: 416.41 | E74: 23091.89 | K74: 1728.15 | L74: 0 | P74: 1728.15 | Q74: 21363.74 | R74: 13.36220236
A75: 2015-03-05 | B75: 24123.88 | C75: 1158.78 | E75: 22965.1 | K75: 1791.27 | L75: 34.48 | P75: 1825.75 | Q75: 21139.35 | R75: 12.57844721
A76: 2015-03-06 | B76: 18718.52 | C76: 536.4 | E76: 18182.12 | K76: 1745.25 | L76: 0 | P76: 1745.25 | Q76: 16436.87 | R76: 10.41806045
A77: 2015-03-07 | B77: 16869 | C77: 855.08 | E77: 16013.92 | K77: 1710.95 | L77: 11.28 | P77: 1722.23 | Q77: 14291.69 | R77: 9.298363169
A78: 2015-03-08 | B78: 15815.04 | C78: 346.27 | E78: 15468.77 | K78: 1692.14 | L78: 117.95 | P78: 1810.09 | Q78: 13658.68 | R78: 8.545856836
A79: 2015-03-09 | B79: 24594.1 | C79: 407.64 | E79: 24186.46 | K79: 2465.22 | L79: 65.68 | P79: 2530.9 | Q79: 21655.56 | R79: 9.556466079
A80: 2015-03-10 | B80: 24754.08 | C80: 2638.74 | E80: 22115.34 | K80: 2227.56 | L80: 89.5 | P80: 2317.06 | Q80: 19798.28 | R80: 9.544569411
A81: 2015-03-11 | B81: 24318.66 | C81: 881.18 | E81: 23437.48 | K81: 2737.2 | L81: 187.59 | P81: 2924.79 | Q81: 20512.69 | R81: 8.013388995
A82: 2015-03-12 | B82: 22837.04 | C82: 449.48 | E82: 22387.56 | K82: 2587.33 | L82: 82.89 | P82: 2670.22 | Q82: 19717.34 | R82: 8.384163103
A83: 2015-03-13 | B83: 17689.2 | C83: 270.08 | E83: 17419.12 | K83: 2356.15 | L83: 49.26 | P83: 2405.41 | Q83: 15013.71 | R83: 7.241642797
A84: 2015-03-14 | B84: 18877.76 | C84: 942.78 | E84: 17934.98 | K84: 2290.48 | L84: 29 | P84: 2319.48 | Q84: 15615.5 | R84: 7.732327936
A85: 2015-03-15 | B85: 18565.96 | C85: 629.7 | E85: 17936.26 | K85: 2663.37 | L85: 44.8 | P85: 2708.17 | Q85: 15228.09 | R85: 6.623018496
A86: 2015-03-16 | B86: 20076.07 | C86: 1300.96 | E86: 18775.11 | K86: 2053.25 | L86: 28.22 | P86: 2081.47 | Q86: 16693.64 | R86: 9.020120396
A87: 2015-03-17 | B87: 24879.97 | C87: 549.26 | E87: 24330.71 | K87: 1848.47 | L87: 93.1 | P87: 1941.57 | Q87: 22389.14 | R87: 12.53146165
A88: 2015-03-18 | B88: 23068.55 | C88: 243.1 | E88: 22825.45 | K88: 1615.73 | L88: 49.32 | P88: 1665.05 | Q88: 21160.4 | R88: 13.70856731
A89: 2015-03-19 | B89: 16953.14 | C89: 668.04 | E89: 16285.1 | K89: 1661.55 | L89: 14.12 | P89: 1675.67 | Q89: 14609.43 | R89: 9.718560337
A90: 2015-03-20 | B90: 15607.62 | C90: 318.86 | E90: 15288.76 | K90: 1482.42 | L90: 35.3 | P90: 1517.72 | Q90: 13771.04 | R90: 10.07350499
A91: 2015-03-21 | B91: 13775.75 | C91: 853.53 | E91: 12922.22 | K91: 1422.62 | L91: 12.88 | P91: 1435.5 | Q91: 11486.72 | R91: 9.00189481
A92: 2015-03-22 | B92: 17349.6 | C92: 255.32 | E92: 17094.28 | K92: 532.62 | L92: 44.69 | P92: 577.31 | Q92: 16516.97 | R92: 29.61022674
A93: 2015-03-23 | B93: 18216.42 | C93: 628.56 | E93: 17587.86 | K93: 1886.43 | L93: 76.57 | P93: 1963 | Q93: 15624.86 | R93: 8.959684157
A94: 2015-03-24 | B94: 24555.27 | C94: 671.4 | E94: 23883.87 | K94: 2473.36 | L94: 51.18 | P94: 2524.54 | Q94: 21359.33 | R94: 9.460681946
A95: 2015-03-25 | B95: 25729.71 | C95: 1079.02 | E95: 24650.69 | K95: 2622.62 | L95: 70.45 | P95: 2693.07 | Q95: 21957.62 | R95: 9.153378858
A96: 2015-03-26 | B96: 21603.93 | C96: 920.02 | E96: 20683.91 | K96: 2862.72 | L96: 64.47 | P96: 2927.19 | Q96: 17756.72 | R96: 7.066131683
A97: 2015-03-27 | B97: 20548.12 | C97: 244.72 | E97: 20303.4 | K97: 2686.03 | L97: 53 | P97: 2739.03 | Q97: 17564.37 | R97: 7.412624177
A98: 2015-03-28 | B98: 18731.82 | C98: 551.68 | E98: 18180.14 | K98: 2785.62 | L98: 33.43 | P98: 2819.05 | Q98: 15361.09 | R98: 6.449030702
A99: 2015-03-29 | B99: 25595.2 | C99: 264.26 | E99: 25330.94 | K99: 3075.21 | L99: 56.76 | P99: 3131.97 | Q99: 22198.97 | R99: 8.087861633
A100: 2015-03-30 | B100: 29388.13 | C100: 637.64 | E100: 28750.49 | K100: 3038.03 | L100: 20.7 | P100: 3058.73 | Q100: 25691.76 | R100: 9.399486061
A101: 2015-03-31 | B101: 30683.02 | C101: 401.7 | E101: =B101-C101 -> 30281.32 | K101: 2691 | P101: 2691 | Q101: 27590.32 | R101: 11.25281308
A102: 合计 | B102: =SUM(B71:B101) -> 664385.47 | C102: =SUM(C71:C101) -> 23080.05 | D102: =SUM(D74:D101) -> 0 | E102: =SUM(E71:E101) -> 641305.42 | F102: 0 | H102: =SUM(H74:H101) -> 0 | I102: 0 | J102: 0 | K102: =SUM(K71:K101) -> 65105.52 | L102: 1457.84 | M102: =SUM(M74:M101) -> 0 | N102: 0 | O102: 0 | P102: =SUM(P71:P101) -> 66563.36 | Q102: =SUM(Q71:Q101) -> 574742.06 | R102: 9.634510938
A103: 2015-04-01 | B103: 21732.33 | C103: 562.45 | E103: =B103-C103 -> 21169.88 | K103: 2720 | L103: 59.87 | P103: =SUM(G103:O103) -> 2779.87 | Q103: =E103-P103 -> 18390.01 | R103: 7.615420865
A104: 2015-04-02 | B104: 22154.59 | C104: 410.59 | E104: =B104-C104 -> 21744 | K104: 2483.25 | L104: 30 | P104: =SUM(G104:O104) -> 2513.25 | Q104: =E104-P104 -> 19230.75 | R104: =E104/P104 -> 8.651745748
A105: 2015-04-03 | B105: 14041.18 | C105: 190.65 | E105: 13850.53 | K105: 2342.13 | L105: 30.28 | P105: =SUM(G105:O105) -> 2372.41 | Q105: =E105-P105 -> 11478.12 | R105: 5.838168782
A106: 2015-04-04 | B106: 14978.15 | C106: 373.72 | E106: 14604.43 | K106: 2551.94 | L106: 70.74 | P106: 2622.68 | Q106: 11981.75 | R106: 5.568513887
A107: 2015-04-05 | B107: 18213.28 | C107: 230.56 | E107: 17982.72 | K107: 3018.07 | L107: 31.06 | P107: 3049.13 | Q107: 14933.59 | R107: 5.897656053
A108: 2015-04-06 | B108: 16014.08 | C108: 1230.46 | E108: 14783.62 | K108: 2772.08 | L108: 80.03 | P108: 2852.11 | Q108: 11931.51 | R108: 5.183397555
A109: 2015-04-07 | B109: 18558.59 | C109: 1525.87 | E109: 17032.72 | K109: 2313.29 | L109: 106.32 | P109: 2419.61 | Q109: 14613.11 | R109: 7.039448506
A110: 2015-04-08 | B110: 17096.23 | C110: 1218.99 | E110: 15877.24 | L110: 22.73 | P110: 22.73 | Q110: 15854.51 | R110: 698.5147382
A111: 2015-04-09 | B111: 21424.63 | C111: 970.74 | E111: 20453.89 | K111: 1851.49 | L111: 15.12 | P111: 1866.61 | Q111: 18587.28 | R111: 10.95777372
A112: 2015-04-10 | B112: 16968.82 | C112: 0 | E112: 16968.82 | K112: 1522.3 | L112: 18.26 | P112: 1540.56 | Q112: 15428.26 | R112: 11.01470894
A113: 2015-04-11 | B113: 15913.74 | C113: 331.25 | E113: 15582.49 | K113: 1528.03 | L113: 26.15 | P113: 1554.18 | Q113: 14028.31 | R113: 10.02618101
A114: 2015-04-12 | B114: 17521.2 | C114: 571.23 | E114: 16949.97 | K114: 1731.55 | L114: 14.12 | P114: 1745.67 | Q114: 15204.3 | R114: 9.709721769
A115: 2015-04-13 | B115: 21845.61 | C115: 1052.5 | E115: 20793.11 | K115: 1510.8 | L115: 0 | P115: 1510.8 | Q115: 19282.31 | R115: 13.76297988
A116: 2015-04-14 | B116: 19309.99 | C116: 256.6 | E116: 19053.39 | K116: 1939.89 | L116: 81.33 | P116: 2021.22 | Q116: 17032.17 | R116: 9.426677947
A117: 2015-04-15 | B117: 17146.2 | C117: 412.91 | E117: 16733.29 | K117: 1790.46 | L117: 50.46 | P117: 1840.92 | Q117: 14892.37 | R117: 9.089634531
A118: 2015-04-16 | B118: 19152.46 | C118: 465.31 | E118: 18687.15 | K118: 1504.91 | L118: 78 | P118: 1582.91 | Q118: 17104.24 | R118: 11.80556696
A119: 2015-04-17 | B119: 19885.45 | C119: 287.2 | E119: 19598.25 | K119: 1501.53 | L119: 31.95 | P119: 1533.48 | Q119: 18064.77 | R119: 12.78024493
A120: 2015-04-18 | B120: 14193.58 | C120: 266.23 | E120: 13927.35 | K120: 1571.09 | L120: 95.47 | P120: 1666.56 | Q120: 12260.79 | R120: 8.356944844
A121: 2015-04-19 | B121: 16214.82 | C121: 281.76 | E121: 15933.06 | K121: 1772.21 | L121: 136.65 | P121: 1908.86 | Q121: 14024.2 | R121: 8.346898149
A122: 2015-04-20 | B122: 15534.1 | C122: 1440.66 | E122: 14093.44 | K122: 1327.36 | L122: 47.6 | P122: 1374.96 | Q122: 12718.48 | R122: 10.25007273
A123: 2015-04-21 | B123: 17596.35 | C123: 404.17 | E123: 17192.18 | K123: 1366.93 | L123: 60.08 | P123: 1427.01 | Q123: 15765.17 | R123: 12.04769413
A124: 2015-04-22 | B124: 17215.32 | C124: 432.03 | E124: 16783.29 | K124: 1664.55 | L124: 60.08 | P124: 1724.63 | Q124: 15058.66 | R124: 9.731530821
A125: 2015-04-23 | B125: 16700.03 | C125: 397.88 | E125: 16302.15 | K125: 1401.19 | L125: 38.89 | P125: 1440.08 | Q125: 14862.07 | R125: 11.32030859
A126: 2015-04-24 | B126: 14663.36 | C126: 410.19 | E126: 14253.17 | K126: 1246.79 | L126: 123.99 | P126: 1370.78 | Q126: 12882.39 | R126: 10.39785378
A127: 2015-04-25 | B127: 13550.5 | C127: 546.77 | E127: 13003.73 | K127: 1268 | L127: 126.5 | P127: 1394.5 | Q127: 11609.23 | R127: 9.325012549
A128: 2015-04-26 | B128: 16334.28 | C128: 392.36 | E128: 15941.92 | K128: 1310 | L128: 36.51 | P128: 1346.51 | Q128: 14595.41 | R128: 11.83943677
A129: 2015-04-27 | B129: 17036.05 | C129: 449.87 | E129: 16586.18 | K129: 1243.66 | L129: 69.13 | P129: 1312.79 | Q129: 15273.39 | R129: 12.63429795
A130: 2015-04-28 | B130: 13451.67 | C130: 353.04 | E130: 13098.63 | K130: 1139.45 | L130: 29.29 | P130: 1168.74 | Q130: 11929.89 | R130: 11.20747985
A131: 2015-04-29 | B131: 17855.47 | C131: 936.27 | E131: 16919.2 | K131: 1447.83 | L131: 73.1 | P131: 1520.93 | Q131: 15398.27 | R131: 11.12424635
A132: 2015-04-30 | B132: 12530.48 | C132: 878.52 | E132: 11651.96 | K132: 1413.24 | L132: 54.89 | P132: 1468.13 | Q132: 10183.83 | R132: 7.93659962
A133: 合计 | B133: =SUM(B103:B132) -> 514832.54 | C133: =SUM(C103:C132) -> 17280.78 | D133: =SUM(D105:D132) -> 0 | E133: =SUM(E103:E132) -> 497551.76 | F133: 0 | H133: =SUM(H103:H132) -> 0 | I133: =SUM(I103:I132) -> 0 | J133: =SUM(J105:J132) -> 0 | K133: =SUM(K103:K132) -> 51254.02 | L133: 1698.6 | M133: 0 | N133: 0 | O133: 0 | P133: 52952.62 | Q133: 444599.14 | R133: =E133/P133 -> 9.396168877
A134: 2015-05-01 | B134: 11450.86 | C134: 38 | E134: 11412.86 | K134: 1500.46 | L134: 22.5 | P134: =SUM(G134:O134) -> 1522.96 | Q134: =E134-P134 -> 9889.9 | R134: 7.493867206
A135: 2015-05-02 | B135: 16352.31 | C135: 433.56 | E135: 15918.75 | K135: 1675.57 | L135: 126.58 | P135: =SUM(G135:O135) -> 1802.15 | Q135: 14116.6 | R135: 8.833199234
A136: 2015-05-03 | B136: 20417.97 | C136: 584.8 | E136: 19833.17 | K136: 2204.67 | L136: 19.2 | P136: 2223.87 | Q136: 17609.3 | R136: 8.91831357
A137: 2015-05-04 | B137: 17746.57 | C137: 84 | E137: 17662.57 | K137: 2110.66 | L137: 26.2 | P137: 2136.86 | Q137: 15525.71 | R137: 8.265665509
A138: 2015-05-05 | B138: 19446.41 | C138: 503.1 | E138: 18943.31 | K138: 2080.21 | L138: 5.86 | P138: 2086.07 | Q138: 16857.24 | R138: 9.080860182
A139: 2015-05-06 | B139: 17957.58 | C139: 394.16 | E139: 17563.42 | K139: 1985.94 | L139: 75.94 | P139: 2061.88 | Q139: 15501.54 | R139: 8.518158186
A140: 2015-05-07 | B140: 15240.39 | C140: 680.77 | E140: 14559.62 | K140: 1929.27 | L140: 35.88 | P140: 1965.15 | Q140: 12594.47 | R140: 7.408910261
A141: 2015-05-08 | B141: 18976.92 | C141: 806.67 | E141: 18170.25 | K141: 1792.43 | L141: 64.09 | P141: 1856.52 | Q141: 16313.73 | R141: 9.787263267
A142: 2015-05-09 | B142: 19111.84 | C142: 445.44 | E142: 18666.4 | K142: 1556.95 | L142: 74.8 | P142: 1631.75 | Q142: 17034.65 | R142: 11.43949747
A143: 2015-05-10 | B143: 17635.58 | C143: 1032.41 | E143: 16603.17 | K143: 1734.78 | L143: 128 | P143: 1862.78 | Q143: 14740.39 | R143: 8.913113733
A144: 2015-05-11 | B144: 20434.17 | C144: 701 | E144: 19733.17 | K144: 1837.88 | L144: 71.92 | P144: 1909.8 | Q144: 17823.37 | R144: 10.33258456
A145: 2015-05-12 | B145: 19104.39 | C145: 275.13 | E145: 18829.26 | K145: 1827.23 | L145: 64.11 | P145: 1891.34 | Q145: 16937.92 | R145: 9.955513023
A146: 2015-05-13 | B146: 23527.24 | C146: 785.4 | E146: 22741.84 | K146: 1771.11 | L146: 77.67 | P146: 1848.78 | Q146: 20893.06 | R146: 12.3009985
A147: 2015-05-14 | B147: 20141.78 | C147: 294.09 | D147: 1014 | E147: 19847.69 | K147: 1838.26 | L147: 254.62 | P147: 2092.88 | Q147: 17754.81 | R147: 9.483434311
A148: 2015-05-15 | B148: 16143.85 | C148: 727.27 | E148: 15416.58 | K148: 2025.39 | L148: 183.11 | P148: 2208.5 | Q148: 13208.08 | R148: 6.980565995
A149: 2015-05-16 | B149: 17300.7 | C149: 583.36 | E149: 16717.34 | K149: 1882.62 | L149: 63.13 | P149: 1945.75 | Q149: 14771.59 | R149: 8.591720416
A150: 2015-05-17 | B150: 17824.8 | C150: 244.69 | E150: 17580.11 | K150: 2639.14 | L150: 44.87 | P150: 2684.01 | Q150: 14896.1 | R150: 6.549942064
A151: 2015-05-18 | B151: 22855.61 | C151: 898.28 | E151: 21957.33 | K151: 2760.06 | L151: 39.35 | P151: 2799.41 | Q151: 19157.92 | R151: 7.843556321
A152: 2015-05-19 | B152: 18624.87 | C152: 587.76 | E152: =B152-C152 -> 18037.11 | K152: 2717.43 | L152: 102.42 | P152: 2819.85 | Q152: 15217.26 | R152: 6.396478536
A153: 2015-05-20 | B153: 20668.63 | C153: 582.63 | E153: 20086 | K153: 2258.04 | L153: 105.53 | P153: 2363.57 | Q153: 17722.43 | R153: 8.498161679
A154: 2015-05-21 | B154: 22013.57 | C154: 145 | E154: 21868.57 | K154: 2395.82 | L154: 111.18
A155: 2015-05-22 | B155: 23420.25 | C155: 810.19 | E155: 22610.06 | K155: 2177.98 | L155: 52.47
A156: 2015-05-23 | B156: 26325.85 | C156: 398.24 | E156: 25927.61 | K156: 2254.41 | L156: 69.5
A157: 2015-05-24 | B157: 25981.09 | C157: 635.39 | E157: 25345.7 | K157: 2354.49 | L157: 80.83
A158: 2015-05-25 | B158: 23564.63 | C158: 676.2 | E158: 22888.43 | K158: 2256.2 | L158: 178.51
A159: 2015-05-26 | B159: 25732.26 | C159: 1362.21 | E159: 24370.05 | K159: 2213.2 | L159: 168.87
A160: 2015-05-27 | B160: 22751.4 | C160: 471.05 | E160: 22280.35 | K160: 2168.02 | L160: 93.88
A161: 2015-05-28 | B161: 19469 | C161: 216.02 | E161: 19252.98 | K161: 2268.84 | L161: 198.75
A162: 2015-05-29 | B162: 18744.88 | C162: 806.85 | E162: 17938.03 | K162: 2042.87 | L162: 55.35
A163: 2015-05-30 | B163: 15241.39 | C163: 587.89 | E163: 14653.5 | K163: 1832.64 | L163: 77.72
A164: 2015-05-31 | B164: 18387.07 | C164: 310.24 | E164: 18076.83 | K164: 784.19 | L164: 63.98
A165: 合计 | B165: =SUM(B134:B164) -> 612593.86 | C165: =SUM(C134:C164) -> 17101.8 | D165: 1014 | E165: 595492.06 | F165: 0 | H165: =SUM(H134:H164) -> 0 | I165: =SUM(I135:I164) -> 0 | J165: =SUM(J137:J164) -> 0 | K165: =SUM(K134:K164) -> 62876.76 | L165: 2736.82 | M165: 0 | N165: 0 | O165: 0 | P165: 41713.88 | Q165: =SUM(Q135:Q164) -> 308676.17 | R165: =E165/P165 -> 14.27563343
A166: 2015-06-01 | B166: 22856.41 | C166: 829.32 | E166: 22027.09 | K166: 1857.54 | L166: 241.28
A167: 2015-06-02 | B167: 23312.53 | C167: 716.71 | E167: 22595.82 | K167: 2157.09 | L167: 95.29
A168: 2015-06-03 | B168: 23190.47 | C168: 696.14 | E168: 22494.33 | K168: 1807.41 | L168: 120.98
A169: 2015-06-04 | B169: 19879.63 | C169: 1242.46 | E169: 18637.17 | K169: 2039.72 | L169: 84.71
A170: 2015-06-05 | B170: 20669.06 | C170: 779.92 | E170: 19889.14 | K170: 2258.92 | L170: 92.58
A171: 2015-06-06 | B171: 20256.73 | C171: 1375.19 | E171: 18881.54 | K171: 2289.34 | L171: 48.45
A172: 2015-06-07 | B172: 20074.46 | C172: 0 | E172: 20074.46 | K172: 2960.09 | L172: 49.03
A173: 2015-06-08 | B173: 22075.08 | C173: 1830.06 | E173: 20245.02 | K173: 2728.39 | L173: 89.25
A174: 2015-06-09 | B174: 19741.69 | C174: 968.59 | E174: =B174-C174 -> 18773.1 | K174: 2607.24 | L174: 91.74
A175: 2015-06-10 | B175: 26983.69 | C175: 515 | E175: 26468.69 | K175: 2492.63 | L175: 96.7
A176: 2015-06-11 | B176: 23945.32 | C176: 344.33 | E176: 23600.99 | K176: 2187.28 | L176: 54.92
A177: 2015-06-12 | B177: 15590.56 | C177: 587 | E177: 15003.56 | K177: 2378.68 | L177: 13.2
A178: 2015-06-13 | B178: 15180.31 | C178: 465.26 | E178: 14715.05 | K178: 2486.63 | L178: 146.61
A179: 2015-06-14 | B179: 16492.67 | C179: 226.44 | E179: 16266.23 | K179: 2937.8 | L179: 66.15
A180: 2015-06-15 | B180: 17677.41 | C180: 210.5 | E180: 17466.91 | K180: 3678.79 | L180: 50.2
A181: 2015-06-16 | B181: 22273.02 | C181: 1676.59 | E181: 20596.43 | K181: 3714.97 | L181: 46.35
A182: 2015-06-17 | B182: 14997.13 | C182: 984.37 | E182: 14012.76 | K182: 2964.8 | L182: 285.53
A183: 2015-06-18 | B183: 63839.23 | C183: 2402.8 | E183: 61436.43 | K183: 2402.8 | L183: 56.43
A184: 2015-06-19 | B184: 18816.35 | C184: 1568.9 | E184: 17247.45 | K184: 2715.84 | L184: 67.88
A185: 2015-06-20 | B185: 15384.34 | C185: 186.62 | E185: 15197.72 | K185: 2676.51 | L185: 964.09
A186: 2015-06-21 | B186: 20759.62 | C186: 2649.27 | E186: 18110.35 | K186: 2212.28 | L186: 49.7
A187: 2015-06-22 | B187: 16664.76 | C187: 1364.03 | E187: 15300.73 | K187: 3013.81 | L187: 111.39
A188: 2015-06-23 | B188: 21144.2 | C188: 416.83 | E188: 20727.37 | K188: 2636.15 | L188: 52.15
A189: 2015-06-24 | B189: 18618.49 | C189: 1528.95 | E189: 17089.54 | K189: 2764.68 | L189: 14.12
A190: 2015-06-25 | B190: 20163.71 | C190: 1370.83 | E190: =B190-C190 -> 18792.88 | K190: 2075.28 | L190: 30.8
A191: 2015-06-26 | B191: 39298.14 | C191: 1887.75 | E191: 37410.39 | K191: 2116.49 | L191: 85.87
A192: 2015-06-27 | B192: 23805.47 | C192: 940.75 | E192: 22864.72 | K192: 2485.75 | L192: 7.2
A193: 2015-06-28 | B193: 28119.33 | C193: 1089.71 | E193: 27029.62 | K193: 2676.28 | L193: 98.35
A194: 2015-06-29 | B194: 26104.33 | C194: 1759.35 | E194: 24344.98 | K194: 2653.28 | L194: 99.35
A195: 2015-06-30 | B195: 21426.37 | C195: 1901.49 | E195: 19524.88 | K195: 2163.57 | L195: 89.5
A196: 合计 | B196: =SUM(B166:B195) -> 679340.51 | C196: =SUM(C166:C195) -> 32515.16 | D196: 0 | E196: 646825.35 | F196: 0 | H196: =SUM(H166:H195) -> 0 | I196: =SUM(I167:I195) -> 0 | J196: =SUM(J169:J195) -> 0 | K196: =SUM(K166:K195) -> 76140.04 | L196: 3399.8 | M196: 0 | N196: 0 | O196: 0 | P196: 0 | Q196: =SUM(Q167:Q195) -> 0 | R196: =E196/P196 -> 
A197: 2015-07-01 | B197: 20664.74 | C197: 2518.29 | E197: =B197-C197 -> 18146.45 | K197: 2115.7 | L197: 94.4
A198: 2015-07-02 | B198: 21334.1 | C198: 1764.19 | E198: =B198-C198 -> 19569.91 | K198: 1981.58 | L198: 220.29
A199: 2015-07-03 | B199: 18922.94 | C199: 1842.7 | E199: 17080.24 | K199: 1798.44 | L199: 213.77
A200: 2015-07-04 | B200: 21629.25 | C200: 928.04 | E200: 20701.21 | K200: 2142.24 | L200: 346.18
... 218 more rows

Sheet 天猫
A1: 2015年【天猫】销售数据表
A2: 销售收入部分 | H2: 其他支出部分 | K2: 推广支出 | N2: 活动支出部分 | R2: 月成果 | T2: 利润 | U2: 提点
A3: 店铺ID | B3: A支付宝成交款 | C3: B退款总金额 | D3: C刷单金额 | E3: D有效销售额 | F3: E月初目标设定 | G3: F目标达成比例=D/E | H3: 刷单支出（佣金快递） | I3: 平台扣点支出3% | J3: 税点支出（3.5%） | K3: 直通车(京东所有推广) | L3: 淘宝客 | M3: 钻展/广告费 | N3: 淘金币 （积分支出） | O3: 聚划算费用 | P3: 促销费用 | Q3: J花费支出总计 | R3: K净销售额=E-I-J | S3: L投入产出比=J/D | T3: 0.25 | U3: 0
A4: 11月 | B4: 0 | C4: 0 | D4: 4794 | E4: 52071 | F4: 0 | H4: 442 | I4: 1705 | J4: 1990 | K4: 3857 | L4: 0 | M4: 0 | N4: 0 | O4: 0 | P4: 3789 | Q4: =SUM(H4:P4) -> 11783 | R4: =E4-Q4 -> 40288 | S4: =E4/Q4 -> 4.419163201 | T4: =E4*0.25-Q4 -> 1234.75 | U4: 0
A5: 12月 | B5: 83276 | C5: =B5-D5-E5 -> 2534 | D5: 20216 | E5: 60526 | F5: 0 | H5: 1846 | I5: 2434 | J5: 2840 | K5: 7263.13 | L5: 132.16 | M5: 0 | N5: 0 | O5: 0 | P5: 2654 | Q5: 17169.29 | R5: 43356.71 | S5: =E5/Q5 -> 3.525247695 | T5: =E5*0.25-Q5 -> -2037.79 | U5: 0
A6: 1月合计 | B6: 202132.01 | C6: 5299.05 | D6: 66356 | E6: 130476.96 | F6: 75000 | H6: 2784 | I6: 6063.9603 | J6: 7074.62035 | K6: 25371 | L6: 696.26 | M6: 500 | N6: 0 | O6: 0 | P6: 1989 | Q6: 44478.84065 | R6: 85998.11935 | S6: 2.933461351 | T6: -11859.60065
A7: 2月合计 | B7: 162069 | C7: 10685.93 | D7: 0 | E7: 151383.07 | F7: 75000 | H7: 0 | I7: 4862.07 | J7: 5672.415 | K7: 11889.98 | L7: 569.9 | M7: 0 | N7: 0 | O7: 15000 | P7: 0 | Q7: 49738.365 | R7: 101644.705 | S7: 3.043587581
A8: 销售收入部分 | H8: 其他支出部分 | K8: 推广支出 | N8: 活动支出部分 | R8: 月成果
A9: 店铺ID | B9: A支付宝成交款 | C9: B退款总金额 | D9: C刷单金额 | E9: D有效销售额 | F9: E月初目标设定 | G9: F目标达成比例=D/E | H9: 刷单支出（佣金快递） | I9: 平台扣点支出 | J9: 税点支出（3.5%） | K9: 直通车(京东所有推广) | L9: 淘宝客 | M9: 钻展/广告费 | N9: 淘金币 （积分支出） | O9: 聚划算费用 | P9: 促销费用 | Q9: J花费支出总计 | R9: K净销售额=E-I-J | S9: L投入产出比=J/D
A10: 2015-01-01 | B10: 1987 | C10: 0 | D10: 0 | E10: =B10-C10-D10 -> 1987 | F10: 0 | G10: =E10/F10 ->  | H10: 0 | I10: =B10*0.03 -> 59.61 | J10: =B10*0.035 -> 69.545 | K10: 342.95 | L10: 3 | M10: 0 | N10: 0 | O10: 0 | P10: 0 | Q10: =SUM(H10:P10) -> 475.105 | R10: =E10-Q10 -> 1511.895 | S10: =E10/Q10 -> 4.182233401
A11: 2015-01-02 | B11: 3352 | C11: 45 | D11: 0 | E11: =B11-C11-D11 -> 3307 | H11: 0 | I11: =B11*0.03 -> 100.56 | J11: =B11*0.035 -> 117.32 | K11: 387.78 | L11: 16.54 | Q11: =SUM(H11:P11) -> 622.2 | R11: =E11-Q11 -> 2684.8 | S11: 5.31501125
A12: 2015-01-03 | B12: 4263 | C12: 0 | D12: 0 | E12: 4263 | H12: 0 | I12: 127.89 | J12: 149.205 | K12: 421.77 | L12: 10.42 | Q12: 709.285 | R12: 3553.715 | S12: 6.010277956
A13: 2015-01-04 | B13: 3219 | C13: 280 | D13: 0 | E13: 2939 | H13: 0 | I13: 96.57 | J13: 112.665 | K13: 597.56 | L13: 67.91 | Q13: 874.705 | R13: 2064.295 | S13: 3.359989939
A14: 2015-01-05 | B14: 4054 | C14: 0 | D14: 1537 | E14: 2517 | H14: 66 | I14: 121.62 | J14: 141.89 | K14: 555.38 | L14: 7.55 | Q14: 892.44 | R14: 1624.56 | S14: 2.820357671
A15: 2015-01-06 | B15: 5120 | C15: 72 | D15: 2002 | E15: 3046 | H15: 84 | I15: 153.6 | J15: 179.2 | K15: 734.32 | L15: 15.54 | Q15: 1166.66 | R15: 1879.34 | S15: 2.610872062
A16: 2015-01-07 | B16: 4165 | C16: 206 | D16: 1430 | E16: 2529 | H16: 60 | I16: 124.95 | J16: 145.775 | K16: 714.59 | L16: 2.4 | Q16: 1047.715 | R16: 1481.285 | S16: 2.41382437
A17: 2015-01-08 | B17: 5399 | C17: 457 | D17: 1716 | E17: 3226 | H17: 72 | I17: 161.97 | J17: 188.965 | K17: 711.72 | L17: 7.3 | Q17: 1141.955 | R17: 2084.045 | S17: 2.824979969
A18: 2015-01-09 | B18: 6898 | C18: 0 | D18: 3575 | E18: 3323 | H18: 150 | I18: 206.94 | J18: 241.43 | K18: 1308.49 | L18: 40.41 | Q18: 1947.27 | R18: 1375.73 | S18: 1.706491652
A19: 2015-01-10 | B19: 5810 | C19: 0 | D19: 3718 | E19: 2092 | H19: 156 | I19: 174.3 | J19: 203.35 | K19: 1080.3 | L19: 1.9 | Q19: 1615.85 | R19: 476.15 | S19: 1.294674629
A20: 2015-01-11 | B20: 2532 | C20: 148 | D20: 0 | E20: 2384 | H20: 0 | I20: 75.96 | J20: 88.62 | K20: 1119.58 | L20: 17.03 | Q20: 1301.19 | R20: 1082.81 | S20: 1.832169015
A21: 2015-01-12 | B21: 9664 | C21: 0 | D21: 4004 | E21: 5660 | H21: 168 | I21: 289.92 | J21: 338.24 | K21: 1225.39 | L21: 2.25 | Q21: 2023.8 | R21: 3636.2 | S21: 2.796719043
A22: 2015-01-13 | B22: 9287.01 | C22: 0 | D22: 4290 | E22: 4997.01 | H22: 180 | I22: 278.6103 | J22: 325.04535 | K22: 1017.96 | L22: 3.6 | Q22: 1805.21565 | R22: 3191.79435 | S22: 2.768095878
A23: 2015-01-14 | B23: 10606 | C23: 520 | D23: 4290 | E23: 5796 | H23: 180 | I23: 318.18 | J23: 371.21 | K23: 861.71 | L23: 47.18 | Q23: 1778.28 | R23: 4017.72 | S23: 3.259329239
A24: 2015-01-15 | B24: 9433 | C24: 420 | D24: 4147 | E24: 4866 | H24: 174 | I24: 282.99 | J24: 330.155 | K24: 882.5 | L24: 16.78 | Q24: 1686.425 | R24: 3179.575 | S24: 2.885393658
A25: 2015-01-16 | B25: 7025 | C25: 592 | D25: 4004 | E25: 2429 | H25: 168 | I25: 210.75 | J25: 245.875 | K25: 881.03 | L25: 15.72 | Q25: 1521.375 | R25: 907.625 | S25: 1.596582039
A26: 2015-01-17 | B26: 4210 | C26: 53 | D26: 0 | E26: 4157 | I26: 126.3 | J26: 147.35 | K26: 860.16 | L26: 0 | Q26: 1133.81 | R26: 3023.19 | S26: 3.666399132
A27: 2015-01-18 | B27: 4330 | C27: 0 | D27: 0 | E27: 4330 | I27: 129.9 | J27: 151.55 | K27: 178.16 | L27: 33.06 | Q27: 492.67 | R27: 3837.33 | S27: 8.78884446
A28: 2015-01-19 | B28: 10314 | C28: 170 | D28: 4290 | E28: 5854 | H28: 180 | I28: 309.42 | J28: 360.99 | K28: 404.42 | L28: 20.36 | Q28: 1275.19 | R28: 4578.81 | S28: 4.590688446
A29: 2015-01-20 | B29: 10940 | C29: 0 | D29: 3718 | E29: 7222 | H29: 156 | I29: 328.2 | J29: 382.9 | K29: 819.91 | L29: 29.92 | Q29: 1716.93 | R29: 5505.07 | S29: 4.206345046
A30: 2015-01-21 | B30: 9414 | C30: 255.33 | D30: 3146 | E30: 6012.67 | H30: 132 | I30: 282.42 | J30: 329.49 | K30: 701.13 | L30: 9.8 | Q30: 1454.84 | R30: 4557.83 | S30: 4.132873718
A31: 2015-01-22 | B31: 9601 | C31: 244 | D31: 3289 | E31: 6068 | H31: 138 | I31: 288.03 | J31: 336.035 | K31: 811.1 | L31: 40.2 | Q31: 1613.365 | R31: 4454.635 | S31: 3.761083202
A32: 2015-01-23 | B32: 7197 | C32: 0 | D32: 3146 | E32: 4051 | H32: 132 | I32: 215.91 | J32: 251.895 | K32: 687.23 | L32: 9.52 | Q32: 1296.555 | R32: 2754.445 | S32: 3.124433595
A33: 2015-01-24 | B33: 7505 | C33: 196 | D33: 2717 | E33: 4592 | H33: 114 | I33: 225.15 | J33: 262.675 | K33: 856.83 | L33: 24.94 | Q33: 1483.595 | R33: 3108.405 | S33: 3.095184333
A34: 2015-01-25 | B34: 4638 | C34: 0 | D34: 0 | E34: 4638 | I34: 139.14 | J34: 162.33 | K34: 829.37 | L34: 31.12 | Q34: 1161.96 | R34: 3476.04 | S34: 3.99153155
A35: 2015-01-26 | B35: 9937 | C35: 577 | D35: 2574 | E35: 6786 | H35: 108 | I35: 298.11 | J35: 347.795 | K35: 1073.33 | L35: 31.94 | M35: 500 | Q35: 2359.175 | R35: 4426.825 | S35: 2.87642926
A36: 2015-01-27 | B36: 9030 | C36: 103.24 | D36: 2860 | E36: 6066.76 | H36: 120 | I36: 270.9 | J36: 316.05 | K36: 1108.17 | L36: 26.74 | Q36: 1841.86 | R36: 4224.9 | S36: 3.293822549
A37: 2015-01-28 | B37: 8939 | C37: 368 | D37: 3003 | E37: 5568 | H37: 126 | I37: 268.17 | J37: 312.865 | K37: 1546.03 | L37: 9.52 | Q37: 2262.585 | R37: 3305.415 | S37: 2.460902021
A38: 2015-01-29 | B38: 7540 | C38: 116 | D38: 2900 | E38: 4524 | H38: 120 | I38: 226.2 | J38: 263.9 | K38: 1405.95 | L38: 86.01 | Q38: 2102.06 | R38: 2421.94 | S38: 2.152174534
A39: 2015-01-30 | B39: 2186 | C39: 476.48 | D39: 0 | E39: 1709.52 | H39: 0 | I39: 65.58 | J39: 76.51 | K39: 593.07 | L39: 28.56 | Q39: 763.72 | R39: 945.8 | S39: 2.238411983
A40: 2015-01-31 | B40: 3537 | C40: 0 | D40: 0 | E40: 3537 | H40: 0 | I40: 106.11 | J40: 123.795 | K40: 653.11 | L40: 39.04 | P40: 1989 | Q40: 2911.055 | R40: 625.945 | S40: 1.215023419
A41: 1月合计 | B41: =SUM(B10:B40) -> 202132.01 | C41: =SUM(C10:C40) -> 5299.05 | D41: 66356 | E41: 130476.96 | F41: 75000 | H41: =SUM(H10:H40) -> 2784 | I41: =B41*0.03 -> 6063.9603 | J41: =B41*0.035 -> 7074.62035 | K41: =SUM(K10:K40) -> 25371 | L41: 696.26 | M41: 500 | N41: 0 | O41: 0 | P41: 1989 | Q41: =SUM(H41:P41) -> 44478.84065 | R41: =E41-Q41 -> 85998.11935 | S41: =E41/Q41 -> 2.933461351 | T41: =E41*0.25-Q41 -> -11859.60065
A42: 2015-02-01 | B42: 3621 | C42: 0 | D42: 0 | E42: =B42-C42-D42 -> 3621 | F42: 0 | G42: =E42/F42 ->  | H42: 0 | I42: 108.63 | J42: 126.735 | K42: 732.49 | L42: 43.86 | M42: 0 | N42: 0 | O42: 0 | P42: 0 | Q42: =SUM(H42:P42) -> 1011.715 | R42: 2609.285 | S42: 3.579071181
A43: 2015-02-02 | B43: 5071 | C43: 854.21 | E43: =B43-C43-D43 -> 4216.79 | I43: 152.13 | J43: 177.485 | K43: 846.96 | L43: 59.88 | Q43: 1236.455 | R43: 2980.335 | S43: 3.410386953
A44: 2015-02-03 | B44: 35896 | C44: 1076 | E44: 34820 | I44: 1076.88 | J44: 1256.36 | K44: 911.12 | L44: 20.06 | Q44: 3264.42 | R44: 31555.58 | S44: 10.66651963
A45: 2015-02-04 | B45: 25738 | C45: 640 | E45: 25098 | I45: 772.14 | J45: 900.83 | K45: 861.15 | L45: 78.37 | Q45: 2612.49 | R45: 22485.51 | S45: 9.606926725
A46: 2015-02-05 | B46: 9100 | C46: 458 | E46: 8642 | I46: 273 | J46: 318.5 | K46: 766.06 | L46: 16.47 | Q46: 1374.03 | R46: 7267.97 | S46: 6.289527885
A47: 2015-02-06 | B47: 5085 | C47: 1005.19 | E47: 4079.81 | I47: 152.55 | J47: 177.975 | K47: 462.03 | L47: 7.92 | Q47: 800.475 | R47: 3279.335 | S47: 5.096736313
A48: 2015-02-07 | B48: 3809 | C48: 1010 | E48: 2799 | I48: 114.27 | J48: 133.315 | K48: 455.93 | L48: 35.92 | Q48: 739.435 | R48: 2059.565 | S48: 3.785322577
A49: 2015-02-08 | B49: 4062 | C49: 408 | E49: 3654 | I49: 121.86 | J49: 142.17 | K49: 423.67 | L49: 8.9 | Q49: 696.6 | R49: 2957.4 | S49: 5.245478036
A50: 2015-02-09 | B50: 8053 | C50: 393 | E50: 7660 | I50: 241.59 | J50: 281.855 | K50: 471.21 | L50: 13.96 | Q50: 1008.615 | R50: 6651.385 | S50: 7.594572756
A51: 2015-02-10 | B51: 5800 | C51: 543 | E51: 5257 | I51: 174 | J51: 203 | K51: 390.22 | L51: 13.13 | Q51: 780.35 | R51: 4476.65 | S51: 6.736720702
A52: 2015-02-11 | B52: 2828 | C52: 328 | E52: 2500 | I52: 84.84 | J52: 98.98 | K52: 356.45 | L52: 27.68 | Q52: 567.95 | R52: 1932.05 | S52: 4.401795933
A53: 2015-02-12 | B53: 917 | C53: 386 | E53: 531 | I53: 27.51 | J53: 32.095 | K53: 437.58 | L53: 32.65 | Q53: 529.835 | R53: 1.165 | S53: 1.002198798
A54: 2015-02-13 | B54: 975 | C54: 513 | E54: 462 | I54: 29.25 | J54: 34.125 | K54: 168.39 | L54: 64.48 | Q54: 296.245 | R54: 165.755 | S54: 1.559519992
A55: 2015-02-14 | B55: 423 | C55: 132 | E55: 291 | I55: 12.69 | J55: 14.805 | K55: 48.1 | L55: 4.8 | Q55: 80.395 | R55: 210.605 | S55: 3.619628086
A56: 2015-02-15 | B56: 224 | C56: 0 | E56: 224 | I56: 6.72 | J56: 7.84 | K56: 60.41 | L56: 31.18 | Q56: 106.15 | R56: 117.85 | S56: 2.110221385
A57: 2015-02-16 | B57: 1092 | C57: 0 | E57: 1092 | I57: 32.76 | J57: 38.22 | K57: 65.12 | L57: 7.25 | Q57: 143.35 | R57: 948.65 | S57: 7.61771887
A58: 2015-02-17 | B58: 1333 | C58: 0 | E58: 1333 | I58: 39.99 | J58: 46.655 | K58: 51.41 | L58: 12.51 | Q58: 150.565 | R58: 1182.435 | S58: 8.853319164
A59: 2015-02-18 | B59: 390 | C59: 0 | E59: 390 | I59: 11.7 | J59: 13.65 | K59: 51.22 | L59: 9.05 | Q59: 85.62 | R59: 304.38 | S59: 4.555010512
A60: 2015-02-19 | B60: 1562 | C60: 60 | E60: 1502 | I60: 46.86 | J60: 54.67 | K60: 42.87 | L60: 48.23 | Q60: 192.63 | R60: 1309.37 | S60: 7.797331672
A61: 2015-02-20 | B61: 2706 | C61: 0 | E61: 2706 | I61: 81.18 | J61: 94.71 | K61: 80.2 | L61: 33.6 | Q61: 289.69 | R61: 2416.31 | S61: 9.341019711
A62: 2015-02-21 | B62: 1548 | C62: 186 | E62: 1362 | I62: 46.44 | J62: 54.18 | K62: 78.43 | L62: 0 | Q62: 179.05 | R62: 1182.95 | S62: 7.606813739
A63: 2015-02-22 | B63: 1428 | C63: 132 | E63: 1296 | I63: 42.84 | J63: 49.98 | K63: 114.59 | L63: 0 | Q63: 207.41 | R63: 1088.59 | S63: 6.248493322
A64: 2015-02-23 | B64: 2259 | C64: 0 | E64: 2259 | I64: 67.77 | J64: 79.065 | K64: 169.66 | L64: 0 | Q64: 316.495 | R64: 1942.505 | S64: 7.137553516
A65: 2015-02-24 | B65: 4399 | C65: 0 | E65: 4399 | I65: 131.97 | J65: 153.965 | K65: 194.69 | L65: 0 | Q65: 480.625 | R65: 3918.375 | S65: 9.1526658
A66: 2015-02-25 | B66: 3983 | C66: 549.44 | E66: 3433.56 | I66: 119.49 | J66: 139.405 | K66: 284.77 | L66: 0 | Q66: 543.665 | R66: 2889.895 | S66: 6.315580367
A67: 2015-02-26 | B67: 10470 | C67: 555.02 | E67: 9914.98 | I67: 314.1 | J67: 366.45 | K67: 982.82 | L67: 0 | Q67: 1663.37 | R67: 8251.61 | S67: 5.96077842
A68: 2015-02-27 | B68: 12565 | C68: 515 | E68: 12050 | I68: 376.95 | J68: 439.775 | K68: 1389.97 | L68: 0 | Q68: 2206.695 | R68: 9843.305 | S68: 5.460654961
A69: 2015-02-28 | B69: 6732 | C69: 942.07 | E69: 5789.93 | I69: 201.96 | J69: 235.62 | K69: 992.46 | L69: 0 | O69: 15000 | P69: 11744 | Q69: 28174.04 | R69: -22384.11 | S69: 0.2055058486
A70: 2月合计 | B70: =SUM(B42:B69) -> 162069 | C70: =SUM(C42:C69) -> 10685.93 | D70: 0 | E70: 151383.07 | F70: 75000 | H70: =SUM(H42:H69) -> 0 | I70: 4862.07 | J70: 5672.415 | K70: =SUM(K42:K69) -> 11889.98 | L70: 569.9 | M70: 0 | N70: 0 | O70: 15000 | P70: 0 | Q70: =SUM(Q42:Q69) -> 49738.365 | R70: 101644.705 | S70: 3.043587581
A71: 2015-03-01 | B71: 6354 | C71: 902 | E71: =B71-C71-D71 -> 5452 | F71: 0 | G71: =E71/F71 ->  | H71: 0 | I71: 190.62 | J71: 222.39 | K71: 793.77 | L71: 0 | M71: 0 | N71: 0 | O71: 0 | P71: 0 | Q71: =SUM(H71:P71) -> 1206.78 | R71: 4245.22 | S71: =E71/Q71 -> 4.51780772
A72: 2015-03-02 | B72: 6093 | C72: 290 | E72: 5803 | I72: 182.79 | J72: 213.255 | K72: 879.95 | L72: 0 | Q72: 1275.995 | R72: 4527.005 | S72: 4.547823463
A73: 2015-03-03 | B73: 7091 | C73: 247 | E73: 6844 | I73: 212.73 | J73: 248.185 | K73: 652.49 | L73: 0 | Q73: 1113.405 | R73: 5730.595 | S73: 6.146909705
A74: 2015-03-04 | B74: 9572 | C74: 271 | E74: 9301 | I74: 287.16 | J74: 335.02 | K74: 603.99 | L74: 20.64 | Q74: 1246.81 | R74: 8054.19 | S74: 7.459837505
A75: 2015-03-05 | B75: 8737 | C75: 44.66 | E75: 8692.34 | I75: 262.11 | J75: 305.795 | K75: 708.4 | L75: 15.59 | Q75: 1291.895 | R75: 7400.445 | S75: 6.728364147
A76: 2015-03-06 | B76: 8674 | C76: 47 | E76: 8627 | I76: 260.22 | J76: 303.59 | K76: 594.22 | L76: 30.69 | Q76: 1188.72 | R76: 7438.28 | S76: 7.257386096
A77: 2015-03-07 | B77: 6037 | C77: 469 | E77: 5568 | I77: 181.11 | J77: 211.295 | K77: 521.6 | L77: 6.86 | Q77: 920.865 | R77: 4647.135 | S77: 6.046488899
A78: 2015-03-08 | B78: 6959 | C78: 368 | E78: 6591 | I78: 208.77 | J78: 243.565 | K78: 488.14 | L78: 15.78 | Q78: 956.255 | R78: 5634.745 | S78: 6.89251298
A79: 2015-03-09 | B79: 9661 | C79: 664 | E79: 8997 | I79: 289.83 | J79: 338.135 | K79: 802.95 | L79: 74.28 | Q79: 1505.195 | R79: 7491.805 | S79: 5.977298622
A80: 2015-03-10 | B80: 12882 | C80: 269.04 | E80: =B80-C80-D80 -> 12612.96 | I80: =B80*0.03 -> 386.46 | J80: =B80*0.035 -> 450.87 | K80: 859.17 | L80: 49.07 | Q80: 1745.57 | R80: =E80-Q80 -> 10867.39 | S80: =E80/Q80 -> 7.22569705
A81: 2015-03-11 | B81: 10804 | C81: 797 | E81: 10007 | I81: 324.12 | J81: 378.14 | K81: 716.5 | L81: 62.05 | Q81: 1480.81 | R81: 8526.19 | S81: 6.757787967
A82: 2015-03-12 | B82: 6712 | C82: 112 | E82: 6600 | I82: 201.36 | J82: 234.92 | K82: 793.72 | L82: 32.7 | Q82: 1262.7 | R82: 5337.3 | S82: 5.226894749
A83: 2015-03-13 | B83: 10165 | C83: 0 | E83: 10165 | I83: 304.95 | J83: 355.775 | K83: 746.21 | L83: 32.07 | Q83: 1439.005 | R83: 8725.995 | S83: 7.063908742
A84: 2015-03-14 | B84: 7563 | C84: 197 | E84: 7366 | I84: 226.89 | J84: 264.705 | K84: 650.55 | L84: 11.4 | Q84: 1153.545 | R84: 6212.455 | S84: 6.385533291
A85: 2015-03-15 | B85: 8517 | C85: 0 | E85: 8517 | I85: 255.51 | J85: 298.095 | K85: 658.34 | L85: 6.96 | Q85: 1218.905 | R85: 7298.095 | S85: 6.987419036
A86: 2015-03-16 | B86: 13371 | C86: 1234.91 | E86: 12136.09 | I86: 401.13 | J86: 467.985 | K86: 869.68 | L86: 70.82 | Q86: 1809.615 | R86: 10326.475 | S86: 6.706448609
A87: 2015-03-17 | B87: 8437 | C87: 657 | E87: 7780 | I87: 253.11 | J87: 295.295 | K87: 776.88 | L87: 13.6 | Q87: 1338.885 | R87: 6441.115 | S87: 5.81080526
A88: 2015-03-18 | B88: 10795 | C88: 409 | E88: 10386 | I88: 323.85 | J88: 377.825 | K88: 798.35 | L88: 32.4 | Q88: 1532.425 | R88: 8853.575 | S88: 6.777493189
A89: 2015-03-19 | B89: 8465 | C89: 300 | E89: 8165 | I89: 253.95 | J89: 296.275 | K89: 631.68 | L89: 23.34 | Q89: 1205.245 | R89: 7591.435 | S89: 14.23552692
A90: 2015-03-20 | B90: 9359 | C90: 136 | E90: 9223 | I90: 280.77 | J90: 327.565 | K90: 545.25 | L90: 18.28 | Q90: 1171.865 | R90: 8051.135 | S90: 7.870360494
A91: 2015-03-21 | B91: 11477 | C91: 287 | E91: 11190 | I91: 344.31 | J91: 401.695 | K91: 537.89 | L91: 46.28 | Q91: 1330.175 | R91: 9859.825 | S91: 8.412426936
A92: 2015-03-22 | B92: 10391 | C92: 58 | E92: 10333 | I92: 311.73 | J92: 363.685 | K92: 696.07 | L92: 81.19 | Q92: 1452.675 | R92: 8880.325 | S92: 7.113084482
A93: 2015-03-23 | B93: 12184 | C93: 92 | E93: 12092 | I93: 365.52 | J93: 426.44 | K93: 986.91 | L93: 26.57 | Q93: 1805.44 | R93: 10286.56 | S93: 6.697536335
A94: 2015-03-24 | B94: 11135 | C94: 227 | E94: 10908 | I94: 334.05 | J94: 389.725 | K94: 1230.44 | L94: 0 | Q94: 1954.215 | R94: 8953.785 | S94: 5.58178092
A95: 2015-03-25 | B95: 12605 | C95: 1623.4 | E95: 10981.6 | I95: 378.15 | J95: 441.175 | K95: 1330.17 | L95: 31.81 | Q95: 2181.305 | R95: 8800.295 | S95: 5.03441747
A96: 2015-03-26 | B96: 10637 | C96: 783 | E96: 9854 | I96: 319.11 | J96: 372.295 | K96: 1054.72 | L96: 68.62 | Q96: 1814.745 | R96: 8039.255 | S96: 5.429963989
A97: 2015-03-27 | B97: 6812 | C97: 0 | E97: 6812 | I97: 204.36 | J97: 238.42 | K97: 681.37 | L97: 49.62 | Q97: 1173.77 | R97: 5638.23 | S97: 5.803521985
A98: 2015-03-28 | B98: 6599 | C98: 528 | E98: 6071 | I98: 197.97 | J98: 230.965 | K98: 690.47 | L98: 20.07 | Q98: 1139.475 | R98: 4931.525 | S98: 5.327892231
A99: 2015-03-29 | B99: 7839 | C99: 0 | E99: 7839 | I99: 235.17 | J99: 274.365 | K99: 743.64 | L99: 58.73 | Q99: 1311.905 | R99: 6527.095 | S99: 5.975280222
A100: 2015-03-30 | B100: 9023 | C100: 943.13 | E100: 8079.87 | I100: 270.69 | J100: 315.805 | K100: 770.35 | L100: 70.11 | Q100: 1426.955 | R100: 6652.915 | S100: 5.66231591
A101: 2015-03-31 | B101: 10972 | C101: 174 | E101: 10798 | I101: 329.16 | J101: 384.02 | K101: 1195.36 | L101: 41.95 | Q101: 1950.49 | R101: 8847.51 | S101: 5.536044789
A102: 3月合计 | B102: =SUM(B71:B101) -> 285922 | C102: =SUM(C71:C101) -> 12130.14 | D102: 0 | E102: 273791.86 | F102: 0 | H102: 0 | I102: 8577.66 | J102: 10007.27 | K102: 24009.23 | L102: 1011.48 | M102: 0 | N102: 0 | O102: 0 | P102: 0 | Q102: 43605.64 | R102: 230817.9 | S102: =E102/Q102 -> 6.278817602
A103: 2015-04-01 | B103: 8902 | C103: 324.12 | E103: 8577.88 | F103: 0 | H103: 0 | I103: 267.06 | J103: 311.57 | K103: 1342.62 | L103: 32.69 | M103: 0 | N103: 0 | O103: 0 | P103: 0 | Q103: 1953.94 | R103: =E103-Q103 -> 6623.94 | S103: =E103/Q103 -> 4.390042683
A104: 2015-04-02 | B104: 10379 | C104: 1533.25 | E104: =B104-C104 -> 8845.75 | I104: 311.37 | J104: 363.265 | K104: 1117.91 | L104: 30.52 | Q104: 1823.065 | R104: 7022.685 | S104: 4.852130889
A105: 2015-04-03 | B105: 6920 | C105: 364 | E105: =B105-C105 -> 6556 | I105: =E105*0.03 -> 196.68 | J105: =E105*0.035 -> 229.46 | K105: 849.25 | L105: 29.72 | Q105: =SUM(I105:P105) -> 1305.11 | R105: 5250.89 | S105: 5.023331367
A106: 2015-04-04 | B106: 6779 | C106: 362.94 | E106: 6416.06 | I106: =E106*0.03 -> 192.4818 | J106: =E106*0.035 -> 224.5621 | K106: 743.62 | L106: 55.03 | Q106: =SUM(I106:P106) -> 1215.6939 | R106: 5200.3661 | S106: 5.277693669
A107: 2015-04-05 | B107: 7759 | E107: 7759 | I107: 232.77 | J107: 271.565 | K107: 976.58 | L107: 44.39 | Q107: 1525.305 | R107: 6233.695 | S107: 5.086851482
A108: 2015-04-06 | B108: 9164 | C108: 712 | E108: 8452 | I108: 253.56 | J108: 295.82 | K108: 1117.85 | L108: 29.86 | Q108: 1697.09 | R108: 6754.91 | S108: 4.98028979
A109: 2015-04-07 | B109: 10237 | C109: 308.71 | E109: 9928.29 | I109: 297.8487 | J109: 347.49015 | K109: 1413.45 | L109: 4.8 | Q109: 2063.58885 | R109: 7864.70115 | S109: 4.811176412
A110: 2015-04-08 | B110: 11648.98 | C110: 156.73 | E110: 11492.25 | I110: 344.7675 | J110: 402.22875 | K110: 1271.38 | L110: 23.51 | Q110: 2041.88625 | R110: 9450.36375 | S110: 5.628251819
A111: 2015-04-09 | B111: 7992 | C111: 906 | E111: 7086 | I111: 212.58 | J111: 248.01 | K111: 1028.28 | L111: 37.54 | Q111: 1526.41 | R111: 5559.59 | S111: 4.642265184
A112: 2015-04-10 | B112: 9573 | E112: 9573 | I112: 287.19 | J112: 335.055 | K112: 1027.66 | L112: 29.17 | Q112: 1679.075 | R112: 7893.925 | S112: 5.701353424
A113: 2015-04-11 | B113: 8643 | C113: 259 | E113: 8384 | I113: 251.52 | J113: 293.44 | K113: 1012.95 | M113: 5.55 | Q113: 1563.46 | R113: 6820.54 | S113: 5.362465301
A114: 2015-04-12 | B114: 10206 | C114: 43 | E114: 10163 | I114: 304.89 | J114: 355.705 | K114: 1020.58 | M114: 32.58 | Q114: 1713.755 | R114: 8449.245 | S114: 5.930252574
A115: 2015-04-13 | B115: 10744 | C115: 1099.57 | E115: 9644.43 | I115: 289.3329 | J115: 337.55505 | K115: 1323.6 | M115: 24.4 | Q115: 1974.88795 | R115: 7669.54205 | S115: 4.883532759
A116: 2015-04-14 | B116: 8922 | C116: 558.3 | E116: 8363.7 | I116: 250.911 | J116: 292.7295 | K116: 1038.43 | M116: 28.92 | Q116: 1610.9905 | R116: 6752.7095 | S116: 5.191650727
A117: 2015-04-15 | B117: 9893 | C117: 152 | E117: 9741 | I117: 292.23 | J117: 340.935 | K117: 1339.43 | M117: 22.68 | Q117: 1995.275 | R117: 7745.725 | S117: 4.882033805
A118: 2015-04-16 | B118: 13226 | C118: 0 | E118: 13226 | I118: 396.78 | J118: 462.91 | K118: 1512.7 | L118: 19.04 | Q118: 2391.43 | R118: 10834.57 | S118: 5.53058212
A119: 2015-04-17 | B119: 10556 | C119: 562 | E119: 9994 | I119: 299.82 | J119: 349.79 | K119: 1083.4 | L119: 14.01 | Q119: 1747.02 | R119: 8246.98 | S119: 5.720598505
A120: 2015-04-18 | B120: 7855 | C120: 66 | E120: 7789 | I120: 233.67 | J120: 272.615 | K120: 957.47 | L120: 37.21 | Q120: 1500.965 | R120: 6288.035 | S120: 5.189328199
A121: 2015-04-19 | B121: 11202 | C121: 348.04 | E121: 10853.96 | I121: 325.6188 | J121: 379.8886 | K121: 1035.86 | L121: 140.8 | Q121: 1882.1674 | R121: 8971.7926 | S121: 5.76673467
A122: 2015-04-20 | B122: 9195 | C122: 156 | E122: 9039 | I122: 271.17 | J122: 316.365 | K122: 888.61 | L122: 112.28 | Q122: 1588.425 | R122: 7450.575 | S122: 5.690542519
A123: 2015-04-21 | B123: 11762 | C123: 748 | E123: =B123-C123 -> 11014 | I123: 330.42 | J123: 385.49 | K123: 864.9 | L123: 48.36 | Q123: 1629.17 | R123: 9384.83 | S123: 6.760497677
A124: 2015-04-22 | B124: 13508 | C124: 1311.28 | E124: 12196.72 | I124: 365.9016 | J124: 426.8852 | Q124: 792.7868 | R124: 11403.9332 | S124: 15.38461538
A125: 2015-04-23 | B125: 10546 | C125: 299 | E125: 10247 | I125: 307.41 | J125: 358.645 | K125: 798.37 | L125: 66.13 | Q125: 1530.555 | R125: 8716.445 | S125: 6.694957058
A126: 2015-04-24 | B126: 12059.3 | C126: 497 | E126: 11562.3 | I126: 361.779 | J126: 422.0755 | K126: 956.04 | L126: 27.4 | Q126: 1767.2945 | R126: 9795.0055 | S126: 6.542373102
A127: 2015-04-25 | B127: 10363 | C127: 486 | E127: 9877 | I127: 310.89 | J127: 362.705 | K127: 716.72 | L127: 69.82 | Q127: 1460.135 | R127: 8416.865 | S127: 6.764443014
A128: 2015-04-26 | B128: 7378.32 | C128: 296 | E128: 7082.32 | I128: 221.3496 | J128: 258.2412 | K128: 752.42 | L128: 19.4 | Q128: 1251.4108 | R128: 5830.9092 | S128: 5.659468497
A129: 2015-04-27 | B129: 9735 | C129: 355 | E129: 9380 | I129: 292.05 | J129: 340.725 | K129: 892.67 | L129: 31.7 | Q129: 1557.145 | R129: 7822.855 | S129: 6.023844921
A130: 2015-04-28 | B130: 8422 | C130: 422.97 | E130: 7999.03 | I130: 252.66 | J130: 294.77 | K130: 1085.72 | L130: 38.66 | Q130: 1671.81 | R130: 6327.22 | S130: 4.784652562
A131: 2015-04-29 | B131: 11447 | C131: 541.08 | E131: 10905.92 | I131: 343.41 | J131: 400.645 | K131: 873.66 | L131: 18.2 | Q131: 1635.915 | R131: 9270.005 | S131: 6.666556637
A132: 2015-04-30 | B132: 10042 | C132: 1548.3 | E132: 8493.7 | I132: 301.26 | J132: 351.47 | K132: 743.94 | L132: 36 | Q132: 1432.67 | R132: 7061.03 | S132: 5.928580901
A133: 合计 | B133: =SUM(B102:B103:B132B132) ->  | C133: =SUM(C103:C132) -> 14416.29 | D133: =SUM(D105:D132) -> 0 | E133: =SUM(E103:E132) -> 280642.31 | F133: 0 | H133: =SUM(H103:H132) -> 0 | I133: =SUM(I103:I132) -> 8599.3809 | J133: =SUM(J105:J132) -> 9357.77605 | K133: =SUM(K103:K132) -> 29786.07 | L133: 996.24 | M133: 114.13 | N133: 0 | O133: 0 | P133: 0 | Q133: 49528.43195 | R133: 231113.878 | S133: =E133/Q133 -> 5.666286998
A134: 2015-05-01 | B134: 9145 | C134: 626 | E134: 8519 | F134: 0 | H134: 0 | I134: 274.35 | J134: 320.075 | K134: 623.75 | L134: 12.76 | M134: 0 | N134: 0 | O134: 0 | P134: 0 | Q134: 1230.935 | R134: 7288.065 | S134: 6.920755361
A135: 2015-05-02 | B135: 9571 | C135: 631.96 | E135: 8939.04 | I135: 287.13 | J135: 334.985 | K135: 674.56 | L135: 7.9 | Q135: 1304.575 | R135: 7634.465 | S135: 6.852070598
A136: 2015-05-03 | B136: 12510 | C136: 263 | E136: 12247 | I136: 375.3 | J136: 437.85 | K136: 703.58 | L136: 70.21 | Q136: 1586.94 | R136: 10660.06 | S136: 7.717368016
A137: 2015-05-04 | B137: 12638 | C137: 176.79 | E137: 12461.21 | I137: 379.14 | J137: 442.33 | K137: 754.84 | L137: 27.92 | Q137: 1604.23 | R137: 10856.98 | S137: 7.767720339
A138: 2015-05-05 | B138: 11254 | C138: 652 | E138: 10602 | I138: 337.62 | J138: 393.89 | K138: 826.58 | L138: 32.21 | Q138: 1590.3 | R138: 9011.7 | S138: 6.666666667
A139: 2015-05-06 | B139: 13429 | C139: 538 | E139: 12891 | I139: 402.87 | J139: 470.015 | K139: 752.05 | L139: 58.36 | Q139: 1683.295 | R139: 11207.705 | S139: 7.658194197
A140: 2015-05-07 | B140: 11219 | C140: 575.55 | E140: 10643.45 | I140: 336.57 | J140: 392.665 | K140: 594.6 | L140: 68.33 | Q140: 1392.165 | R140: 9251.285 | S140: 7.645250383
A141: 2015-05-08 | B141: 10699 | C141: 71.12 | E141: 10627.88 | I141: 320.97 | J141: 374.465 | K141: 608.67 | L141: 55.2 | Q141: 1359.305 | R141: 9268.575 | S141: 7.818613188
A142: 2015-05-09 | B142: 11779 | C142: 191 | D142: 1727 | E142: =B142-C142-D142 -> 9861 | I142: =B142*0.03 -> 353.37 | J142: =B142*0.035 -> 412.265 | K142: 551.85 | L142: 61.92 | Q142: =SUM(H142:P142) -> 1379.405 | R142: =E142-Q142 -> 8481.595 | S142: =E142/Q142 -> 7.148734418
A143: 2015-05-10 | B143: 12515 | C143: 137.41 | E143: 12377.59 | I143: 375.45 | J143: 438.025 | K143: 538.27 | L143: 15.35 | Q143: 1367.095 | R143: 11010.495 | S143: 9.053935535
A144: 2015-05-11 | B144: 12574 | C144: 14 | E144: 12560 | I144: 377.22 | J144: 440.09 | K144: 735.64 | L144: 17.75 | Q144: 1570.7 | R144: 10989.3 | S144: 7.996434711
A145: 2015-05-12 | B145: 17539 | C145: 439.84 | D145: 740 | E145: 16359.16 | I145: 526.17 | J145: 613.865 | K145: 713.11 | L145: 80.95 | Q145: 1934.095 | R145: 14461.065 | S145: 8.47691556
A146: 2015-05-13 | B146: 11955 | C146: 791.9 | E146: 11163.1 | I146: =B146*0.03 -> 358.65 | J146: =B146*0.035 -> 418.425 | K146: 748.48 | L146: 23.05 | Q146: =SUM(I146:P146) -> 1548.605 | R146: =E146-Q146 -> 9614.495 | S146: =E146/Q146 -> 7.208487639
A147: 2015-05-14 | B147: 14605 | C147: 369 | D147: 2129 | E147: 12107 | I147: 438.15 | J147: 511.175 | K147: 840.75 | L147: 9.9 | Q147: 1799.975 | R147: =E147-Q147 -> 10307.025 | S147: =E147/Q147 -> 6.726204531
A148: 2015-05-15 | B148: 12942 | C148: 71 | E148: 12871 | I148: 388.26 | J148: 452.97 | K148: 703.04 | L148: 37.65 | Q148: 1581.92 | R148: 11289.08 | S148: 8.136315364
A149: 2015-05-16 | B149: 10227 | C149: 162 | E149: 10065 | I149: 306.81 | J149: 357.945 | K149: 755.3 | L149: 76.09 | Q149: 1496.145 | R149: 8568.855 | S149: 6.727289133
A150: 2015-05-17 | B150: 13414 | C150: 308 | E150: 13106 | I150: 402.42 | J150: 469.49 | K150: 809.33 | L150: 57.33 | Q150: 1738.57 | R150: 11367.43 | S150: 7.538379243
A151: 2015-05-18 | B151: 13639 | C151: 415 | E151: 13224 | I151: 409.17 | J151: 477.365 | K151: 782.22 | L151: 75.69 | Q151: 1744.445 | R151: 11479.555 | S151: 7.580634528
A152: 2015-05-19 | B152: 13815 | C152: 574.32 | D152: 468 | E152: 12772.68 | I152: 414.45 | J152: 483.525 | K152: 719.13 | L152: 64.69 | Q152: 1681.795 | R152: 11090.885 | S152: 7.59467117
A153: 2015-05-20 | B153: 12068 | C153: 622.18 | E153: 11445.82 | I153: 362.04 | J153: 422.38 | K153: 661.45 | L153: 59 | Q153: 1504.87 | R153: 9940.95 | S153: 7.605852997
A154: 2015-05-21 | B154: 13083 | C154: 417.04 | D154: 468 | E154: 12197.96 | I154: 392.49 | J154: 457.905 | K154: 830.53 | L154: 48.31 | Q154: 1729.235 | R154: 10468.725 | S154: 7.053963169
A155: 2015-05-22 | B155: 12979 | C155: 657 | E155: =B155-C155-D155 -> 12322 | I155: =E155*0.03 -> 369.66 | J155: =E155*0.035 -> 431.27 | K155: 722.28 | L155: 83.15 | Q155: =SUM(I155:P155) -> 1606.36 | R155: =E155-Q155 -> 10715.64 | S155: =E155/Q155 -> 7.670758734
A156: 2015-05-23 | B156: 11267 | C156: 802 | E156: 10465 | I156: 338.01 | J156: 394.345 | K156: 745.29 | L156: 36.5 | Q156: 1514.145 | R156: 8950.855 | S156: 6.911491304
A157: 2015-05-24 | B157: 12100 | C157: 536.24 | E157: 11563.76 | I157: 363 | J157: 423.5 | K157: 1183.78 | L157: 34.72 | Q157: 2005 | R157: 9558.76 | S157: 5.767461347
A158: 2015-05-25 | B158: 18353 | C158: 1595.52 | E158: 16757.48 | I158: 550.59 | J158: 642.355 | K158: 921.46 | L158: 71.37 | Q158: 2185.775 | R158: 14571.705 | S158: 7.666607954
A159: 2015-05-26 | B159: 16591 | C159: 620 | E159: 15971 | I159: 497.73 | J159: 580.685 | K159: 960.49 | L159: 37.95 | Q159: 2076.855 | R159: 13894.145 | S159: 7.689992802
A160: 2015-05-27 | B160: 11601 | C160: 485 | E160: =B160-C160 -> 11116 | I160: =E160*0.03 -> 333.48 | J160: =E160*0.035 -> 389.06 | K160: 939.29 | L160: 84.85 | Q160: =SUM(H160:P160) -> 1746.68 | R160: =E160-Q160 -> 9369.32 | S160: =E160/Q160 -> 6.364073557
A161: 2015-05-28 | B161: 15121 | C161: 474 | E161: 14647 | I161: 453.63 | J161: 529.235 | K161: 1146.88 | L161: 78.76 | Q161: 2208.505 | R161: 12438.495 | S161: =E161/Q161 -> 6.632088223
A162: 2015-05-29 | B162: 11717 | C162: 231 | E162: =B162-C162-D162 -> 11486 | I162: =B162*0.03 -> 351.51 | J162: =E162*0.035 -> 402.01 | K162: 988.76 | L162: 68.45 | Q162: =SUM(H162:P162) -> 1810.73 | R162: =E162-Q162 -> 9675.27 | S162: 6.343298007
A163: 2015-05-30 | B163: 14589 | C163: 959 | E163: 13630 | I163: 437.67 | J163: 477.05 | K163: 1026.42 | L163: 86.61 | Q163: 2027.75 | R163: =E163-Q163 -> 11602.25 | S163: 6.721735914
A164: 2015-05-31 | B164: 16068 | C164: 386 | E164: 15682 | I164: 482.04 | J164: 548.87 | K164: 1150.2 | L164: 59.9 | Q164: 2241.01 | R164: 13440.99 | S164: 6.997737627
A165: 合计 | B165: =SUM(B134:B164) -> 401006 | C165: =SUM(C134:C164) -> 14792.87 | D165: =SUM(D134:D164) -> 5532 | E165: =SUM(E134:E164) -> 380681.13 | F165: 0 | H165: =SUM(H134:H164) -> 0 | I165: 11995.92 | J165: 13940.08 | K165: 24712.58 | L165: 1602.83 | M165: 0 | N165: 0 | O165: 0 | P165: 0 | Q165: 52251.41 | R165: =E165/P165 ->  | S165: 7.285566648
A166: 2015-06-01 | B166: 12902 | C166: 466 | E166: 12436 | F166: 0 | H166: 0 | I166: 387.06 | J166: 451.57 | K166: 1158.93 | L166: 31.78 | M166: 0 | N166: 0 | O166: 0 | P166: 0 | Q166: 2029.34 | R166: 10406.66 | S166: 6.128100762
A167: 2015-06-02 | B167: 16527 | C167: 587 | E167: =B167-C167-D167 -> 15940 | I167: =B167*0.03 -> 495.81 | J167: =E167*0.035 -> 557.9 | K167: 1064.04 | L167: 24.86 | Q167: =SUM(H167:P167) -> 2142.61 | R167: =E167-Q167 -> 13797.39 | S167: =E167/Q167 -> 7.439524692
A168: 2015-06-03 | B168: 13202 | C168: 862.66 | E168: 12339.34 | I168: 396.06 | J168: 462.07 | K168: 1200.8 | L168: 47.98 | Q168: 2106.91 | R168: 10232.43 | S168: 5.856605171
A169: 2015-06-04 | B169: 16246 | C169: 572 | E169: =B169-C169-D169 -> 15674 | I169: =B169*0.03 -> 487.38 | J169: =E169*0.035 -> 548.59 | K169: 1310.35 | L169: 8.95 | Q169: =SUM(H169:P169) -> 2355.27 | R169: =E169-Q169 -> 13318.73 | S169: =E169/Q169 -> 6.654863349
A170: 2015-06-05 | B170: 14400 | C170: 1170.79 | E170: 13229.21 | I170: =B170*0.03 -> 432 | J170: =E170*0.035 -> 463.02235 | K170: 1503.3 | L170: 74.41 | Q170: =SUM(H170:P170) -> 2472.73235 | R170: =E170-Q170 -> 10756.47765 | S170: =E170/Q170 -> 5.350037176
A171: 2015-06-06 | B171: 14517 | C171: 317 | E171: 14200 | I171: =B171*0.03 -> 435.51 | J171: =E171*0.035 -> 497 | K171: 1546.18 | L171: 30.52 | Q171: =SUM(H171:P171) -> 2509.21 | R171: =E171-Q171 -> 11690.79 | S171: =E171/Q171 -> 5.659151685
A172: 2015-06-07 | B172: 16959 | C172: 383 | E172: 16576 | I172: 508.77 | J172: 580.16 | K172: 1870.09 | L172: 21.75 | Q172: 2980.77 | R172: 13595.23 | S172: 5.56097921
A173: 2015-06-08 | B173: 21641 | C173: 755.81 | E173: 20885.19 | I173: 649.23 | J173: 730.98165 | K173: 1765.24 | L173: 56.9 | Q173: 3202.35165 | R173: 17682.83835 | S173: 6.521829044
A174: 2015-06-09 | B174: 22442 | C174: 1016.38 | E174: 21425.62 | I174: 673.26 | J174: 749.8967 | K174: 2323.49 | L174: 67.35 | Q174: 3813.9967 | R174: 17611.6233 | S174: 5.617629402
A175: 2015-06-10 | B175: 19463 | C175: 965.14 | E175: 18497.86 | I175: 583.89 | J175: 647.4251 | K175: 3137.3 | L175: 21.3 | Q175: 4389.9151 | R175: 14107.9449 | S175: 4.213717026
A176: 2015-06-11 | B176: 20267 | C176: 2147.21 | E176: 18119.79 | I176: 608.01 | J176: 634.19265 | K176: 2918.14 | L176: 115.82 | Q176: 4276.16265 | R176: 13843.62735 | S176: 4.237394946
A177: 2015-06-12 | B177: 11451 | C177: 1554.55 | E177: 9896.45 | I177: 343.53 | J177: 346.37575 | K177: 2581.92 | L177: 86.86 | Q177: 3358.68575 | R177: 6537.76425 | S177: 2.946524545
A178: 2015-06-13 | B178: 15446 | C178: 787.63 | E178: 14658.37 | I178: 463.38 | J178: 513.04295 | K178: 2548.81 | L178: 80.96 | Q178: 3606.19295 | R178: 11052.17705 | S178: 4.064776955
A179: 2015-06-14 | B179: 12607 | C179: 741 | E179: 11866 | I179: 378.21 | J179: 415.31 | K179: 2499.78 | L179: 20.05 | Q179: 3313.35 | R179: 8552.65 | S179: 3.581269712
A180: 2015-06-15 | B180: 14502 | C180: 2082.08 | E180: 12419.92 | I180: 435.06 | J180: 434.6972 | K180: 2834.49 | L180: 70.3 | Q180: 3774.5472 | R180: 8645.3728 | S180: 3.290439712
A181: 2015-06-16 | B181: 11530 | C181: 122 | E181: 11408 | I181: 345.9 | J181: 399.28 | K181: 2581.7 | L181: 173.57 | Q181: 3500.45 | R181: 7907.55 | S181: 3.259009556
A182: 2015-06-17 | B182: 10788 | C182: 486 | E182: 10302 | I182: 323.64 | J182: 360.57 | K182: 2518.89 | L182: 101.88 | Q182: 3304.98 | R182: 6997.02 | S182: 3.117114173
A183: 2015-06-18 | B183: 93353.9 | C183: 3951.4 | E183: 89402.5 | I183: 2800.617 | J183: 3129.0875 | K183: 2832.38 | L183: 34.88 | Q183: 8796.9645 | R183: 80605.5355 | S183: 10.16288062
A184: 2015-06-19 | B184: 12371.6 | C184: 649.58 | E184: 11722.02 | I184: 371.148 | J184: 410.2707 | K184: 2453.06 | L184: 65.89 | Q184: 3300.3687 | R184: 8421.6513 | S184: 3.551730448
A185: 2015-06-20 | B185: 12232 | C185: 1400.2 | E185: =B185-C185-D185 -> 10831.8 | I185: =B185*0.03 -> 366.96 | J185: =E185*0.035 -> 379.113 | K185: 2275.79 | L185: 54.16 | Q185: 3076.023 | R185: =E185-Q185 -> 7755.777 | S185: 3.521365087
A186: 2015-06-21 | B186: 14440 | C186: 1769.5 | E186: 12670.5 | I186: 433.2 | J186: 443.4675 | K186: 2329.77 | L186: 50.25 | Q186: 3256.6875 | R186: 9413.8125 | S186: =E186/Q186 -> 3.890609707
A187: 2015-06-22 | B187: 13998 | C187: 824 | E187: 13174 | I187: 419.94 | J187: 461.09 | K187: 2191.78 | L187: 42.24 | Q187: 3115.05 | R187: 10058.95 | S187: 4.2291456
A188: 2015-06-23 | B188: 11387 | C188: 310.58 | E188: 11076.42 | I188: 341.61 | J188: 387.6747 | K188: 1979.29 | L188: 140.98 | Q188: 2849.5547 | R188: 8226.8653 | S188: 3.887070496
A189: 2015-06-24 | B189: 12100 | C189: 782.72 | E189: 11317.28 | I189: 363 | J189: 396.1048 | K189: 834.01 | L189: 147.59 | Q189: 1740.7048 | R189: 9576.5752 | S189: 6.501550406
A190: 2015-06-25 | B190: 11232 | C190: 534 | E190: 10698 | I190: 336.96 | J190: 374.43 | K190: 2198.24 | L190: 109.31 | Q190: 3018.94 | R190: 7679.06 | S190: 3.543627896
A191: 2015-06-26 | B191: 47940.1 | C191: 1188.58 | E191: 46751.52 | I191: 1438.203 | J191: 1636.3032 | K191: 2080.11 | L191: 48.47 | Q191: 5203.0862 | R191: 41548.4338 | S191: 8.985344121
A192: 2015-06-27 | B192: 34898.4 | C192: 1836.98 | E192: 33061.42 | I192: 1046.952 | J192: 1157.1497 | K192: 2116.26 | L192: 67.15 | Q192: 4387.5117 | R192: 28673.9083 | S192: 7.535346288
A193: 2015-06-28 | B193: 32908.2 | C193: 1985.85 | E193: 30922.35 | I193: 987.246 | J193: 1082.28225 | K193: 2150.83 | L193: 162.54 | Q193: 4382.89825 | R193: 26539.45175 | S193: 7.055228809
A194: 2015-06-29 | B194: 28101.2 | C194: 1178.52 | E194: 26922.68 | I194: 843.036 | J194: 942.2938 | K194: 2182.68 | L194: 142.7 | Q194: 4110.7098 | R194: 22811.9702 | S194: 6.549399328
A195: 2015-06-30 | B195: 21594.7 | C195: 1571.4 | E195: 20023.3 | I195: 647.841 | J195: 700.8155 | K195: 2092.45 | L195: 32.28 | Q195: 3473.3865 | R195: 16549.9135 | S195: 5.764777401
A196: 合计 | B196: =SUM(B166:B195) -> 611447.1 | C196: =SUM(C166:C195) -> 32999.56 | D196: =SUM(D166:D195) -> 0 | E196: =SUM(E166:E195) -> 578447.54 | F196: 0 | H196: =SUM(H166:H195) -> 0 | I196: 18343.413 | J196: 20292.167 | K196: 63080.1 | L196: 2133.68 | M196: 0 | N196: 0 | O196: 0 | P196: 0 | Q196: 103849.36 | R196: 474598.18 | S196: 5.5700636
A197: 2015-07-01 | B197: 20562 | C197: 3340.17 | E197: =B197-C197-D197 -> 17221.83 | I197: =B197*0.03 -> 616.86 | J197: =B197*0.035 -> 719.67 | K197: 1958.62 | L197: 107.8 | Q197: =SUM(H197:P197) -> 3402.95 | R197: =E197-Q197 -> 13818.88 | S197: =E197/Q197 -> 5.060853083
A198: 2015-07-02 | B198: 28691 | C198: 1998.62 | E198: =B198-C198-D198 -> 26692.38 | I198: =B198*0.03 -> 860.73 | J198: =B198*0.035 -> 1004.185 | K198: 1745.6 | L198: 54.54 | Q198: 3665.055 | R198: 23027.325 | S198: 7.282941184
A199: 2015-07-03 | B199: 23870 | C199: 1276.11 | E199: 22593.89 | I199: 716.1 | J199: 835.45 | K199: 1670.89 | L199: 58.46 | Q199: 3280.9 | R199: 19312.99 | S199: 6.886491511
A200: 2015-07-04 | B200: 22938 | C200: 1637.42 | E200: 21300.58 | I200: 688.14 | J200: 802.83 | K200: 1897.94 | L200: 150.87 | Q200: 3539.78 | R200: 17760.8 | S200: 6.017486962
... 218 more rows

Sheet 京东
A1: 2015年【京东】销售数据表
A2: 销售收入部分 | H2: 其他支出部分 | K2: 推广支出 | N2: 活动支出部分 | R2: 月成果 | T2: 利润 | U2: 提点
A3: 店铺ID | B3: A支付宝成交款 | C3: B退款总金额 | D3: C刷单金额 | E3: D有效销售额 | F3: E月初目标设定 | G3: F目标达成比例=D/E | H3: 刷单支出（佣金快递） | I3: 平台扣点支出6% | J3: 税点支出（3.5%） | K3: 直通车(京东所有推广) | L3: 淘宝客 | M3: 钻展/广告费 | N3: 淘金币 （积分支出） | O3: 聚划算费用 | P3: 促销费用 | Q3: J花费支出总计 | R3: K净销售额=E-I-J | S3: L投入产出比=J/D | T3: 0.25 | U3: 0
A4: 11月 | B4: 39400.25 | C4: 0 | D4: 0 | E4: =B4-D4 -> 39400.25 | F4: 0 | G4: =E4/F4 ->  | H4: 0 | I4: 2364 | J4: 1379 | K4: 2151 | L4: 0 | M4: 0 | N4: 0 | O4: 0 | P4: 2041 | Q4: =H4+I4+J4+K4+L4+M4+N4+O4+P4 -> 7935 | R4: =E4-Q4 -> 31465.25 | S4: =E4/Q4 -> 4.965374921 | T4: =E4*0.25-Q4 -> 1915.0625 | U4: 0
A5: 12月 | B5: 45507 | C5: 0 | D5: 5809 | E5: =B5-D5 -> 39698 | F5: 45000 | G5: 0.8821777778 | H5: 102 | I5: 2730 | J5: 1592 | K5: 1114 | L5: 0 | M5: 0 | N5: 0 | O5: 0 | P5: 2808 | Q5: =SUM(H5:P5) -> 8346 | R5: 31352 | S5: =E5/Q5 -> 4.756530074 | T5: =E5*0.25-Q5 -> 1578.5 | U5: 0
A8: 销售收入部分 | H8: 其他支出部分 | K8: 推广支出 | N8: 活动支出部分 | R8: 月成果
A9: 店铺ID | B9: A支付宝成交款 | C9: B退款总金额 | D9: C刷单金额 | E9: D有效销售额 | F9: E月初目标设定 | G9: F目标达成比例=D/E | H9: 刷单支出（佣金快递） | I9: 平台扣点支出 | J9: 税点支出（3.5%） | K9: 直通车(京东所有推广) | L9: 淘宝客 | M9: 钻展/广告费 | N9: 淘金币 （积分支出） | O9: 聚划算费用 | P9: 促销费用 | Q9: J花费支出总计 | R9: K净销售额=E-I-J | S9: L投入产出比=J/D
A10: 2015-01-01 | B10: 858 | C10: 0 | D10: 0 | E10: =B10-D10 -> 858 | F10: 0 | G10: =E10/F10 ->  | H10: 0 | I10: =B10*0.06 -> 51.48 | J10: =B10*0.035 -> 30.03 | K10: 46.3714 | L10: 0 | M10: 0 | N10: 0 | O10: 0 | P10: 0 | Q10: =SUM(H10:P10) -> 127.8814 | R10: =E10-Q10 -> 730.1186 | S10: =E10/Q10 -> 6.709341624
A11: 2015-01-02 | B11: 561 | C11: 0 | D11: 0 | E11: =B11-D11 -> 561 | H11: 0 | I11: =B11*0.06 -> 33.66 | J11: =B11*0.035 -> 19.635 | K11: 24.2579 | L11: 0 | M11: 0 | N11: 0 | O11: 0 | Q11: =SUM(H11:P11) -> 77.5529 | R11: =E11-Q11 -> 483.4471 | S11: 7.233772045
A12: 2015-01-03 | B12: 1055 | C12: 0 | D12: 0 | E12: 1055 | H12: 0 | I12: 63.3 | J12: 36.925 | K12: 74.254 | L12: 0 | M12: 0 | N12: 0 | O12: 0 | Q12: 174.479 | R12: 880.521 | S12: 6.04657294
A13: 2015-01-04 | B13: 765 | C13: 0 | D13: 0 | E13: 765 | H13: 0 | I13: 45.9 | J13: 26.775 | K13: 62.5621 | L13: 0 | M13: 0 | N13: 0 | O13: 0 | Q13: 135.2371 | R13: 629.7629 | S13: 5.65673177
A14: 2015-01-05 | B14: 1249 | C14: 0 | D14: 0 | E14: 1249 | H14: 0 | I14: 74.94 | J14: 43.715 | K14: 47.4867 | L14: 0 | M14: 0 | N14: 0 | O14: 0 | Q14: 166.1417 | R14: 1082.8583 | S14: 7.517679186
A15: 2015-01-06 | B15: 575 | C15: 0 | D15: 0 | E15: 575 | H15: 0 | I15: 34.5 | J15: 20.125 | K15: 52.1264 | L15: 0 | M15: 0 | N15: 0 | O15: 0 | Q15: 106.7514 | R15: 468.2486 | S15: 5.386346221
A16: 2015-01-07 | B16: 556 | C16: 0 | D16: 0 | E16: 556 | H16: 0 | I16: 33.36 | J16: 19.46 | K16: 28.7673 | L16: 0 | M16: 0 | N16: 0 | O16: 0 | Q16: 81.5873 | R16: 474.4127 | S16: 6.814786125
A17: 2015-01-08 | B17: 932 | C17: 0 | D17: 0 | E17: 932 | H17: 0 | I17: 55.92 | J17: 32.62 | K17: 52.2817 | L17: 0 | M17: 0 | N17: 0 | O17: 0 | Q17: 140.8217 | R17: 791.1783 | S17: 6.618298174
A18: 2015-01-09 | B18: 302 | C18: 0 | D18: 0 | E18: 302 | H18: 0 | I18: 18.12 | J18: 10.57 | K18: 12.9032 | L18: 0 | M18: 0 | N18: 0 | O18: 0 | Q18: 41.5932 | R18: 260.4068 | S18: 7.260802247
A19: 2015-01-10 | B19: 990 | C19: 0 | D19: 0 | E19: 990 | H19: 0 | I19: 59.4 | J19: 34.65 | K19: 19.4733 | L19: 0 | M19: 0 | N19: 0 | O19: 0 | Q19: 113.5233 | R19: 876.4767 | S19: 8.720676725
A20: 2015-01-11 | B20: 278 | C20: 0 | D20: 0 | E20: 278 | H20: 0 | I20: 16.68 | J20: 9.73 | K20: 19.11 | L20: 0 | M20: 0 | N20: 0 | O20: 0 | Q20: 45.52 | R20: 232.48 | S20: 6.107205624
A21: 2015-01-12 | B21: 1287 | C21: 0 | D21: 0 | E21: 1287 | H21: 0 | I21: 77.22 | J21: 45.045 | K21: 40.8639 | L21: 0 | M21: 0 | N21: 0 | O21: 0 | Q21: 163.1289 | R21: 1123.8711 | S21: 7.889466551
A22: 2015-01-13 | B22: 1906 | C22: 0 | D22: 0 | E22: 1906 | H22: 0 | I22: 114.36 | J22: 66.71 | K22: 35.1118 | L22: 0 | M22: 0 | N22: 0 | O22: 0 | Q22: 216.1818 | R22: 1689.8182 | S22: 8.816653391
A23: 2015-01-14 | B23: 1239 | C23: 0 | D23: 0 | E23: 1239 | H23: 0 | I23: 74.34 | J23: 43.365 | K23: 53.944 | L23: 0 | M23: 0 | N23: 0 | O23: 0 | Q23: 171.649 | R23: 1067.351 | S23: 7.218218574
A24: 2015-01-15 | B24: 516 | C24: 0 | D24: 0 | E24: 516 | H24: 0 | I24: 30.96 | J24: 18.06 | K24: 33.8288 | L24: 0 | M24: 0 | N24: 0 | O24: 0 | Q24: 82.8488 | R24: 433.1512 | S24: 6.228213324
A25: 2015-01-16 | B25: 1902 | C25: 0 | D25: 1360 | E25: 542 | H25: 30 | I25: 114.12 | J25: 66.57 | K25: 40.0008 | L25: 0 | M25: 0 | N25: 0 | O25: 0 | Q25: 250.6908 | R25: 291.3092 | S25: 2.16202589
A26: 2015-01-17 | B26: 276 | C26: 0 | D26: 0 | E26: 276 | H26: 0 | I26: 16.56 | J26: 9.66 | K26: 8.5829 | L26: 0 | M26: 0 | N26: 0 | O26: 0 | Q26: 34.8029 | R26: 241.1971 | S26: 7.930373618
A27: 2015-01-18 | B27: 1044 | C27: 0 | D27: 0 | E27: 1044 | H27: 0 | I27: 62.64 | J27: 36.54 | K27: 11.8018 | L27: 0 | M27: 0 | N27: 0 | O27: 0 | Q27: 110.9818 | R27: 933.0182 | S27: 9.406947806
A28: 2015-01-19 | B28: 2133 | C28: 0 | D28: 1768 | E28: 365 | H28: 39 | I28: 127.98 | J28: 74.655 | K28: 48.9765 | L28: 0 | M28: 0 | N28: 0 | O28: 0 | Q28: 290.6115 | R28: 74.3885 | S28: 1.25597232
A29: 2015-01-20 | B29: 2146 | C29: 0 | D29: 0 | E29: 2146 | H29: 0 | I29: 128.76 | J29: 75.11 | K29: 26.5277 | L29: 0 | M29: 0 | N29: 0 | O29: 0 | Q29: 230.3977 | R29: 1915.6023 | S29: 9.314329093
A30: 2015-01-21 | B30: 3221 | C30: 0 | D30: 2040 | E30: 1181 | H30: 45 | I30: 193.26 | J30: 112.735 | K30: 24.2049 | L30: 0 | M30: 0 | N30: 0 | O30: 0 | Q30: 375.1999 | R30: 805.8001 | S30: 3.147655423
A31: 2015-01-22 | B31: 1735 | C31: 0 | D31: 0 | E31: 1735 | H31: 0 | I31: 104.1 | J31: 60.725 | K31: 37.5249 | L31: 0 | M31: 0 | N31: 0 | O31: 0 | Q31: 202.3499 | R31: 1532.6501 | S31: 8.57425677
A32: 2015-01-23 | B32: 5041 | C32: 0 | D32: 3930 | E32: 1111 | H32: 45 | I32: 302.46 | J32: 176.435 | K32: 27.1896 | L32: 0 | M32: 0 | N32: 0 | O32: 0 | Q32: 551.0846 | R32: 559.9154 | S32: 2.0160244
A33: 2015-01-24 | B33: 6584 | C33: 0 | D33: 6300 | E33: 284 | H33: 30 | I33: 395.04 | J33: 230.44 | K33: 4.9804 | L33: 0 | M33: 0 | N33: 0 | O33: 0 | Q33: 660.4604 | R33: -376.4604 | S33: 0.4300030706
A34: 2015-01-25 | B34: 1607 | C34: 0 | D34: 0 | E34: 1607 | H34: 0 | I34: 96.42 | J34: 56.245 | K34: 0 | L34: 0 | M34: 0 | N34: 0 | O34: 0 | Q34: 152.665 | R34: 1454.335 | S34: 10.52631579
A35: 2015-01-26 | B35: 936 | C35: 0 | D35: 0 | E35: 936 | H35: 0 | I35: 56.16 | J35: 32.76 | K35: 0 | L35: 0 | M35: 0 | N35: 0 | O35: 0 | Q35: 88.92 | R35: 847.08 | S35: 10.52631579
A36: 2015-01-27 | B36: 3395 | C36: 0 | D36: 2620 | E36: 775 | H36: 30 | I36: 203.7 | J36: 118.825 | K36: 0 | L36: 0 | M36: 0 | N36: 0 | O36: 0 | Q36: 352.525 | R36: 422.475 | S36: 2.198425644
A37: 2015-01-28 | B37: 6217 | C37: 0 | D37: 0 | E37: 6217 | H37: 0 | I37: 373.02 | J37: 217.595 | K37: 0.4 | L37: 0 | M37: 0 | N37: 0 | O37: 0 | Q37: 591.015 | R37: 5625.985 | S37: 10.51919156
A38: 2015-01-29 | B38: 999 | C38: 0 | D38: 0 | E38: 999 | H38: 0 | I38: 59.94 | J38: 34.965 | K38: 0 | L38: 0 | M38: 0 | N38: 0 | O38: 0 | Q38: 94.905 | R38: 904.095 | S38: 10.52631579
A39: 2015-01-30 | B39: 610 | C39: 0 | D39: 0 | E39: 610 | H39: 0 | I39: 36.6 | J39: 21.35 | K39: 0 | L39: 0 | M39: 0 | N39: 0 | O39: 0 | Q39: 57.95 | R39: 552.05 | S39: 10.52631579
A40: 2015-01-31 | B40: 124 | C40: 0 | D40: 0 | E40: 124 | H40: 0 | I40: 7.44 | J40: 4.34 | K40: 21.9573 | L40: 0 | M40: 0 | N40: 0 | O40: 0 | P40: 754 | Q40: 787.7373 | R40: -663.7373 | S40: 0.1574128837
A41: 1月合计 | B41: =SUM(B10:B40) -> 51039 | C41: =SUM(C10:C40) -> 0 | D41: 18018 | E41: 33021 | F41: 75000 | H41: =SUM(H10:H40) -> 219 | I41: 3062.34 | J41: 1786.365 | K41: =SUM(K10:K40) -> 855.4893 | L41: 0 | M41: 0 | N41: 0 | O41: 0 | P41: 754 | Q41: 6677.1943 | R41: 26343.8057 | S41: 4.94534059 | T41: =E41*0.25-Q41 -> 1578.0557
A42: 2015-02-01 | B42: 1592 | C42: 0 | D42: 0 | E42: =B42-D42 -> 1592 | F42: 0 | G42: =E42/F42 ->  | H42: 0 | I42: 95.52 | J42: 55.72 | K42: 23.9492 | L42: 0 | M42: 0 | N42: 0 | O42: 0 | Q42: =SUM(H42:P42) -> 175.1892 | R42: 1416.8108 | S42: 9.087318168
A43: 2015-02-02 | B43: 692 | C43: 0 | D43: 0 | E43: =B43-D43 -> 692 | H43: 0 | I43: 41.52 | J43: 24.22 | K43: 30.4924 | L43: 0 | M43: 0 | N43: 0 | O43: 0 | Q43: 96.2324 | R43: 595.7676 | S43: 7.190925302
A44: 2015-02-03 | B44: 1276 | C44: 0 | D44: 0 | E44: 1276 | H44: 0 | I44: 76.56 | J44: 44.66 | K44: 20.7621 | L44: 0 | M44: 0 | N44: 0 | O44: 0 | Q44: 141.9821 | R44: 1134.0179 | S44: 8.987048367
A45: 2015-02-04 | B45: 1345 | C45: 0 | D45: 0 | E45: 1345 | H45: 0 | I45: 80.7 | J45: 47.075 | K45: 20.515 | L45: 0 | M45: 0 | N45: 0 | O45: 0 | Q45: 148.29 | R45: 1196.71 | S45: 9.070065412
A46: 2015-02-05 | B46: 1143 | C46: 0 | D46: 0 | E46: 1143 | H46: 0 | I46: 68.58 | J46: 40.005 | K46: 28.3725 | L46: 0 | M46: 0 | N46: 0 | O46: 0 | Q46: 136.9575 | R46: 1006.0425 | S46: 8.345654674
A47: 2015-02-06 | B47: 226 | C47: 0 | D47: 0 | E47: 226 | H47: 0 | I47: 13.56 | J47: 7.91 | K47: 34.4181 | L47: 0 | M47: 0 | N47: 0 | O47: 0 | Q47: 55.8881 | R47: 170.1119 | S47: 4.043794654
A48: 2015-02-07 | B48: 677 | C48: 0 | D48: 0 | E48: 677 | H48: 0 | I48: 40.62 | J48: 23.695 | K48: 17.6128 | L48: 0 | M48: 0 | N48: 0 | O48: 0 | Q48: 81.9278 | R48: 595.0722 | S48: 8.26337336
A49: 2015-02-08 | B49: 1155 | C49: 0 | D49: 0 | E49: 1155 | H49: 0 | I49: 69.3 | J49: 40.425 | K49: 21.8407 | L49: 0 | M49: 0 | N49: 0 | O49: 0 | Q49: 131.5657 | R49: 1023.4343 | S49: 8.778883858
A50: 2015-02-09 | B50: 379 | C50: 0 | D50: 0 | E50: 379 | H50: 0 | I50: 22.74 | J50: 13.265 | K50: 15.4049 | L50: 0 | M50: 0 | N50: 0 | O50: 0 | Q50: 51.4099 | R50: 327.5901 | S50: 7.372120934
A51: 2015-02-10 | B51: 680 | C51: 0 | D51: 0 | E51: 680 | H51: 0 | I51: 40.8 | J51: 23.8 | K51: 31.9298 | L51: 0 | M51: 0 | N51: 0 | O51: 0 | Q51: 96.5298 | R51: 583.4702 | S51: 7.044456738
A52: 2015-02-11 | B52: 554 | C52: 0 | D52: 0 | E52: 554 | H52: 0 | I52: 33.24 | J52: 19.39 | K52: 37.6923 | L52: 0 | M52: 0 | N52: 0 | O52: 0 | Q52: 90.3223 | R52: 463.6777 | S52: 6.133590487
A53: 2015-02-12 | B53: 55 | C53: 0 | D53: 0 | E53: 55 | H53: 0 | I53: 3.3 | J53: 1.925 | K53: 29.1215 | L53: 0 | M53: 0 | N53: 0 | O53: 0 | Q53: 34.3465 | R53: 20.6535 | S53: 1.601327646
A54: 2015-02-13 | B54: 198 | C54: 0 | D54: 0 | E54: 198 | H54: 0 | I54: 11.88 | J54: 6.93 | K54: 28.9086 | L54: 0 | M54: 0 | N54: 0 | O54: 0 | Q54: 47.7186 | R54: 150.2814 | S54: 4.14932542
A55: 2015-02-14 | B55: 638 | C55: 0 | D55: 0 | E55: 638 | H55: 0 | I55: 38.28 | J55: 22.33 | K55: 19.0672 | L55: 0 | M55: 0 | N55: 0 | O55: 0 | Q55: 79.6772 | R55: 558.3228 | S55: 8.007309494
A56: 2015-02-15 | B56: 206 | C56: 0 | D56: 0 | E56: 206 | H56: 0 | I56: 12.36 | J56: 7.21 | K56: 32.2281 | L56: 0 | M56: 0 | N56: 0 | O56: 0 | Q56: 51.7981 | R56: 154.2019 | S56: 3.976979851
A57: 2015-02-16 | B57: 0 | C57: 0 | D57: 0 | E57: 0 | H57: 0 | I57: 0 | J57: 0 | K57: 23.7924 | L57: 0 | M57: 0 | N57: 0 | O57: 0 | Q57: 23.7924 | R57: -23.7924 | S57: 0
A58: 2015-02-17 | B58: 0 | C58: 0 | D58: 0 | E58: 0 | H58: 0 | I58: 0 | J58: 0 | K58: 16.8295 | L58: 0 | M58: 0 | N58: 0 | O58: 0 | Q58: 16.8295 | R58: -16.8295 | S58: 0
A59: 2015-02-18 | B59: 0 | C59: 0 | D59: 0 | E59: 0 | H59: 0 | I59: 0 | J59: 0 | K59: 6.1999 | L59: 0 | M59: 0 | N59: 0 | O59: 0 | Q59: 6.1999 | R59: -6.1999 | S59: 0
A60: 2015-02-19 | B60: 0 | C60: 0 | D60: 0 | E60: 0 | H60: 0 | I60: 0 | J60: 0 | K60: 8.8012 | L60: 0 | M60: 0 | N60: 0 | O60: 0 | Q60: 8.8012 | R60: -8.8012 | S60: 0
A61: 2015-02-20 | B61: 527 | C61: 0 | D61: 0 | E61: 527 | H61: 0 | I61: 31.62 | J61: 18.445 | K61: 11.1905 | L61: 0 | M61: 0 | N61: 0 | O61: 0 | Q61: 61.2555 | R61: 465.7445 | S61: 8.603309091
A62: 2015-02-21 | B62: 670 | C62: 0 | D62: 0 | E62: 670 | H62: 0 | I62: 40.2 | J62: 23.45 | K62: 9.8839 | L62: 0 | M62: 0 | N62: 0 | O62: 0 | Q62: 73.5339 | R62: 596.4661 | S62: 9.111443837
A63: 2015-02-22 | B63: 517 | C63: 0 | D63: 0 | E63: 517 | H63: 0 | I63: 31.02 | J63: 18.095 | K63: 13.6105 | L63: 0 | M63: 0 | N63: 0 | O63: 0 | Q63: 62.7255 | R63: 454.2745 | S63: 8.242261919
A64: 2015-02-23 | B64: 631 | C64: 0 | D64: 0 | E64: 631 | H64: 0 | I64: 37.86 | J64: 22.085 | K64: 12.4975 | L64: 0 | M64: 0 | N64: 0 | O64: 0 | Q64: 72.4425 | R64: 558.5575 | S64: 8.71035649
A65: 2015-02-24 | B65: 915 | C65: 0 | D65: 0 | E65: 915 | H65: 0 | I65: 54.9 | J65: 32.025 | K65: 16.4921 | L65: 0 | M65: 0 | N65: 0 | O65: 0 | Q65: 103.4171 | R65: 811.5829 | S65: 8.847666392
A66: 2015-02-25 | B66: 1175 | C66: 0 | D66: 0 | E66: 1175 | H66: 0 | I66: 70.5 | J66: 41.125 | K66: 28.0678 | L66: 0 | M66: 0 | N66: 0 | O66: 0 | Q66: 139.6928 | R66: 1035.3072 | S66: 8.411313969
A67: 2015-02-26 | B67: 1276 | C67: 0 | D67: 0 | E67: 1276 | H67: 0 | I67: 76.56 | J67: 44.66 | K67: 22.6614 | L67: 0 | M67: 0 | N67: 0 | O67: 0 | Q67: 143.8814 | R67: 1132.1186 | S67: 8.868415236
A68: 2015-02-27 | B68: 2025 | C68: 0 | D68: 0 | E68: 2025 | H68: 0 | I68: 121.5 | J68: 70.875 | K68: 16.6806 | L68: 0 | M68: 0 | N68: 0 | O68: 0 | Q68: 209.0556 | R68: 1815.9444 | S68: 9.68641835
A69: 2015-02-28 | B69: 1425 | C69: 0 | D69: 0 | E69: 1425 | H69: 0 | I69: 85.5 | J69: 49.875 | K69: 43.362 | L69: 0 | M69: 0 | N69: 0 | O69: 0 | Q69: 178.737 | R69: 1246.263 | S69: 7.972607798
A70: 2月合计 | B70: =SUM(B42:B69) -> 19977 | C70: =SUM(C42:C69) -> 0 | D70: 0 | E70: 19977 | F70: 75000 | H70: =SUM(H42:H69) -> 0 | I70: 1198.62 | J70: 699.195 | K70: =SUM(K42:K69) -> 622.3845 | L70: 0 | M70: 0 | N70: 0 | O70: 0 | P70: 0 | Q70: 2520.1995 | R70: 17456.8005 | S70: 7.926753418
A71: 2015-03-01 | B71: 1112 | C71: 0 | D71: 0 | E71: =B71-D71 -> 1112 | H71: 0 | I71: =B71*0.06 -> 66.72 | J71: =B71*0.035 -> 38.92 | K71: 14.5575 | L71: 0 | M71: 0 | N71: 0 | O71: 0 | Q71: =SUM(H71:O71) -> 120.1975 | R71: =E71-Q71 -> 991.8025 | S71: =E71/Q71 -> 9.251440338
A72: 2015-03-02 | B72: 1752 | C72: 0 | D72: 0 | E72: =B72-D72 -> 1752 | H72: 0 | I72: 105.12 | J72: 61.32 | K72: 23.2008 | L72: 0 | M72: 0 | N72: 0 | O72: 0 | Q72: =SUM(H72:O72) -> 189.6408 | R72: 1562.3592 | S72: 9.238518294
A73: 2015-03-03 | B73: 2164 | C73: 0 | D73: 0 | E73: 2164 | H73: 0 | I73: 129.84 | J73: 75.74 | K73: 23.7485 | L73: 0 | M73: 0 | N73: 0 | O73: 0 | Q73: 229.3285 | R73: 1934.6715 | S73: 9.436245386
A74: 2015-03-04 | B74: 839 | C74: 0 | D74: 0 | E74: 839 | H74: 0 | I74: 50.34 | J74: 29.365 | K74: 32.0886 | L74: 0 | M74: 0 | N74: 0 | O74: 0 | Q74: 111.7936 | R74: 727.2064 | S74: 7.504901891
A75: 2015-03-05 | B75: 1730 | C75: 0 | D75: 0 | E75: 1730 | H75: 0 | I75: 103.8 | J75: 60.55 | K75: 49.2502 | L75: 0 | M75: 0 | N75: 0 | O75: 0 | Q75: 213.6002 | R75: 1516.3998 | S75: 8.099243353
A76: 2015-03-06 | B76: 1100 | C76: 0 | D76: 0 | E76: 1100 | H76: 0 | I76: 66 | J76: 38.5 | K76: 39.0094 | L76: 0 | M76: 0 | N76: 0 | O76: 0 | Q76: 143.5094 | R76: 956.4906 | S76: 7.665003129
A77: 2015-03-07 | B77: 1317 | C77: 0 | D77: 0 | E77: 1317 | H77: 0 | I77: 79.02 | J77: 46.095 | K77: 25.4783 | L77: 0 | M77: 0 | N77: 0 | O77: 0 | Q77: 150.5933 | R77: 1166.4067 | S77: 8.745408992
A78: 2015-03-08 | B78: 1607 | C78: 0 | D78: 0 | E78: 1607 | H78: 0 | I78: 96.42 | J78: 56.245 | L78: 0 | M78: 0 | N78: 0 | O78: 0 | Q78: 152.665 | R78: 1454.335 | S78: 10.52631579
A79: 2015-03-09 | B79: 1361 | C79: 0 | D79: 0 | E79: 1361 | H79: 0 | I79: 81.66 | J79: 47.635 | K79: 38.7962 | L79: 0 | M79: 0 | N79: 0 | O79: 0 | Q79: 168.0912 | R79: 1192.9088 | S79: 8.096795073
A80: 2015-03-10 | B80: 1880 | C80: 0 | D80: 0 | E80: 1880 | H80: 0 | I80: 112.8 | J80: 65.8 | K80: 0 | L80: 0 | M80: 0 | N80: 0 | O80: 0 | Q80: 178.6 | R80: 1701.4 | S80: 10.52631579
A81: 2015-03-11 | B81: 795 | C81: 0 | D81: 0 | E81: 795 | H81: 0 | I81: 47.7 | J81: 27.825 | L81: 0 | M81: 0 | N81: 0 | O81: 0 | Q81: 75.525 | R81: 719.475 | S81: 10.52631579
A82: 2015-03-12 | B82: 1404 | C82: 0 | D82: 0 | E82: 1404 | H82: 0 | I82: 84.24 | J82: 49.14 | K82: 39.6571 | L82: 0 | M82: 0 | N82: 0 | O82: 0 | Q82: 173.0371 | R82: 1230.9629 | S82: 8.113866911
A83: 2015-03-13 | B83: 1099 | C83: 0 | D83: 0 | E83: 1099 | H83: 0 | I83: 65.94 | J83: 38.465 | L83: 0 | M83: 0 | N83: 0 | O83: 0 | Q83: 104.405 | R83: 994.595 | S83: 10.52631579
A84: 2015-03-14 | B84: 829 | C84: 0 | D84: 0 | E84: 829 | H84: 0 | I84: 49.74 | J84: 29.015 | K84: 0 | L84: 0 | M84: 0 | N84: 0 | O84: 0 | Q84: 78.755 | R84: 750.245 | S84: 10.52631579
A85: 2015-03-15 | B85: 2159 | C85: 0 | D85: 0 | E85: 2159 | H85: 0 | I85: 129.54 | J85: 75.565 | K85: 0 | L85: 0 | M85: 0 | N85: 0 | O85: 0 | Q85: 205.105 | R85: 1953.895 | S85: 10.52631579
A86: 2015-03-16 | B86: 946 | E86: 946 | H86: 0 | I86: 56.76 | J86: 33.11 | K86: 0 | L86: 0 | M86: 0 | N86: 0 | O86: 0 | Q86: 89.87 | R86: 856.13 | S86: 10.52631579
A87: 2015-03-17 | B87: 1143 | C87: 0 | D87: 0 | E87: 1143 | H87: 0 | I87: 68.58 | J87: 40.005 | K87: 0 | L87: 0 | M87: 0 | N87: 0 | O87: 0 | Q87: 108.585 | R87: 1034.415 | S87: 10.52631579
A88: 2015-03-18 | B88: 742 | C88: 0 | D88: 0 | E88: 742 | H88: 0 | I88: 44.52 | J88: 25.97 | K88: 0 | L88: 0 | M88: 0 | N88: 0 | O88: 0 | Q88: 70.49 | R88: 671.51 | S88: 10.52631579
A89: 2015-03-19 | B89: 620 | C89: 0 | D89: 0 | E89: 620 | H89: 0 | I89: 37.2 | J89: 21.7 | K89: 0 | L89: 0 | M89: 0 | N89: 0 | O89: 0 | Q89: 58.9 | R89: 561.1 | S89: 10.52631579
A90: 2015-03-20 | B90: 792 | C90: 0 | D90: 0 | E90: 792 | H90: 0 | I90: 47.52 | J90: 27.72 | K90: 35.9069 | L90: 0 | M90: 0 | N90: 0 | O90: 0 | Q90: 111.1469 | R90: 680.8531 | S90: 7.12570481
A91: 2015-03-21 | B91: 597 | C91: 0 | D91: 0 | E91: 597 | H91: 0 | I91: 35.82 | J91: 20.895 | K91: 26.2802 | L91: 0 | M91: 0 | N91: 0 | O91: 0 | Q91: 82.9952 | R91: 514.0048 | S91: 7.193187076
A92: 2015-03-22 | B92: 589 | C92: 0 | D92: 0 | E92: 589 | H92: 0 | I92: 35.34 | J92: 20.615 | K92: 0 | L92: 0 | M92: 0 | N92: 0 | O92: 0 | Q92: 55.955 | R92: 533.045 | S92: 10.52631579
A93: 2015-03-23 | B93: 1752 | C93: 0 | D93: 0 | E93: 1752 | H93: 0 | I93: 105.12 | J93: 61.32 | K93: 0 | L93: 0 | M93: 0 | N93: 0 | O93: 0 | Q93: 166.44 | R93: 1585.56 | S93: 10.52631579
A94: 2015-03-24 | B94: 935 | C94: 0 | D94: 0 | E94: 935 | H94: 0 | I94: 56.1 | J94: 32.725 | K94: 0 | L94: 0 | M94: 0 | N94: 0 | O94: 0 | Q94: 88.825 | R94: 846.175 | S94: 10.52631579
A95: 2015-03-25 | B95: 1900 | C95: 0 | D95: 0 | E95: 1900 | H95: 0 | I95: 114 | J95: 66.5 | K95: 0 | L95: 0 | M95: 0 | N95: 0 | O95: 0 | Q95: 180.5 | R95: 1719.5 | S95: 10.52631579
A96: 2015-03-26 | B96: 1676 | C96: 0 | D96: 0 | E96: 1676 | H96: 0 | I96: 100.56 | J96: 58.66 | K96: 0 | L96: 0 | M96: 0 | N96: 0 | O96: 0 | Q96: 159.22 | R96: 1516.78 | S96: 10.52631579
A97: 2015-03-27 | B97: 1147 | C97: 0 | D97: 0 | E97: 1147 | H97: 0 | I97: 68.82 | J97: 40.145 | K97: 0 | L97: 0 | M97: 0 | N97: 0 | O97: 0 | Q97: 108.965 | R97: 1038.035 | S97: 10.52631579
A98: 2015-03-28 | B98: 977 | C98: 0 | D98: 0 | E98: 977 | H98: 0 | I98: 58.62 | J98: 34.195 | K98: 8.6724 | L98: 0 | M98: 0 | N98: 0 | O98: 0 | Q98: 101.4874 | R98: 875.5126 | S98: 9.626810816
A99: 2015-03-29 | B99: 526 | C99: 0 | D99: 0 | E99: 526 | H99: 0 | I99: 31.56 | J99: 18.41 | K99: 0 | L99: 0 | M99: 0 | N99: 0 | O99: 0 | Q99: 49.97 | R99: 476.03 | S99: 10.52631579
A100: 2015-03-30 | B100: 1210 | C100: 0 | D100: 0 | E100: 1210 | H100: 0 | I100: 72.6 | J100: 42.35 | K100: 0 | L100: 0 | M100: 0 | N100: 0 | O100: 0 | Q100: 114.95 | R100: 1095.05 | S100: 10.52631579
A101: 2015-03-31 | B101: 1919 | C101: 0 | D101: 0 | E101: 1919 | H101: 0 | I101: 115.14 | J101: 67.165 | K101: 0 | L101: 0 | M101: 0 | N101: 0 | O101: 0 | Q101: 182.305 | R101: 1736.695 | S101: 10.52631579
A102: 3月合计 | E102: =SUM(E71:E101) -> 38619 | H102: =SUM(H71:H101) -> 0 | I102: 2317.14 | J102: 1351.665 | K102: 356.6461 | Q102: =SUM(Q71:Q101) -> 4025.4511 | R102: =E102-Q102 -> 34593.5489 | S102: =E102/Q102 -> 9.593707398
A103: 2015-04-01 | B103: 1452 | C103: 0 | D103: 0 | E103: 1452 | H103: 0 | I103: 87.12 | J103: 50.82 | K103: 0 | L103: 0 | M103: 0 | N103: 0 | O103: 0 | Q103: 137.94 | R103: 1314.06 | S103: 10.52631579
A104: 2015-04-02 | B104: 1807 | C104: 0 | D104: 0 | E104: 1807 | H104: 0 | I104: 108.42 | J104: 63.245 | K104: 0 | L104: 0 | M104: 0 | N104: 0 | O104: 0 | Q104: 171.665 | R104: 1635.335 | S104: 10.52631579
A105: 2015-04-03 | B105: 1596.5 | C105: 0 | D105: 0 | E105: 1596.5 | H105: 0 | I105: 95.79 | J105: 55.8775 | K105: 27.9528 | L105: 0 | M105: 0 | N105: 0 | O105: 0 | Q105: 179.6203 | R105: 1416.8797 | S105: 8.888193595
A106: 2015-04-04 | B106: 1312.75 | C106: 0 | D106: 0 | E106: 1312.75 | H106: 0 | I106: 78.765 | J106: 45.94625 | K106: 13.3454 | L106: 0 | M106: 0 | N106: 0 | O106: 0 | Q106: 138.05665 | R106: 1174.69335 | S106: 9.508777737
A107: 2015-04-05 | B107: 1118 | C107: 0 | D107: 0 | E107: 1118 | H107: 0 | I107: 67.08 | J107: 39.13 | K107: 13.9931 | L107: 0 | M107: 0 | N107: 0 | O107: 0 | Q107: 120.2031 | R107: 997.7969 | S107: 9.300924851
A108: 2015-04-06 | B108: 1344.5 | C108: 0 | D108: 0 | E108: 1344.5 | H108: 0 | I108: 80.67 | J108: 47.0575 | K108: 0 | L108: 0 | M108: 0 | N108: 0 | O108: 0 | Q108: 127.7275 | R108: 1216.7725 | S108: 10.52631579
A109: 2015-04-07 | B109: 905 | C109: 0 | D109: 0 | E109: 905 | H109: 0 | I109: 54.3 | J109: 31.675 | K109: 0 | L109: 0 | M109: 0 | N109: 0 | O109: 0 | Q109: 85.975 | R109: 819.025 | S109: 10.52631579
A110: 2015-04-08 | B110: 320 | C110: 0 | D110: 0 | E110: 320 | H110: 0 | I110: 19.2 | J110: 11.2 | K110: 0 | L110: 0 | M110: 0 | N110: 0 | O110: 0 | Q110: 30.4 | R110: 289.6 | S110: 10.52631579
A111: 2015-04-09 | B111: 1380 | C111: 0 | D111: 0 | E111: 1380 | H111: 0 | I111: 82.8 | J111: 48.3 | K111: 0 | L111: 0 | M111: 0 | N111: 0 | O111: 0 | Q111: 131.1 | R111: 1248.9 | S111: 10.52631579
A112: 2015-04-10 | B112: 1272 | C112: 0 | D112: 0 | E112: 1272 | H112: 0 | I112: 76.32 | J112: 44.52 | K112: 0 | L112: 0 | M112: 0 | N112: 0 | O112: 0 | Q112: 120.84 | R112: 1151.16 | S112: 10.52631579
A113: 2015-04-11 | B113: 972 | C113: 0 | D113: 0 | E113: 972 | H113: 0 | I113: 58.32 | J113: 34.02 | K113: 17.7963 | L113: 0 | M113: 0 | N113: 0 | O113: 0 | Q113: 110.1363 | R113: 861.8637 | S113: 8.825428129
A114: 2015-04-12 | B114: 920.75 | C114: 0 | D114: 0 | E114: 920.75 | H114: 0 | I114: 55.245 | J114: 32.22625 | K114: 0 | L114: 0 | M114: 0 | N114: 0 | O114: 0 | Q114: 87.47125 | R114: 833.27875 | S114: 10.52631579
A115: 2015-04-13 | B115: 1082.25 | C115: 0 | D115: 0 | E115: 1082.25 | H115: 0 | I115: 64.935 | J115: 37.87875 | K115: 0 | L115: 0 | M115: 0 | N115: 0 | O115: 0 | Q115: 102.81375 | R115: 979.43625 | S115: 10.52631579
A116: 2015-04-14 | B116: 1387.5 | C116: 0 | D116: 0 | E116: 1387.5 | H116: 0 | I116: 83.25 | J116: 48.5625 | K116: 0 | L116: 0 | M116: 0 | N116: 0 | O116: 0 | Q116: 131.8125 | R116: 1255.6875 | S116: 10.52631579
A117: 2015-04-15 | B117: 1092 | C117: 0 | D117: 0 | E117: 1092 | H117: 0 | I117: 65.52 | J117: 38.22 | K117: 0 | L117: 0 | M117: 0 | N117: 0 | O117: 0 | Q117: 103.74 | R117: 988.26 | S117: 10.52631579
A118: 2015-04-16 | B118: 1500 | C118: 0 | D118: 0 | E118: 1500 | H118: 0 | I118: 90 | J118: 52.5 | K118: 0 | L118: 0 | M118: 0 | N118: 0 | O118: 0 | Q118: 142.5 | R118: 1357.5 | S118: 10.52631579
A119: 2015-04-17 | B119: 2611 | C119: 0 | D119: 0 | E119: 2611 | H119: 0 | I119: 156.66 | J119: 91.385 | K119: 61.2632 | L119: 0 | M119: 0 | N119: 0 | O119: 0 | Q119: 309.3082 | R119: 2301.6918 | S119: 8.441418624
A120: 2015-04-18 | B120: 1181.5 | C120: 0 | D120: 0 | E120: 1181.5 | H120: 0 | I120: 70.89 | J120: 41.3525 | K120: 3.52 | L120: 0 | M120: 0 | N120: 0 | O120: 0 | Q120: 115.7625 | R120: 1065.7375 | S120: 10.20624123
A121: 2015-04-19 | B121: 1601.5 | C121: 0 | D121: 0 | E121: 1601.5 | H121: 0 | I121: 96.09 | J121: 56.0525 | K121: 0 | L121: 0 | M121: 0 | N121: 0 | O121: 0 | Q121: 152.1425 | R121: 1449.3575 | S121: 10.52631579
A122: 2015-04-20 | B122: 1086 | C122: 0 | D122: 0 | E122: 1086 | H122: 0 | I122: 65.16 | J122: 38.01 | L122: 0 | M122: 0 | N122: 0 | O122: 0 | Q122: 103.17 | R122: 982.83 | S122: 10.52631579
A123: 2015-04-21 | B123: 1289.5 | C123: 0 | D123: 0 | E123: 1289.5 | H123: 0 | I123: 77.37 | J123: 45.1325 | K123: 0 | L123: 0 | M123: 0 | N123: 0 | O123: 0 | Q123: 122.5025 | R123: 1166.9975 | S123: 10.52631579
A124: 2015-04-22 | B124: 1183.5 | C124: 0 | D124: 0 | E124: 1183.5 | H124: 0 | I124: 71.01 | J124: 41.4225 | K124: 0 | L124: 0 | M124: 0 | N124: 0 | O124: 0 | Q124: 112.4325 | R124: 1071.0675 | S124: 10.52631579
A125: 2015-04-23 | B125: 1835 | C125: 0 | D125: 0 | E125: 1835 | H125: 0 | I125: 110.1 | J125: 64.225 | K125: 0 | L125: 0 | M125: 0 | N125: 0 | O125: 0 | Q125: 174.325 | R125: 1660.675 | S125: 10.52631579
A126: 2015-04-24 | B126: 769 | C126: 0 | D126: 0 | E126: 769 | H126: 0 | I126: 46.14 | J126: 26.915 | K126: 0 | L126: 0 | M126: 0 | N126: 0 | O126: 0 | Q126: 73.055 | R126: 695.945 | S126: 10.52631579
A127: 2015-04-25 | B127: 2175 | C127: 0 | D127: 0 | E127: 2175 | H127: 0 | I127: 130.5 | J127: 76.125 | K127: 18.2367 | L127: 0 | M127: 0 | N127: 0 | O127: 0 | Q127: 224.8617 | R127: 1950.1383 | S127: 9.672612099
A128: 2015-04-26 | B128: 1018 | C128: 0 | D128: 0 | E128: 1018 | H128: 0 | I128: 61.08 | J128: 35.63 | K128: 0 | L128: 0 | M128: 0 | N128: 0 | O128: 0 | Q128: 96.71 | R128: 921.29 | S128: 10.52631579
A129: 2015-04-27 | B129: 1266 | C129: 0 | D129: 0 | E129: 1266 | H129: 0 | I129: 75.96 | J129: 44.31 | K129: 0 | L129: 0 | M129: 0 | N129: 0 | O129: 0 | Q129: 120.27 | R129: 1145.73 | S129: 10.52631579
A130: 2015-04-28 | B130: 761 | C130: 0 | D130: 0 | E130: 761 | H130: 0 | I130: 45.66 | J130: 26.635 | K130: 0 | L130: 0 | M130: 0 | N130: 0 | O130: 0 | Q130: 72.295 | R130: 688.705 | S130: 10.52631579
A131: 2015-04-29 | B131: 1230 | C131: 0 | D131: 0 | E131: 1230 | H131: 0 | I131: 73.8 | J131: 43.05 | K131: 0 | L131: 0 | M131: 0 | N131: 0 | O131: 0 | Q131: 116.85 | R131: 1113.15 | S131: 10.52631579
A132: 2015-04-30 | B132: 1468 | C132: 0 | D132: 0 | E132: 1468 | H132: 0 | I132: 88.08 | J132: 51.38 | K132: 17.9841 | L132: 0 | M132: 0 | N132: 0 | O132: 0 | Q132: 157.4441 | R132: 1310.5559 | S132: 9.323944181
A133: 合计 | B133: =SUM(B102:B103:B132B132) ->  | C133: =SUM(C103:C132) -> 0 | D133: =SUM(D105:D132) -> 0 | E133: =SUM(E103:E132) -> 38937.25 | F133: 0 | H133: =SUM(H103:H132) -> 0 | I133: =SUM(I103:I132) -> 2336.235 | J133: =SUM(J105:J132) -> 1248.73875 | K133: =SUM(K103:K132) -> 174.0916 | L133: 0 | M133: 0 | N133: 0 | O133: 0 | P133: 0 | Q133: 3873.13035 | R133: =E133/P133 -> 
A134: 2015-05-01 | B134: 530 | C134: 0 | D134: 0 | E134: 530 | H134: 0 | I134: 31.8 | J134: 18.55 | K134: 16.783 | L134: 0 | M134: 0 | N134: 0 | O134: 0 | Q134: 67.133 | R134: 462.867 | S134: 7.894776042
A135: 2015-05-02 | B135: 684 | C135: 0 | D135: 0 | E135: 684 | H135: 0 | I135: 41.04 | J135: 23.94 | K135: 10.9884 | L135: 0 | M135: 0 | N135: 0 | O135: 0 | Q135: 75.9684 | R135: 608.0316 | S135: 9.003743662
A136: 2015-05-03 | B136: 834 | C136: 0 | D136: 0 | E136: 834 | H136: 0 | I136: 50.04 | J136: 29.19 | K136: 0 | L136: 0 | M136: 0 | N136: 0 | O136: 0 | Q136: 79.23 | R136: 754.77 | S136: 10.52631579
A137: 2015-05-04 | B137: 2505 | C137: 0 | D137: 0 | E137: 2505 | H137: 0 | I137: 150.3 | J137: 87.675 | K137: 0 | L137: 0 | M137: 0 | N137: 0 | O137: 0 | Q137: 237.975 | R137: 2267.025 | S137: 10.52631579
A138: 2015-05-05 | B138: 1627 | C138: 0 | D138: 0 | E138: 1627 | H138: 0 | I138: 97.62 | J138: 56.945 | K138: 0 | L138: 0 | M138: 0 | N138: 0 | O138: 0 | Q138: 154.565 | R138: 1472.435 | S138: 10.52631579
A139: 2015-05-06 | B139: 933 | C139: 0 | D139: 0 | E139: 933 | H139: 0 | I139: 55.98 | J139: 32.655 | K139: 0 | L139: 0 | M139: 0 | N139: 0 | O139: 0 | Q139: 88.635 | R139: 844.365 | S139: 10.52631579
A140: 2015-05-07 | B140: 1838 | C140: 0 | D140: 0 | E140: 1838 | H140: 0 | I140: 110.28 | J140: 64.33 | K140: 0 | L140: 0 | M140: 0 | N140: 0 | O140: 0 | Q140: 174.61 | R140: 1663.39 | S140: 10.52631579
A141: 2015-05-08 | B141: 1849 | C141: 0 | D141: 0 | E141: 1849 | H141: 0 | I141: 110.94 | J141: 64.715 | K141: 0 | L141: 0 | M141: 0 | N141: 0 | O141: 0 | Q141: 175.655 | R141: 1673.345 | S141: 10.52631579
A142: 2015-05-09 | B142: 1020 | C142: 0 | D142: 0 | E142: =B142-D142 -> 1020 | H142: 0 | I142: =B142*0.06 -> 61.2 | J142: =B142*0.035 -> 35.7 | K142: 0 | L142: 0 | M142: 0 | N142: 0 | O142: 0 | Q142: =SUM(H142:O142) -> 96.9 | R142: =E142-Q142 -> 923.1 | S142: =E142/Q142 -> 10.52631579
A143: 2015-05-10 | B143: 1347 | C143: 0 | D143: 0 | E143: 1347 | H143: 0 | I143: 80.82 | J143: 47.145 | K143: 0 | L143: 0 | M143: 0 | N143: 0 | O143: 0 | Q143: 127.965 | R143: 1219.035 | S143: 10.52631579
A144: 2015-05-11 | B144: 1225 | C144: 0 | D144: 0 | E144: 1225 | H144: 0 | I144: 73.5 | J144: 42.875 | K144: 0 | L144: 0 | M144: 0 | N144: 0 | O144: 0 | Q144: 116.375 | R144: 1108.625 | S144: 10.52631579
A145: 2015-05-12 | B145: 941 | E145: 941 | H145: 0 | I145: 56.46 | J145: 32.935 | K145: 0 | L145: 0 | M145: 0 | N145: 0 | O145: 0 | Q145: 89.395 | R145: 851.605 | S145: 10.52631579
A146: 2015-05-13 | B146: 814 | C146: 0 | D146: 0 | E146: 814 | H146: 0 | I146: 48.84 | J146: 28.49 | K146: 0 | L146: 0 | M146: 0 | N146: 0 | O146: 0 | Q146: 77.33 | R146: 736.67 | S146: 10.52631579
A147: 2015-05-14 | B147: 491 | C147: 0 | D147: 0 | E147: 491 | H147: 0 | I147: 29.46 | J147: 17.185 | K147: 0 | L147: 0 | M147: 0 | N147: 0 | O147: 0 | Q147: 46.645 | R147: 444.355 | S147: 10.52631579
A148: 2015-05-15 | B148: 746 | C148: 0 | D148: 0 | E148: 746 | H148: 0 | I148: 44.76 | J148: 26.11 | K148: 44.2118 | L148: 0 | M148: 0 | N148: 0 | O148: 0 | Q148: 115.0818 | R148: 630.9182 | S148: 6.482345601
A149: 2015-05-16 | B149: 870 | C149: 0 | D149: 0 | E149: 870 | H149: 0 | I149: 52.2 | J149: 30.45 | K149: 54.6936 | L149: 0 | M149: 0 | N149: 0 | O149: 0 | Q149: 137.3436 | R149: 732.6564 | S149: 6.334477908
A150: 2015-05-17 | B150: 683 | C150: 0 | D150: 0 | E150: 683 | H150: 0 | I150: 40.98 | J150: 23.905 | K150: 0 | L150: 0 | M150: 0 | N150: 0 | O150: 0 | Q150: 64.885 | R150: 618.115 | S150: 10.52631579
A151: 2015-05-18 | B151: 1044 | C151: 0 | D151: 0 | E151: 1044 | H151: 0 | I151: 62.64 | J151: 36.54 | K151: 0 | L151: 0 | M151: 0 | N151: 0 | O151: 0 | Q151: 99.18 | R151: 944.82 | S151: 10.52631579
A152: 2015-05-19 | B152: 1728 | C152: 0 | D152: 0 | E152: 1728 | H152: 0 | I152: 103.68 | J152: 60.48 | K152: 0 | L152: 0 | M152: 0 | N152: 0 | O152: 0 | Q152: 164.16 | R152: 1563.84 | S152: 10.52631579
A153: 2015-05-20 | B153: 1614 | C153: 0 | D153: 0 | E153: 1614 | H153: 0 | I153: 96.84 | J153: 56.49 | L153: 0 | M153: 0 | N153: 0 | O153: 0 | Q153: 153.33 | R153: 1460.67 | S153: 10.52631579
A154: 2015-05-21 | B154: 2741 | C154: 0 | D154: 0 | E154: 2741 | H154: 0 | I154: 164.46 | J154: 95.935 | K154: 0 | L154: 0 | M154: 0 | N154: 0 | O154: 0 | Q154: 260.395 | R154: 2480.605 | S154: 10.52631579
A155: 2015-05-22 | B155: 1449 | C155: 0 | D155: 0 | E155: 1449 | H155: 0 | I155: 86.94 | J155: 50.715 | K155: 0 | L155: 0 | M155: 0 | N155: 0 | O155: 0 | Q155: 137.655 | R155: 1311.345 | S155: 10.52631579
A156: 2015-05-23 | B156: 554 | C156: 0 | D156: 0 | E156: 554 | H156: 0 | I156: 33.24 | J156: 19.39 | K156: 13.3302 | L156: 0 | M156: 0 | N156: 0 | O156: 0 | Q156: 65.9602 | R156: 488.0398 | S156: 8.399004248
A157: 2015-05-24 | B157: 1291 | C157: 0 | D157: 0 | E157: 1291 | H157: 0 | I157: 77.46 | J157: 45.185 | K157: 0 | L157: 0 | M157: 0 | N157: 0 | O157: 0 | Q157: 122.645 | R157: 1168.355 | S157: 10.52631579
A158: 2015-05-25 | B158: 955 | C158: 0 | D158: 0 | E158: 955 | H158: 0 | I158: 57.3 | J158: 33.425 | K158: 0 | L158: 0 | M158: 0 | N158: 0 | O158: 0 | Q158: 90.725 | R158: 864.275 | S158: 10.52631579
A159: 2015-05-26 | B159: 2023 | C159: 0 | D159: 0 | E159: 2023 | H159: 0 | I159: 121.38 | J159: 70.805 | K159: 0 | L159: 0 | M159: 0 | N159: 0 | O159: 0 | Q159: 192.185 | R159: 1830.815 | S159: 10.52631579
A160: 2015-05-27 | B160: 1012 | C160: 0 | D160: 0 | E160: 1012 | H160: 0 | I160: 60.72 | J160: 35.42 | K160: 0 | L160: 0 | M160: 0 | N160: 0 | O160: 0 | Q160: 96.14 | R160: 915.86 | S160: 10.52631579
A161: 2015-05-28 | B161: 1405 | C161: 0 | D161: 0 | E161: 1405 | H161: 0 | I161: 84.3 | J161: 49.175 | K161: 0 | L161: 0 | M161: 0 | N161: 0 | O161: 0 | Q161: 133.475 | R161: 1271.525 | S161: 10.52631579
A162: 2015-05-29 | B162: 1461 | C162: 0 | D162: 0 | E162: 1461 | H162: 0 | I162: 87.66 | J162: 51.135 | K162: 121.9997 | L162: 0 | M162: 0 | N162: 0 | O162: 0 | Q162: 260.7947 | R162: 1200.2053 | S162: 5.602107712
A163: 2015-05-30 | B163: 1031 | C163: 0 | D163: 0 | E163: 1031 | H163: 0 | I163: 61.86 | J163: 36.085 | K163: 14.5 | L163: 0 | M163: 0 | N163: 0 | O163: 0 | Q163: 112.445 | R163: 918.555 | S163: 9.168927031
A164: 2015-05-31 | B164: 1724 | C164: 0 | D164: 0 | E164: 1724 | H164: 0 | I164: 103.44 | J164: 60.34 | K164: 0 | L164: 0 | M164: 0 | N164: 0 | O164: 0 | Q164: 163.78 | R164: 1560.22 | S164: 10.52631579
A165: 合计 | B165: =SUM(B134:B164) -> 38969 | C165: =SUM(C134:C164) -> 0 | D165: =SUM(D134:D164) -> 0 | E165: =SUM(E134:E164) -> 38969 | F165: 0 | H165: =SUM(H134:H164) -> 0 | I165: 2338.14 | J165: 1363.915 | K165: 276.5067 | L165: 0 | M165: 0 | N165: 0 | O165: 0 | P165: 0 | Q165: 3978.5617 | R165: =E165/P165 -> 
A166: 2015-06-01 | B166: 2131 | C166: 0 | D166: 0 | E166: 2131 | H166: 0 | I166: 127.86 | J166: 74.585 | K166: 0 | L166: 0 | M166: 0 | N166: 0 | O166: 0 | Q166: 202.445 | R166: 1928.555 | S166: 10.52631579
A167: 2015-06-02 | B167: 1218 | C167: 0 | D167: 0 | E167: 1218 | H167: 0 | I167: 73.08 | J167: 42.63 | K167: 0 | L167: 0 | M167: 0 | N167: 0 | O167: 0 | Q167: 115.71 | R167: 1102.29 | S167: 10.52631579
A168: 2015-06-03 | B168: 2639 | C168: 0 | D168: 0 | E168: 2639 | H168: 0 | I168: 158.34 | J168: 92.365 | K168: 0 | L168: 0 | M168: 0 | N168: 0 | O168: 0 | Q168: 250.705 | R168: 2388.295 | S168: 10.52631579
A169: 2015-06-04 | B169: 1147 | C169: 0 | D169: 0 | E169: =B169-D169 -> 1147 | H169: 0 | I169: =B169*0.06 -> 68.82 | J169: =B169*0.035 -> 40.145 | K169: 0 | L169: 0 | M169: 0 | N169: 0 | O169: 0 | Q169: =SUM(H169:O169) -> 108.965 | R169: =E169-Q169 -> 1038.035
A170: 2015-06-05 | B170: 1455 | C170: 0 | D170: 0 | E170: 1455 | H170: 0 | I170: =B170*0.06 -> 87.3 | J170: =B170*0.035 -> 50.925 | K170: 0 | L170: 0 | M170: 0 | N170: 0 | O170: 0 | Q170: =SUM(H170:O170) -> 138.225 | R170: =E170-Q170 -> 1316.775
A171: 2015-06-06 | B171: 2298 | C171: 0 | D171: 0 | E171: 2298 | H171: 0 | I171: 137.88 | J171: 80.43 | K171: 27.9891 | L171: 0 | M171: 0 | N171: 0 | O171: 0 | Q171: 246.2991 | R171: 2051.7009 | S171: 9.330119355
A172: 2015-06-07 | B172: 925 | C172: 0 | D172: 0 | E172: 925 | H172: 0 | I172: 55.5 | J172: 32.375 | K172: 0 | L172: 0 | M172: 0 | N172: 0 | O172: 0 | Q172: 87.875 | R172: 837.125 | S172: 10.52631579
A173: 2015-06-08 | B173: 2454 | C173: 0 | D173: 0 | E173: 2454 | H173: 0 | I173: 147.24 | J173: 85.89 | K173: 0 | L173: 0 | M173: 0 | N173: 0 | O173: 0 | Q173: 233.13 | R173: 2220.87 | S173: 10.52631579
A174: 2015-06-09 | B174: 2309 | C174: 0 | D174: 0 | E174: =B174-D174 -> 2309 | H174: 0 | I174: =B174*0.06 -> 138.54 | J174: =B174*0.035 -> 80.815 | K174: 72.2574 | L174: 0 | M174: 0 | N174: 0 | O174: 0 | Q174: =SUM(H174:O174) -> 291.6124 | R174: =E174-Q174 -> 2017.3876 | S174: =E174/Q174 -> 7.918044637
A175: 2015-06-10 | B175: 2506 | C175: 0 | D175: 0 | E175: 2506 | H175: 0 | I175: 150.36 | J175: 87.71 | K175: 50.4996 | L175: 0 | M175: 0 | N175: 0 | O175: 0 | Q175: 288.5696 | R175: 2217.4304 | S175: 8.684213445
A176: 2015-06-11 | B176: 2604 | C176: 0 | D176: 0 | E176: 2604 | H176: 0 | I176: 156.24 | J176: 91.14 | K176: 63.7255 | L176: 0 | M176: 0 | N176: 0 | O176: 0 | Q176: 311.1055 | R176: 2292.8945 | S176: 8.370150962
A177: 2015-06-12 | B177: 1913 | C177: 0 | D177: 0 | E177: 1913 | H177: 0 | I177: 114.78 | J177: 66.955 | K177: 58.5921 | L177: 0 | M177: 0 | N177: 0 | O177: 0 | Q177: 240.3271 | R177: 1672.6729 | S177: 7.959984538
A178: 2015-06-13 | B178: 3150 | C178: 0 | D178: 0 | E178: 3150 | H178: 0 | I178: 189 | J178: 110.25 | K178: 1.35 | L178: 0 | M178: 0 | N178: 0 | O178: 0 | Q178: 300.6 | R178: 2849.4 | S178: 10.47904192
A179: 2015-06-14 | B179: 2680 | C179: 0 | D179: 0 | E179: 2680 | H179: 0 | I179: 160.8 | J179: 93.8 | K179: 44.8281 | L179: 0 | M179: 0 | N179: 0 | O179: 0 | Q179: 299.4281 | R179: 2380.5719 | S179: 8.950395771
A180: 2015-06-15 | B180: 1482 | C180: 0 | D180: 0 | E180: 1482 | H180: 0 | I180: 88.92 | J180: 51.87 | K180: 63.7451 | L180: 0 | M180: 0 | N180: 0 | O180: 0 | Q180: 204.5351 | R180: 1277.4649 | S180: 7.245700127
A181: 2015-06-16 | B181: 2908 | C181: 0 | D181: 0 | E181: 2908 | H181: 0 | I181: 174.48 | J181: 101.78 | K181: 57.4049 | L181: 0 | M181: 0 | N181: 0 | O181: 0 | Q181: 333.6649 | R181: 2574.3351 | S181: 8.71533086
A182: 2015-06-17 | B182: 2771 | C182: 0 | D182: 0 | E182: 2771 | H182: 0 | I182: 166.26 | J182: 96.985 | K182: 104.0931 | L182: 0 | M182: 0 | N182: 0 | O182: 0 | Q182: 367.3381 | R182: 2403.6619 | S182: 7.543459282
A183: 2015-06-18 | B183: 3719 | C183: 0 | D183: 0 | E183: 3719 | H183: 0 | I183: 223.14 | J183: 130.165 | K183: 119.9429 | L183: 0 | M183: 0 | N183: 0 | O183: 0 | Q183: 473.2479 | R183: 3245.7521 | S183: 7.85846065
A184: 2015-06-19 | B184: 3092 | C184: 0 | D184: 0 | E184: 3092 | H184: 0 | I184: 185.52 | J184: 108.22 | K184: 84.6552 | Q184: 378.3952 | R184: 2713.6048 | S184: 8.171351011
A185: 2015-06-20 | B185: 2081 | C185: 0 | D185: 0 | E185: 2081 | I185: 124.86 | J185: 72.835 | K185: 21.1922 | Q185: 218.8872 | R185: 1862.1128 | S185: 9.507179954
A186: 2015-06-21 | B186: 1791 | C186: 0 | D186: 0 | E186: 1791 | I186: 107.46 | J186: 62.685 | K186: 27.1119 | Q186: 197.2569 | R186: 1593.7431 | S186: 9.079530298
A187: 2015-06-22 | B187: 3216 | C187: 0 | D187: 0 | E187: 3216 | I187: 192.96 | J187: 112.56 | K187: 36.4076 | Q187: 341.9276 | R187: 2874.0724 | S187: 9.405499878
A188: 2015-06-23 | B188: 2928 | C188: 0 | D188: 0 | E188: 2928 | I188: 175.68 | J188: 102.48 | K188: 97.887 | Q188: 376.047 | R188: 2551.953 | S188: 7.78626076
A189: 2015-06-24 | B189: 3238 | C189: 0 | D189: 0 | E189: 3238 | I189: 194.28 | J189: =B189*0.035 -> 113.33 | K189: 166.533 | Q189: =SUM(H189:O189) -> 474.143 | R189: =E189-Q189 -> 2763.857 | S189: =E189/Q189 -> 6.829163354
A190: 2015-06-25 | B190: 2095 | C190: 0 | D190: 0 | E190: =B190-D190 -> 2095 | I190: 125.7 | J190: 73.325 | K190: 51.81 | Q190: 250.835 | R190: 1844.165 | S190: 8.352103973
A191: 2015-06-26 | B191: 1854 | C191: 0 | D191: 0 | E191: 1854 | I191: 111.24 | J191: 64.89 | K191: 127.1903 | Q191: 303.3203 | R191: 1550.6797 | S191: 6.112350542
A192: 2015-06-27 | B192: 1891 | C192: 0 | D192: 0 | E192: 1891 | I192: 113.46 | J192: 66.185 | K192: 51.5831 | Q192: 231.2281 | R192: 1659.7719 | S192: 8.178071783
A193: 2015-06-28 | B193: 1761 | C193: 0 | D193: 0 | E193: 1761 | I193: 105.66 | J193: 61.635 | K193: 62.3367 | Q193: 229.6317 | R193: 1531.3683 | S193: 7.668801825
A194: 2015-06-29 | B194: 1702 | C194: 0 | D194: 0 | E194: 1702 | I194: 102.12 | J194: 59.57 | K194: 321.5514 | Q194: 483.2414 | R194: 1218.7586 | S194: 3.522049228
A195: 2015-06-30 | B195: 2871 | C195: 0 | D195: 0 | E195: 2871 | I195: 172.26 | J195: 100.485 | K195: 252.4563 | Q195: 525.2013 | R195: 2345.7987 | S195: 5.466475426
A196: 合计 | B196: =SUM(B166:B195) -> 68829 | C196: =SUM(C166:C195) -> 0 | D196: =SUM(D166:D195) -> 0 | E196: =SUM(E166:E195) -> 68829 | F196: 0 | H196: =SUM(H166:H195) -> 0 | I196: 4129.74 | J196: 2409.015 | K196: 1965.1425 | L196: 0 | M196: 0 | N196: 0 | O196: 0 | P196: 0 | Q196: 8503.8975 | R196: 60325.1025 | S196: 8.093818158
A197: 2015-07-01 | B197: 2071 | E197: =B197-D197 -> 2071 | I197: =B197*0.06 -> 124.26 | J197: =B197*0.035 -> 72.485 | K197: 46.345 | Q197: =SUM(H197:O197) -> 243.09 | R197: 1827.91 | S197: 8.519478382
A198: 2015-07-02 | B198: 1223 | E198: =B198-D198 -> 1223 | I198: =B198*0.06 -> 73.38 | J198: =B198*0.035 -> 42.805 | K198: 33.8285 | Q198: =SUM(H198:O198) -> 150.0135 | R198: =E198-Q198 -> 1072.9865 | S198: =E198/Q198 -> 8.152599599
A199: 2015-07-03 | B199: 1661 | E199: 1661 | I199: 99.66 | J199: 58.135 | K199: 183.8956 | Q199: 341.6906 | R199: 1319.3094 | S199: 4.861122899
A200: 2015-07-04 | B200: 2040 | E200: 2040 | I200: 122.4 | J200: 71.4 | K200: 66.301 | Q200: 260.101 | R200: 1779.899 | S200: 7.843107101
A201: 2015-07-05 | B201: 1374 | E201: 1374 | I201: 82.44 | J201: 48.09 | K201: 60.2781 | Q201: 190.8081 | R201: 1183.1919 | S201: 7.200952161
A202: 2015-07-06 | B202: 2616 | E202: 2616 | I202: 156.96 | J202: 91.56 | K202: 75.569 | Q202: 324.089 | R202: 2291.911 | S202: 8.071856805
... 216 more rows

Sheet 淘外
A1: 5月份
B2: 当当 | C2: 1225
B3: 一号店 | C3: 616
B4: 蘑菇街 | C4: 0
B5: 美丽说 | C5: 426
B7: 合计 | C7: =SUM(C2:C5) -> 2267
A11: 6月份
B12: 当当 | C12: 1389
B13: 一号店 | C13: 1462
B14: 蘑菇街 | C14: 1020
B15: 美丽说 | C15: 530
B16: 天猫供销平台 | C16: 451
B17: 合计 | C17: =SUM(C12:C16) -> 4852
B19: 当当 | C19: 一号店 | D19: 蘑菇街 | E19: 美丽说 | F19: 天猫供销平台 | G19: 志尚车品（线下） | H19: 才贵车品（线上） | I19: 山东线下涂克青批发 | J19: 西安八车道批发 | K19: 思方达（唯品会） | L19: 湖北线下商城
A20: 7月份 | B20: 1115 | C20: 741 | D20: 0 | E20: 68 | F20: 15428
A21: 8月份 | B21: 1991 | C21: 1095 | D21: 164 | E21: 0 | F21: 2165 | G21: 2200 | H21: =SUM(C30:C36) -> 0 | I21: 7114.25
A22: 9月份 | B22: 1816 | C22: 1296 | D22: 0 | E22: 48 | F22: 4698.3
A23: 10月份 | B23: 1772 | C23: 973 | D23: 0 | E23: 136 | F23: 5775 | H23: 3967.5 | J23: 1015
A24: 11月份 | B24: 603 | C24: 624 | D24: 0 | E24: 0 | F24: 7370 | H24: 2805
A25: 12月份 | B25: 1492 | C25: 297 | D25: 0 | E25: 0 | F25: 7677 | K25: 22680 | L25: 5670.7
